{"text_format":"1","workbook":"xlsx","n_sheets":1,"sheets":["поставщик"],"not_rendered":{"charts":0,"images":0,"macros":1,"external_links":0,"defined_names":6,"comments":0,"pivot_tables":0},"unopened":[],"bounds":{"document_bytes":16777216,"sheet_cells":100000,"rows_first":2000,"rows_last":500,"rows_between":2000,"halvings":0,"cell_chars":16384,"cell_head_chars":4096},"cells_cut":0,"cells_raw":0,"read":"whole","date_system":"1900"}

{"sheet":"поставщик","index":0,"n_rows":106,"n_cols":125,"rows_kept":106,"cut":false,"hidden":false,"merged":[]}
[7604,null,null,null,null,null,null,null,null,null,null,null,null,null,null,null,null,null,null,null,null,null,null,null,null,null,null,null,null,null,null,null,null,null,null,null,null,null,null,null,null,null,null,null,null,null,null,null,null,null,null,null,null,null,null,null,null,null,null,null,null,null,null,null,null,null,null,null,null,null,null,null,null,null,null,null,null,null,null,null,null,null,null,null,null,null,null,null,null,null,null,null,null,null,null,null,null,null,null,null,null,null,null,null,null,null,null,null,null,null,null,null,null,null,null,null,null,null,null,null,null,null,null,11,1]
[null,null,null,null,null,null,null,null,null,null,null,null,null,null,null,null,null,null,null,null,null,null,null,null,null,null,null,null,null,null,null,null,null,null,null,null,null,null,null,null,null,null,null,null,null,null,null,null,null,null,null,null,null,null,null,null,null,null,null,null,null,null,null,null,null,null,null,null,null,null,null,null,null,null,null,null,null,null,null,null,null,null,null,null,null,null,null,null,null,null,null,null,null,null,null,null,null,null,null,null,null,null,null,null,null,null,null,null,null,null,null,null,null,null,null,null,null,null,null,null,null,null,null,12,2]
[null,null,null,null,null,null,null,null,null,null,null,null,null,null,null,null,null,null,null,null,null,null,null,null,null,null,null,null,null,null,null,null,null,null,null,null,null,null,null,null,null,null,null,null,null,null,null,null,null,null,null,null,null,null,null,null,null,null,null,null,null,null,null,null,null,null,null,null,null,null,null,null,null,null,null,null,null,null,null,null,null,null,null,null,null,null,null,null,null,null,null,null,null,null,null,null,null,null,null,null,null,null,null,null,null,null,null,null,null,null,null,null,null,null,null,null,null,null,null,null,null,null,null,"2ПБ10-1",1.58]
[null,null,null,null,null,null,null,null,null,null,null,null,null,null,null,null,null,null,null,null,null,null,null,null,null,null,null,null,null,null,null,null,null,null,null,null,null,null,null,null,null,null,null,null,null,null,null,null,null,null,null,null,null,null,null,null,null,null,null,null,null,null,null,null,null,null,null,null,null,null,null,null,null,null,null,null,null,null,null,null,null,null,null,null,null,null,null,null,null,null,null,null,null,null,null,null,null,null,null,null,null,null,null,null,null,null,null,null,null,null,null,null,null,null,null,null,null,null,null,null,null,null,null,"2ПБ13-1-п",0.54]
[{"$f":"#REF!","v":{"$error":"#REF!"}},null,null,null,null,null,{"$f":"#REF!","v":{"$error":"#REF!"}},null,null,null,null,null,{"$f":"#REF!","v":{"$error":"#REF!"}},null,null,null,null,null,{"$f":"#REF!","v":{"$error":"#REF!"}},null,null,null,null,null,{"$f":"#REF!","v":{"$error":"#REF!"}},null,null,null,null,null,{"$f":"#REF!","v":{"$error":"#REF!"}},null,null,null,null,null,{"$f":"#REF!","v":{"$error":"#REF!"}},null,null,null,null,null,{"$f":"#REF!","v":{"$error":"#REF!"}},null,null,null,null,null,{"$f":"#REF!","v":{"$error":"#REF!"}},null,null,null,null,null,{"$f":"#REF!","v":{"$error":"#REF!"}},null,null,null,null,null,null,null,null,null,null,null,null,null,null,null,null,null,null,null,null,null,null,null,null,null,null,null,null,null,null,null,null,null,null,null,null,null,null,null,null,null,null,null,null,null,null,null,null,null,null,null,null,null,null,null,null,null,null,null,null,null,null,null,null,null,null,null,null,"кирпич крачный",2]
["номенклатура","вес","план","Столбец1","факт","осталось","номенклатура2","вес2","план2","Столбец7","факт2","осталось2","номенклатура3","вес3","план3","Столбец16","факт3","осталось3","номенклатура4","вес4","план4","Столбец113","факт4","осталось4","номенклатура5","вес5","план5","Столбец120","факт5","осталось5","номенклатура6","вес6","план6","Столбец121","факт6","осталось6","номенклатура7","вес7","план7","Столбец1216","факт7","осталось7","номенклатура8","вес8","план8","Столбец1217","факт8","осталось8","номенклатура9","вес9","план9","Столбец12176","факт9","осталось9","номенклатура10","вес10","план10","Столбец121766","факт10","осталось10",null,null,null,null,null,null,null,null,null,null,null,null,null,null,null,null,null,null,null,null,null,null,null,null,null,null,null,null,null,null,null,null,null,null,null,null,null,null,null,null,null,null,null,null,null,null,null,null,null,null,null,null,null,null,null,null,null,null,null,null,null,null,null,"кирпичный ",2]
[11,1,20,null,{"$f":"SUMPRODUCT(--(#REF!=$A$5),--(#REF!=A7),#REF!)","v":{"$error":"#REF!"}},{"$f":"Таблица5[[#This Row],[план]]-Таблица5[[#This Row],[факт]]","v":{"$error":"#REF!"}},11,1,5,null,{"$f":"SUMPRODUCT(--(#REF!=$G$5),--(#REF!=G7),#REF!)","v":{"$error":"#REF!"}},{"$f":"Таблица5[[#This Row],[план2]]-Таблица5[[#This Row],[факт2]]","v":{"$error":"#REF!"}},"2ПБ10-1",1.58,21,null,{"$f":"SUMPRODUCT(--(#REF!=$M$5),--(#REF!=M7),#REF!)","v":{"$error":"#REF!"}},{"$f":"Таблица5[[#This Row],[план3]]-Таблица5[[#This Row],[факт3]]","v":{"$error":"#REF!"}},"2ПБ10-1",1.58,150,null,{"$f":"SUMPRODUCT(--(#REF!=$S$5),--(#REF!=S7),#REF!)","v":{"$error":"#REF!"}},{"$f":"Таблица5[[#This Row],[план4]]-Таблица5[[#This Row],[факт4]]","v":{"$error":"#REF!"}},"2ПБ10-1",1.58,null,null,{"$f":"SUMPRODUCT(--(#REF!=$Y$5),--(#REF!=Y7),#REF!)","v":{"$error":"#REF!"}},{"$f":"Таблица5[[#This Row],[план5]]-Таблица5[[#This Row],[факт5]]","v":{"$error":"#REF!"}},"2ПБ10-1",1.58,null,null,{"$f":"SUMPRODUCT(--(#REF!=$AE$5),--(#REF!=AE7),#REF!)","v":{"$error":"#REF!"}},{"$f":"Таблица5[[#This Row],[план6]]-Таблица5[[#This Row],[факт6]]","v":{"$error":"#REF!"}},"2ПБ10-1",1.58,null,null,{"$f":"SUMPRODUCT(--(#REF!=$AK$5),--(#REF!=AK7),#REF!)","v":{"$error":"#REF!"}},{"$f":"Таблица5[[#This Row],[план7]]-Таблица5[[#This Row],[факт7]]","v":{"$error":"#REF!"}},"2ПБ10-1",1.58,null,null,{"$f":"SUMPRODUCT(--(#REF!=$AQ$5),--(#REF!=AQ7),#REF!)","v":{"$error":"#REF!"}},{"$f":"Таблица5[[#This Row],[план8]]-Таблица5[[#This Row],[факт8]]","v":{"$error":"#REF!"}},"2ПБ10-1",1.58,null,null,{"$f":"SUMPRODUCT(--(#REF!=$AW$5),--(#REF!=AW7),#REF!)","v":{"$error":"#REF!"}},{"$f":"Таблица5[[#This Row],[план9]]-Таблица5[[#This Row],[факт9]]","v":{"$error":"#REF!"}},"2ПБ10-1",1.58,null,null,{"$f":"SUMPRODUCT(--(#REF!=$BC$5),--(#REF!=BC7),#REF!)","v":{"$error":"#REF!"}},{"$f":"Таблица5[[#This Row],[план10]]-Таблица5[[#This Row],[факт10]]","v":{"$error":"#REF!"}},null,null,null,null,null,null,null,null,null,null,null,null,null,null,null,null,null,null,null,null,null,null,null,null,null,null,null,null,null,null,null,null,null,null,null,null,null,null,null,null,null,null,null,null,null,null,null,null,null,null,null,null,null,null,null,null,null,null,null,null,null,null,null,"петя",22]
["2ПБ10-1",1.58,null,null,{"$f":"SUMPRODUCT(--(#REF!=$A$5),--(#REF!=A8),#REF!)","v":{"$error":"#REF!"}},{"$f":"Таблица5[[#This Row],[план]]-Таблица5[[#This Row],[факт]]","v":{"$error":"#REF!"}},12,2,7,null,{"$f":"SUMPRODUCT(--(#REF!=$G$5),--(#REF!=G8),#REF!)","v":{"$error":"#REF!"}},{"$f":"Таблица5[[#This Row],[план2]]-Таблица5[[#This Row],[факт2]]","v":{"$error":"#REF!"}},"2ПБ13-1-п",0.54,null,null,{"$f":"SUMPRODUCT(--(#REF!=$M$5),--(#REF!=M8),#REF!)","v":{"$error":"#REF!"}},{"$f":"Таблица5[[#This Row],[план3]]-Таблица5[[#This Row],[факт3]]","v":{"$error":"#REF!"}},"2ПБ13-1-п",0.54,null,null,{"$f":"SUMPRODUCT(--(#REF!=$S$5),--(#REF!=S8),#REF!)","v":{"$error":"#REF!"}},{"$f":"Таблица5[[#This Row],[план4]]-Таблица5[[#This Row],[факт4]]","v":{"$error":"#REF!"}},"2ПБ13-1-п",0.54,null,null,{"$f":"SUMPRODUCT(--(#REF!=$Y$5),--(#REF!=Y8),#REF!)","v":{"$error":"#REF!"}},{"$f":"Таблица5[[#This Row],[план5]]-Таблица5[[#This Row],[факт5]]","v":{"$error":"#REF!"}},"2ПБ13-1-п",0.54,null,null,{"$f":"SUMPRODUCT(--(#REF!=$AE$5),--(#REF!=AE8),#REF!)","v":{"$error":"#REF!"}},{"$f":"Таблица5[[#This Row],[план6]]-Таблица5[[#This Row],[факт6]]","v":{"$error":"#REF!"}},"2ПБ13-1-п",0.54,null,null,{"$f":"SUMPRODUCT(--(#REF!=$AK$5),--(#REF!=AK8),#REF!)","v":{"$error":"#REF!"}},{"$f":"Таблица5[[#This Row],[план7]]-Таблица5[[#This Row],[факт7]]","v":{"$error":"#REF!"}},"2ПБ13-1-п",0.54,null,null,{"$f":"SUMPRODUCT(--(#REF!=$AQ$5),--(#REF!=AQ8),#REF!)","v":{"$error":"#REF!"}},{"$f":"Таблица5[[#This Row],[план8]]-Таблица5[[#This Row],[факт8]]","v":{"$error":"#REF!"}},"2ПБ13-1-п",0.54,null,null,{"$f":"SUMPRODUCT(--(#REF!=$AW$5),--(#REF!=AW8),#REF!)","v":{"$error":"#REF!"}},{"$f":"Таблица5[[#This Row],[план9]]-Таблица5[[#This Row],[факт9]]","v":{"$error":"#REF!"}},"2ПБ13-1-п",0.54,null,null,{"$f":"SUMPRODUCT(--(#REF!=$BC$5),--(#REF!=BC8),#REF!)","v":{"$error":"#REF!"}},{"$f":"Таблица5[[#This Row],[план10]]-Таблица5[[#This Row],[факт10]]","v":{"$error":"#REF!"}},null,null,null,null,null,null,null,null,null,null,null,null,null,null,null,null,null,null,null,null,null,null,null,null,null,null,null,null,null,null,null,null,null,null,null,null,null,null,null,null,null,null,null,null,null,null,null,null,null,null,null,null,null,null,null,null,null,null,null,null,null,null,null,"ПК 27-12-8",1.01]
["2ПБ13-1-п",0.54,null,null,{"$f":"SUMPRODUCT(--(#REF!=$A$5),--(#REF!=A9),#REF!)","v":{"$error":"#REF!"}},{"$f":"Таблица5[[#This Row],[план]]-Таблица5[[#This Row],[факт]]","v":{"$error":"#REF!"}},"2ПБ10-1",1.58,null,null,{"$f":"SUMPRODUCT(--(#REF!=$G$5),--(#REF!=G9),#REF!)","v":{"$error":"#REF!"}},{"$f":"Таблица5[[#This Row],[план2]]-Таблица5[[#This Row],[факт2]]","v":{"$error":"#REF!"}},"кирпичный ",2,null,null,{"$f":"SUMPRODUCT(--(#REF!=$M$5),--(#REF!=M9),#REF!)","v":{"$error":"#REF!"}},{"$f":"Таблица5[[#This Row],[план3]]-Таблица5[[#This Row],[факт3]]","v":{"$error":"#REF!"}},"кирпичный ",2,null,null,{"$f":"SUMPRODUCT(--(#REF!=$S$5),--(#REF!=S9),#REF!)","v":{"$error":"#REF!"}},{"$f":"Таблица5[[#This Row],[план4]]-Таблица5[[#This Row],[факт4]]","v":{"$error":"#REF!"}},"ПК 42-15-8",2.02,null,null,{"$f":"SUMPRODUCT(--(#REF!=$Y$5),--(#REF!=Y9),#REF!)","v":{"$error":"#REF!"}},{"$f":"Таблица5[[#This Row],[план5]]-Таблица5[[#This Row],[факт5]]","v":{"$error":"#REF!"}},"ПК56.12-10",3.36,null,null,{"$f":"SUMPRODUCT(--(#REF!=$AE$5),--(#REF!=AE9),#REF!)","v":{"$error":"#REF!"}},{"$f":"Таблица5[[#This Row],[план6]]-Таблица5[[#This Row],[факт6]]","v":{"$error":"#REF!"}},"кирпич крачный",2,null,null,{"$f":"SUMPRODUCT(--(#REF!=$AK$5),--(#REF!=AK9),#REF!)","v":{"$error":"#REF!"}},{"$f":"Таблица5[[#This Row],[план7]]-Таблица5[[#This Row],[факт7]]","v":{"$error":"#REF!"}},"кирпичный ",2,null,null,{"$f":"SUMPRODUCT(--(#REF!=$AQ$5),--(#REF!=AQ9),#REF!)","v":{"$error":"#REF!"}},{"$f":"Таблица5[[#This Row],[план8]]-Таблица5[[#This Row],[факт8]]","v":{"$error":"#REF!"}},"кирпичный ",2,null,null,{"$f":"SUMPRODUCT(--(#REF!=$AW$5),--(#REF!=AW9),#REF!)","v":{"$error":"#REF!"}},{"$f":"Таблица5[[#This Row],[план9]]-Таблица5[[#This Row],[факт9]]","v":{"$error":"#REF!"}},"кирпичный ",2,null,null,{"$f":"SUMPRODUCT(--(#REF!=$BC$5),--(#REF!=BC9),#REF!)","v":{"$error":"#REF!"}},{"$f":"Таблица5[[#This Row],[план10]]-Таблица5[[#This Row],[факт10]]","v":{"$error":"#REF!"}},null,null,null,null,null,null,null,null,null,null,null,null,null,null,null,null,null,null,null,null,null,null,null,null,null,null,null,null,null,null,null,null,null,null,null,null,null,null,null,null,null,null,null,null,null,null,null,null,null,null,null,null,null,null,null,null,null,null,null,null,null,null,null,"ПК 27-15-8",1.34]
["кирпичный ",2,null,null,{"$f":"SUMPRODUCT(--(#REF!=$A$5),--(#REF!=A10),#REF!)","v":{"$error":"#REF!"}},{"$f":"Таблица5[[#This Row],[план]]-Таблица5[[#This Row],[факт]]","v":{"$error":"#REF!"}},"2ПБ13-1-п",0.54,null,null,{"$f":"SUMPRODUCT(--(#REF!=$G$5),--(#REF!=G10),#REF!)","v":{"$error":"#REF!"}},{"$f":"Таблица5[[#This Row],[план2]]-Таблица5[[#This Row],[факт2]]","v":{"$error":"#REF!"}},"ПК 42-15-8",2.02,null,null,{"$f":"SUMPRODUCT(--(#REF!=$M$5),--(#REF!=M10),#REF!)","v":{"$error":"#REF!"}},{"$f":"Таблица5[[#This Row],[план3]]-Таблица5[[#This Row],[факт3]]","v":{"$error":"#REF!"}},"ПК27.12-10",1.58,null,null,{"$f":"SUMPRODUCT(--(#REF!=$S$5),--(#REF!=S10),#REF!)","v":{"$error":"#REF!"}},{"$f":"Таблица5[[#This Row],[план4]]-Таблица5[[#This Row],[факт4]]","v":{"$error":"#REF!"}},"ПК 48-12-8",1.73,null,null,{"$f":"SUMPRODUCT(--(#REF!=$Y$5),--(#REF!=Y10),#REF!)","v":{"$error":"#REF!"}},{"$f":"Таблица5[[#This Row],[план5]]-Таблица5[[#This Row],[факт5]]","v":{"$error":"#REF!"}},"ФБС12.4.3-т",3.36,null,null,{"$f":"SUMPRODUCT(--(#REF!=$AE$5),--(#REF!=AE10),#REF!)","v":{"$error":"#REF!"}},{"$f":"Таблица5[[#This Row],[план6]]-Таблица5[[#This Row],[факт6]]","v":{"$error":"#REF!"}},"кирпичный ",2,null,null,{"$f":"SUMPRODUCT(--(#REF!=$AK$5),--(#REF!=AK10),#REF!)","v":{"$error":"#REF!"}},{"$f":"Таблица5[[#This Row],[план7]]-Таблица5[[#This Row],[факт7]]","v":{"$error":"#REF!"}},"ПК27.12-10",1.58,null,null,{"$f":"SUMPRODUCT(--(#REF!=$AQ$5),--(#REF!=AQ10),#REF!)","v":{"$error":"#REF!"}},{"$f":"Таблица5[[#This Row],[план8]]-Таблица5[[#This Row],[факт8]]","v":{"$error":"#REF!"}},"петя",22,null,null,{"$f":"SUMPRODUCT(--(#REF!=$AW$5),--(#REF!=AW10),#REF!)","v":{"$error":"#REF!"}},{"$f":"Таблица5[[#This Row],[план9]]-Таблица5[[#This Row],[факт9]]","v":{"$error":"#REF!"}},"ПК 36-12-8",1.32,null,null,{"$f":"SUMPRODUCT(--(#REF!=$BC$5),--(#REF!=BC10),#REF!)","v":{"$error":"#REF!"}},{"$f":"Таблица5[[#This Row],[план10]]-Таблица5[[#This Row],[факт10]]","v":{"$error":"#REF!"}},null,null,null,null,null,null,null,null,null,null,null,null,null,null,null,null,null,null,null,null,null,null,null,null,null,null,null,null,null,null,null,null,null,null,null,null,null,null,null,null,null,null,null,null,null,null,null,null,null,null,null,null,null,null,null,null,null,null,null,null,null,null,null,"ПК 30-12-8",1.1100000000000001]
["ПК 27-12-8",1.01,null,null,{"$f":"SUMPRODUCT(--(#REF!=$A$5),--(#REF!=A11),#REF!)","v":{"$error":"#REF!"}},{"$f":"Таблица5[[#This Row],[план]]-Таблица5[[#This Row],[факт]]","v":{"$error":"#REF!"}},"кирпичный ",2,null,null,{"$f":"SUMPRODUCT(--(#REF!=$G$5),--(#REF!=G11),#REF!)","v":{"$error":"#REF!"}},{"$f":"Таблица5[[#This Row],[план2]]-Таблица5[[#This Row],[факт2]]","v":{"$error":"#REF!"}},"ПК 48-12-8",1.73,null,null,{"$f":"SUMPRODUCT(--(#REF!=$M$5),--(#REF!=M11),#REF!)","v":{"$error":"#REF!"}},{"$f":"Таблица5[[#This Row],[план3]]-Таблица5[[#This Row],[факт3]]","v":{"$error":"#REF!"}},"ПК56.12-10",3.36,null,null,{"$f":"SUMPRODUCT(--(#REF!=$S$5),--(#REF!=S11),#REF!)","v":{"$error":"#REF!"}},{"$f":"Таблица5[[#This Row],[план4]]-Таблица5[[#This Row],[факт4]]","v":{"$error":"#REF!"}},"ПК 48-15-8",2.25,null,null,{"$f":"SUMPRODUCT(--(#REF!=$Y$5),--(#REF!=Y11),#REF!)","v":{"$error":"#REF!"}},{"$f":"Таблица5[[#This Row],[план5]]-Таблица5[[#This Row],[факт5]]","v":{"$error":"#REF!"}},"ФБС12.5.6-т",0.43,null,null,{"$f":"SUMPRODUCT(--(#REF!=$AE$5),--(#REF!=AE11),#REF!)","v":{"$error":"#REF!"}},{"$f":"Таблица5[[#This Row],[план6]]-Таблица5[[#This Row],[факт6]]","v":{"$error":"#REF!"}},"ПК27.12-10",1.58,null,null,{"$f":"SUMPRODUCT(--(#REF!=$AK$5),--(#REF!=AK11),#REF!)","v":{"$error":"#REF!"}},{"$f":"Таблица5[[#This Row],[план7]]-Таблица5[[#This Row],[факт7]]","v":{"$error":"#REF!"}},"ПК56.12-10",3.36,null,null,{"$f":"SUMPRODUCT(--(#REF!=$AQ$5),--(#REF!=AQ11),#REF!)","v":{"$error":"#REF!"}},{"$f":"Таблица5[[#This Row],[план8]]-Таблица5[[#This Row],[факт8]]","v":{"$error":"#REF!"}},"ПК27.12-10",1.58,null,null,{"$f":"SUMPRODUCT(--(#REF!=$AW$5),--(#REF!=AW11),#REF!)","v":{"$error":"#REF!"}},{"$f":"Таблица5[[#This Row],[план9]]-Таблица5[[#This Row],[факт9]]","v":{"$error":"#REF!"}},"ПК 36-15-8",1.75,null,null,{"$f":"SUMPRODUCT(--(#REF!=$BC$5),--(#REF!=BC11),#REF!)","v":{"$error":"#REF!"}},{"$f":"Таблица5[[#This Row],[план10]]-Таблица5[[#This Row],[факт10]]","v":{"$error":"#REF!"}},null,null,null,null,null,null,null,null,null,null,null,null,null,null,null,null,null,null,null,null,null,null,null,null,null,null,null,null,null,null,null,null,null,null,null,null,null,null,null,null,null,null,null,null,null,null,null,null,null,null,null,null,null,null,null,null,null,null,null,null,null,null,null,"ПК 30-15-8",1.47]
["ПК 27-15-8",1.34,null,null,{"$f":"SUMPRODUCT(--(#REF!=$A$5),--(#REF!=A12),#REF!)","v":{"$error":"#REF!"}},{"$f":"Таблица5[[#This Row],[план]]-Таблица5[[#This Row],[факт]]","v":{"$error":"#REF!"}},"ПК 72-15-8",3.41,null,null,{"$f":"SUMPRODUCT(--(#REF!=$G$5),--(#REF!=G12),#REF!)","v":{"$error":"#REF!"}},{"$f":"Таблица5[[#This Row],[план2]]-Таблица5[[#This Row],[факт2]]","v":{"$error":"#REF!"}},"ПК 48-15-8",2.25,null,null,{"$f":"SUMPRODUCT(--(#REF!=$M$5),--(#REF!=M12),#REF!)","v":{"$error":"#REF!"}},{"$f":"Таблица5[[#This Row],[план3]]-Таблица5[[#This Row],[факт3]]","v":{"$error":"#REF!"}},"ФБВ9.5.6-т",0.54,null,null,{"$f":"SUMPRODUCT(--(#REF!=$S$5),--(#REF!=S12),#REF!)","v":{"$error":"#REF!"}},{"$f":"Таблица5[[#This Row],[план4]]-Таблица5[[#This Row],[факт4]]","v":{"$error":"#REF!"}},"ПК 51-12-8",1.83,null,null,{"$f":"SUMPRODUCT(--(#REF!=$Y$5),--(#REF!=Y12),#REF!)","v":{"$error":"#REF!"}},{"$f":"Таблица5[[#This Row],[план5]]-Таблица5[[#This Row],[факт5]]","v":{"$error":"#REF!"}},"ФБС12.6.6-т",0.54,null,null,{"$f":"SUMPRODUCT(--(#REF!=$AE$5),--(#REF!=AE12),#REF!)","v":{"$error":"#REF!"}},{"$f":"Таблица5[[#This Row],[план6]]-Таблица5[[#This Row],[факт6]]","v":{"$error":"#REF!"}},"ПК56.12-10",3.36,null,null,{"$f":"SUMPRODUCT(--(#REF!=$AK$5),--(#REF!=AK12),#REF!)","v":{"$error":"#REF!"}},{"$f":"Таблица5[[#This Row],[план7]]-Таблица5[[#This Row],[факт7]]","v":{"$error":"#REF!"}},"ФБВ9.5.6-т",0.54,null,null,{"$f":"SUMPRODUCT(--(#REF!=$AQ$5),--(#REF!=AQ12),#REF!)","v":{"$error":"#REF!"}},{"$f":"Таблица5[[#This Row],[план8]]-Таблица5[[#This Row],[факт8]]","v":{"$error":"#REF!"}},"ПК56.12-10",3.36,null,null,{"$f":"SUMPRODUCT(--(#REF!=$AW$5),--(#REF!=AW12),#REF!)","v":{"$error":"#REF!"}},{"$f":"Таблица5[[#This Row],[план9]]-Таблица5[[#This Row],[факт9]]","v":{"$error":"#REF!"}},"ПК 42-12-8",1.53,null,null,{"$f":"SUMPRODUCT(--(#REF!=$BC$5),--(#REF!=BC12),#REF!)","v":{"$error":"#REF!"}},{"$f":"Таблица5[[#This Row],[план10]]-Таблица5[[#This Row],[факт10]]","v":{"$error":"#REF!"}},null,null,null,null,null,null,null,null,null,null,null,null,null,null,null,null,null,null,null,null,null,null,null,null,null,null,null,null,null,null,null,null,null,null,null,null,null,null,null,null,null,null,null,null,null,null,null,null,null,null,null,null,null,null,null,null,null,null,null,null,null,null,null,"ПК 36-12-8",1.32]
["ПК 30-12-8",1.1100000000000001,null,null,{"$f":"SUMPRODUCT(--(#REF!=$A$5),--(#REF!=A13),#REF!)","v":{"$error":"#REF!"}},{"$f":"Таблица5[[#This Row],[план]]-Таблица5[[#This Row],[факт]]","v":{"$error":"#REF!"}},"ПК27.12-10",1.58,7,null,{"$f":"SUMPRODUCT(--(#REF!=$G$5),--(#REF!=G13),#REF!)","v":{"$error":"#REF!"}},{"$f":"Таблица5[[#This Row],[план2]]-Таблица5[[#This Row],[факт2]]","v":{"$error":"#REF!"}},"ПК 51-12-8",1.83,null,null,{"$f":"SUMPRODUCT(--(#REF!=$M$5),--(#REF!=M13),#REF!)","v":{"$error":"#REF!"}},{"$f":"Таблица5[[#This Row],[план3]]-Таблица5[[#This Row],[факт3]]","v":{"$error":"#REF!"}},"ФБС12.4.3-т",3.36,null,null,{"$f":"SUMPRODUCT(--(#REF!=$S$5),--(#REF!=S13),#REF!)","v":{"$error":"#REF!"}},{"$f":"Таблица5[[#This Row],[план4]]-Таблица5[[#This Row],[факт4]]","v":{"$error":"#REF!"}},"ПК 51-15-8",2.4300000000000002,null,null,{"$f":"SUMPRODUCT(--(#REF!=$Y$5),--(#REF!=Y13),#REF!)","v":{"$error":"#REF!"}},{"$f":"Таблица5[[#This Row],[план5]]-Таблица5[[#This Row],[факт5]]","v":{"$error":"#REF!"}},"ФБС24.3.6-т",0.54,null,null,{"$f":"SUMPRODUCT(--(#REF!=$AE$5),--(#REF!=AE13),#REF!)","v":{"$error":"#REF!"}},{"$f":"Таблица5[[#This Row],[план6]]-Таблица5[[#This Row],[факт6]]","v":{"$error":"#REF!"}},"ФБВ9.5.6-т",0.54,null,null,{"$f":"SUMPRODUCT(--(#REF!=$AK$5),--(#REF!=AK13),#REF!)","v":{"$error":"#REF!"}},{"$f":"Таблица5[[#This Row],[план7]]-Таблица5[[#This Row],[факт7]]","v":{"$error":"#REF!"}},"ФБС12.4.3-т",3.36,null,null,{"$f":"SUMPRODUCT(--(#REF!=$AQ$5),--(#REF!=AQ13),#REF!)","v":{"$error":"#REF!"}},{"$f":"Таблица5[[#This Row],[план8]]-Таблица5[[#This Row],[факт8]]","v":{"$error":"#REF!"}},"ФБВ9.5.6-т",0.54,null,null,{"$f":"SUMPRODUCT(--(#REF!=$AW$5),--(#REF!=AW13),#REF!)","v":{"$error":"#REF!"}},{"$f":"Таблица5[[#This Row],[план9]]-Таблица5[[#This Row],[факт9]]","v":{"$error":"#REF!"}},"ПК 42-15-8",2.02,null,null,{"$f":"SUMPRODUCT(--(#REF!=$BC$5),--(#REF!=BC13),#REF!)","v":{"$error":"#REF!"}},{"$f":"Таблица5[[#This Row],[план10]]-Таблица5[[#This Row],[факт10]]","v":{"$error":"#REF!"}},null,null,null,null,null,null,null,null,null,null,null,null,null,null,null,null,null,null,null,null,null,null,null,null,null,null,null,null,null,null,null,null,null,null,null,null,null,null,null,null,null,null,null,null,null,null,null,null,null,null,null,null,null,null,null,null,null,null,null,null,null,null,null,"ПК 36-15-8",1.75]
["ПК 30-15-8",1.47,null,null,{"$f":"SUMPRODUCT(--(#REF!=$A$5),--(#REF!=A14),#REF!)","v":{"$error":"#REF!"}},{"$f":"Таблица5[[#This Row],[план]]-Таблица5[[#This Row],[факт]]","v":{"$error":"#REF!"}},"ПК56.12-10",3.36,null,null,{"$f":"SUMPRODUCT(--(#REF!=$G$5),--(#REF!=G14),#REF!)","v":{"$error":"#REF!"}},{"$f":"Таблица5[[#This Row],[план2]]-Таблица5[[#This Row],[факт2]]","v":{"$error":"#REF!"}},"ПК 51-15-8",2.4300000000000002,null,null,{"$f":"SUMPRODUCT(--(#REF!=$M$5),--(#REF!=M14),#REF!)","v":{"$error":"#REF!"}},{"$f":"Таблица5[[#This Row],[план3]]-Таблица5[[#This Row],[факт3]]","v":{"$error":"#REF!"}},"ФБС12.5.6-т",0.43,null,null,{"$f":"SUMPRODUCT(--(#REF!=$S$5),--(#REF!=S14),#REF!)","v":{"$error":"#REF!"}},{"$f":"Таблица5[[#This Row],[план4]]-Таблица5[[#This Row],[факт4]]","v":{"$error":"#REF!"}},"ПК 54-12-8",1.95,null,null,{"$f":"SUMPRODUCT(--(#REF!=$Y$5),--(#REF!=Y14),#REF!)","v":{"$error":"#REF!"}},{"$f":"Таблица5[[#This Row],[план5]]-Таблица5[[#This Row],[факт5]]","v":{"$error":"#REF!"}},"ФБС24.4.6-т",3.36,null,null,{"$f":"SUMPRODUCT(--(#REF!=$AE$5),--(#REF!=AE14),#REF!)","v":{"$error":"#REF!"}},{"$f":"Таблица5[[#This Row],[план6]]-Таблица5[[#This Row],[факт6]]","v":{"$error":"#REF!"}},"ФБС12.4.3-т",3.36,null,null,{"$f":"SUMPRODUCT(--(#REF!=$AK$5),--(#REF!=AK14),#REF!)","v":{"$error":"#REF!"}},{"$f":"Таблица5[[#This Row],[план7]]-Таблица5[[#This Row],[факт7]]","v":{"$error":"#REF!"}},"ФБС12.5.6-т",0.43,null,null,{"$f":"SUMPRODUCT(--(#REF!=$AQ$5),--(#REF!=AQ14),#REF!)","v":{"$error":"#REF!"}},{"$f":"Таблица5[[#This Row],[план8]]-Таблица5[[#This Row],[факт8]]","v":{"$error":"#REF!"}},"ФБС12.4.3-т",3.36,null,null,{"$f":"SUMPRODUCT(--(#REF!=$AW$5),--(#REF!=AW14),#REF!)","v":{"$error":"#REF!"}},{"$f":"Таблица5[[#This Row],[план9]]-Таблица5[[#This Row],[факт9]]","v":{"$error":"#REF!"}},"ПК 48-12-8",1.73,null,null,{"$f":"SUMPRODUCT(--(#REF!=$BC$5),--(#REF!=BC14),#REF!)","v":{"$error":"#REF!"}},{"$f":"Таблица5[[#This Row],[план10]]-Таблица5[[#This Row],[факт10]]","v":{"$error":"#REF!"}},null,null,null,null,null,null,null,null,null,null,null,null,null,null,null,null,null,null,null,null,null,null,null,null,null,null,null,null,null,null,null,null,null,null,null,null,null,null,null,null,null,null,null,null,null,null,null,null,null,null,null,null,null,null,null,null,null,null,null,null,null,null,null,"ПК 42-12-8",1.53]
["ПК 36-12-8",1.32,null,null,{"$f":"SUMPRODUCT(--(#REF!=$A$5),--(#REF!=A15),#REF!)","v":{"$error":"#REF!"}},{"$f":"Таблица5[[#This Row],[план]]-Таблица5[[#This Row],[факт]]","v":{"$error":"#REF!"}},"ФБВ9.5.6-т",0.54,null,null,{"$f":"SUMPRODUCT(--(#REF!=$G$5),--(#REF!=G15),#REF!)","v":{"$error":"#REF!"}},{"$f":"Таблица5[[#This Row],[план2]]-Таблица5[[#This Row],[факт2]]","v":{"$error":"#REF!"}},"ПК 54-12-8",1.95,null,null,{"$f":"SUMPRODUCT(--(#REF!=$M$5),--(#REF!=M15),#REF!)","v":{"$error":"#REF!"}},{"$f":"Таблица5[[#This Row],[план3]]-Таблица5[[#This Row],[факт3]]","v":{"$error":"#REF!"}},"ФБС12.6.6-т",0.54,null,null,{"$f":"SUMPRODUCT(--(#REF!=$S$5),--(#REF!=S15),#REF!)","v":{"$error":"#REF!"}},{"$f":"Таблица5[[#This Row],[план4]]-Таблица5[[#This Row],[факт4]]","v":{"$error":"#REF!"}},"ПК 54-15-8",2.58,null,null,{"$f":"SUMPRODUCT(--(#REF!=$Y$5),--(#REF!=Y15),#REF!)","v":{"$error":"#REF!"}},{"$f":"Таблица5[[#This Row],[план5]]-Таблица5[[#This Row],[факт5]]","v":{"$error":"#REF!"}},"ФБС24.5.6-т",1.58,null,null,{"$f":"SUMPRODUCT(--(#REF!=$AE$5),--(#REF!=AE15),#REF!)","v":{"$error":"#REF!"}},{"$f":"Таблица5[[#This Row],[план6]]-Таблица5[[#This Row],[факт6]]","v":{"$error":"#REF!"}},"ФБС12.5.6-т",0.43,null,null,{"$f":"SUMPRODUCT(--(#REF!=$AK$5),--(#REF!=AK15),#REF!)","v":{"$error":"#REF!"}},{"$f":"Таблица5[[#This Row],[план7]]-Таблица5[[#This Row],[факт7]]","v":{"$error":"#REF!"}},"ФБС12.6.6-т",0.54,null,null,{"$f":"SUMPRODUCT(--(#REF!=$AQ$5),--(#REF!=AQ15),#REF!)","v":{"$error":"#REF!"}},{"$f":"Таблица5[[#This Row],[план8]]-Таблица5[[#This Row],[факт8]]","v":{"$error":"#REF!"}},"ФБС12.5.6-т",0.43,null,null,{"$f":"SUMPRODUCT(--(#REF!=$AW$5),--(#REF!=AW15),#REF!)","v":{"$error":"#REF!"}},{"$f":"Таблица5[[#This Row],[план9]]-Таблица5[[#This Row],[факт9]]","v":{"$error":"#REF!"}},"ПК 48-15-8",2.25,null,null,{"$f":"SUMPRODUCT(--(#REF!=$BC$5),--(#REF!=BC15),#REF!)","v":{"$error":"#REF!"}},{"$f":"Таблица5[[#This Row],[план10]]-Таблица5[[#This Row],[факт10]]","v":{"$error":"#REF!"}},null,null,null,null,null,null,null,null,null,null,null,null,null,null,null,null,null,null,null,null,null,null,null,null,null,null,null,null,null,null,null,null,null,null,null,null,null,null,null,null,null,null,null,null,null,null,null,null,null,null,null,null,null,null,null,null,null,null,null,null,null,null,null,"ПК 42-15-8",2.02]
["ПК 36-15-8",1.75,null,null,{"$f":"SUMPRODUCT(--(#REF!=$A$5),--(#REF!=A16),#REF!)","v":{"$error":"#REF!"}},{"$f":"Таблица5[[#This Row],[план]]-Таблица5[[#This Row],[факт]]","v":{"$error":"#REF!"}},"ФБС12.4.3-т",3.36,null,null,{"$f":"SUMPRODUCT(--(#REF!=$G$5),--(#REF!=G16),#REF!)","v":{"$error":"#REF!"}},{"$f":"Таблица5[[#This Row],[план2]]-Таблица5[[#This Row],[факт2]]","v":{"$error":"#REF!"}},"ПК 54-15-8",2.58,null,null,{"$f":"SUMPRODUCT(--(#REF!=$M$5),--(#REF!=M16),#REF!)","v":{"$error":"#REF!"}},{"$f":"Таблица5[[#This Row],[план3]]-Таблица5[[#This Row],[факт3]]","v":{"$error":"#REF!"}},"ФБС24.3.6-т",0.54,null,null,{"$f":"SUMPRODUCT(--(#REF!=$S$5),--(#REF!=S16),#REF!)","v":{"$error":"#REF!"}},{"$f":"Таблица5[[#This Row],[план4]]-Таблица5[[#This Row],[факт4]]","v":{"$error":"#REF!"}},"ПК 57-10-8",1.65,null,null,{"$f":"SUMPRODUCT(--(#REF!=$Y$5),--(#REF!=Y16),#REF!)","v":{"$error":"#REF!"}},{"$f":"Таблица5[[#This Row],[план5]]-Таблица5[[#This Row],[факт5]]","v":{"$error":"#REF!"}},null,null,null,null,{"$f":"SUMPRODUCT(--(#REF!=$AE$5),--(#REF!=AE16),#REF!)","v":{"$error":"#REF!"}},{"$f":"Таблица5[[#This Row],[план6]]-Таблица5[[#This Row],[факт6]]","v":{"$error":"#REF!"}},"ФБС12.6.6-т",0.54,null,null,{"$f":"SUMPRODUCT(--(#REF!=$AK$5),--(#REF!=AK16),#REF!)","v":{"$error":"#REF!"}},{"$f":"Таблица5[[#This Row],[план7]]-Таблица5[[#This Row],[факт7]]","v":{"$error":"#REF!"}},"ФБС24.3.6-т",0.54,null,null,{"$f":"SUMPRODUCT(--(#REF!=$AQ$5),--(#REF!=AQ16),#REF!)","v":{"$error":"#REF!"}},{"$f":"Таблица5[[#This Row],[план8]]-Таблица5[[#This Row],[факт8]]","v":{"$error":"#REF!"}},"ФБС12.6.6-т",0.54,null,null,{"$f":"SUMPRODUCT(--(#REF!=$AW$5),--(#REF!=AW16),#REF!)","v":{"$error":"#REF!"}},{"$f":"Таблица5[[#This Row],[план9]]-Таблица5[[#This Row],[факт9]]","v":{"$error":"#REF!"}},"ПК 51-12-8",1.83,null,null,{"$f":"SUMPRODUCT(--(#REF!=$BC$5),--(#REF!=BC16),#REF!)","v":{"$error":"#REF!"}},{"$f":"Таблица5[[#This Row],[план10]]-Таблица5[[#This Row],[факт10]]","v":{"$error":"#REF!"}},null,null,null,null,null,null,null,null,null,null,null,null,null,null,null,null,null,null,null,null,null,null,null,null,null,null,null,null,null,null,null,null,null,null,null,null,null,null,null,null,null,null,null,null,null,null,null,null,null,null,null,null,null,null,null,null,null,null,null,null,null,null,null,"ПК 48-12-8",1.73]
[null,null,null,null,{"$f":"SUMPRODUCT(--(#REF!=$A$5),--(#REF!=A17),#REF!)","v":{"$error":"#REF!"}},{"$f":"Таблица5[[#This Row],[план]]-Таблица5[[#This Row],[факт]]","v":{"$error":"#REF!"}},"ФБС12.5.6-т",0.43,null,null,{"$f":"SUMPRODUCT(--(#REF!=$G$5),--(#REF!=G17),#REF!)","v":{"$error":"#REF!"}},{"$f":"Таблица5[[#This Row],[план2]]-Таблица5[[#This Row],[факт2]]","v":{"$error":"#REF!"}},"ПК 57-10-8",1.65,null,null,{"$f":"SUMPRODUCT(--(#REF!=$M$5),--(#REF!=M17),#REF!)","v":{"$error":"#REF!"}},{"$f":"Таблица5[[#This Row],[план3]]-Таблица5[[#This Row],[факт3]]","v":{"$error":"#REF!"}},"ФБС24.4.6-т",3.36,null,null,{"$f":"SUMPRODUCT(--(#REF!=$S$5),--(#REF!=S17),#REF!)","v":{"$error":"#REF!"}},{"$f":"Таблица5[[#This Row],[план4]]-Таблица5[[#This Row],[факт4]]","v":{"$error":"#REF!"}},null,null,null,null,{"$f":"SUMPRODUCT(--(#REF!=$Y$5),--(#REF!=Y17),#REF!)","v":{"$error":"#REF!"}},{"$f":"Таблица5[[#This Row],[план5]]-Таблица5[[#This Row],[факт5]]","v":{"$error":"#REF!"}},null,null,null,null,{"$f":"SUMPRODUCT(--(#REF!=$AE$5),--(#REF!=AE17),#REF!)","v":{"$error":"#REF!"}},{"$f":"Таблица5[[#This Row],[план6]]-Таблица5[[#This Row],[факт6]]","v":{"$error":"#REF!"}},"ФБС24.3.6-т",0.54,null,null,{"$f":"SUMPRODUCT(--(#REF!=$AK$5),--(#REF!=AK17),#REF!)","v":{"$error":"#REF!"}},{"$f":"Таблица5[[#This Row],[план7]]-Таблица5[[#This Row],[факт7]]","v":{"$error":"#REF!"}},"ФБС24.4.6-т",3.36,null,null,{"$f":"SUMPRODUCT(--(#REF!=$AQ$5),--(#REF!=AQ17),#REF!)","v":{"$error":"#REF!"}},{"$f":"Таблица5[[#This Row],[план8]]-Таблица5[[#This Row],[факт8]]","v":{"$error":"#REF!"}},"ФБС24.3.6-т",0.54,null,null,{"$f":"SUMPRODUCT(--(#REF!=$AW$5),--(#REF!=AW17),#REF!)","v":{"$error":"#REF!"}},{"$f":"Таблица5[[#This Row],[план9]]-Таблица5[[#This Row],[факт9]]","v":{"$error":"#REF!"}},"ПК 51-15-8",2.4300000000000002,null,null,{"$f":"SUMPRODUCT(--(#REF!=$BC$5),--(#REF!=BC17),#REF!)","v":{"$error":"#REF!"}},{"$f":"Таблица5[[#This Row],[план10]]-Таблица5[[#This Row],[факт10]]","v":{"$error":"#REF!"}},null,null,null,null,null,null,null,null,null,null,null,null,null,null,null,null,null,null,null,null,null,null,null,null,null,null,null,null,null,null,null,null,null,null,null,null,null,null,null,null,null,null,null,null,null,null,null,null,null,null,null,null,null,null,null,null,null,null,null,null,null,null,null,"ПК 48-15-8",2.25]
[null,null,null,null,{"$f":"SUMPRODUCT(--(#REF!=$A$5),--(#REF!=A18),#REF!)","v":{"$error":"#REF!"}},{"$f":"Таблица5[[#This Row],[план]]-Таблица5[[#This Row],[факт]]","v":{"$error":"#REF!"}},"ФБС12.6.6-т",0.54,null,null,{"$f":"SUMPRODUCT(--(#REF!=$G$5),--(#REF!=G18),#REF!)","v":{"$error":"#REF!"}},{"$f":"Таблица5[[#This Row],[план2]]-Таблица5[[#This Row],[факт2]]","v":{"$error":"#REF!"}},"ПК 57-12-8",1.95,null,null,{"$f":"SUMPRODUCT(--(#REF!=$M$5),--(#REF!=M18),#REF!)","v":{"$error":"#REF!"}},{"$f":"Таблица5[[#This Row],[план3]]-Таблица5[[#This Row],[факт3]]","v":{"$error":"#REF!"}},"ФБС24.5.6-т",1.58,null,null,{"$f":"SUMPRODUCT(--(#REF!=$S$5),--(#REF!=S18),#REF!)","v":{"$error":"#REF!"}},{"$f":"Таблица5[[#This Row],[план4]]-Таблица5[[#This Row],[факт4]]","v":{"$error":"#REF!"}},null,null,null,null,{"$f":"SUMPRODUCT(--(#REF!=$Y$5),--(#REF!=Y18),#REF!)","v":{"$error":"#REF!"}},{"$f":"Таблица5[[#This Row],[план5]]-Таблица5[[#This Row],[факт5]]","v":{"$error":"#REF!"}},null,null,null,null,{"$f":"SUMPRODUCT(--(#REF!=$AE$5),--(#REF!=AE18),#REF!)","v":{"$error":"#REF!"}},{"$f":"Таблица5[[#This Row],[план6]]-Таблица5[[#This Row],[факт6]]","v":{"$error":"#REF!"}},"ФБС24.4.6-т",3.36,null,null,{"$f":"SUMPRODUCT(--(#REF!=$AK$5),--(#REF!=AK18),#REF!)","v":{"$error":"#REF!"}},{"$f":"Таблица5[[#This Row],[план7]]-Таблица5[[#This Row],[факт7]]","v":{"$error":"#REF!"}},"ФБС24.5.6-т",1.58,null,null,{"$f":"SUMPRODUCT(--(#REF!=$AQ$5),--(#REF!=AQ18),#REF!)","v":{"$error":"#REF!"}},{"$f":"Таблица5[[#This Row],[план8]]-Таблица5[[#This Row],[факт8]]","v":{"$error":"#REF!"}},"ФБС24.4.6-т",3.36,null,null,{"$f":"SUMPRODUCT(--(#REF!=$AW$5),--(#REF!=AW18),#REF!)","v":{"$error":"#REF!"}},{"$f":"Таблица5[[#This Row],[план9]]-Таблица5[[#This Row],[факт9]]","v":{"$error":"#REF!"}},"ПК 54-12-8",1.95,null,null,{"$f":"SUMPRODUCT(--(#REF!=$BC$5),--(#REF!=BC18),#REF!)","v":{"$error":"#REF!"}},{"$f":"Таблица5[[#This Row],[план10]]-Таблица5[[#This Row],[факт10]]","v":{"$error":"#REF!"}},null,1,null,null,null,null,null,null,null,null,null,null,null,null,null,null,null,null,null,null,null,null,null,null,null,null,null,null,null,null,null,null,null,null,null,null,null,null,null,null,null,null,null,null,null,null,null,null,null,null,null,null,null,null,null,null,null,null,null,null,null,null,null,"ПК 51-12-8",1.83]
[null,null,null,null,{"$f":"SUMPRODUCT(--(#REF!=$A$5),--(#REF!=A19),#REF!)","v":{"$error":"#REF!"}},{"$f":"Таблица5[[#This Row],[план]]-Таблица5[[#This Row],[факт]]","v":{"$error":"#REF!"}},"ФБС24.3.6-т",0.54,null,null,{"$f":"SUMPRODUCT(--(#REF!=$G$5),--(#REF!=G19),#REF!)","v":{"$error":"#REF!"}},{"$f":"Таблица5[[#This Row],[план2]]-Таблица5[[#This Row],[факт2]]","v":{"$error":"#REF!"}},null,null,null,null,{"$f":"SUMPRODUCT(--(#REF!=$M$5),--(#REF!=M19),#REF!)","v":{"$error":"#REF!"}},{"$f":"Таблица5[[#This Row],[план3]]-Таблица5[[#This Row],[факт3]]","v":{"$error":"#REF!"}},"ффф",1,null,null,{"$f":"SUMPRODUCT(--(#REF!=$S$5),--(#REF!=S19),#REF!)","v":{"$error":"#REF!"}},{"$f":"Таблица5[[#This Row],[план4]]-Таблица5[[#This Row],[факт4]]","v":{"$error":"#REF!"}},null,null,null,null,{"$f":"SUMPRODUCT(--(#REF!=$Y$5),--(#REF!=Y19),#REF!)","v":{"$error":"#REF!"}},{"$f":"Таблица5[[#This Row],[план5]]-Таблица5[[#This Row],[факт5]]","v":{"$error":"#REF!"}},null,null,null,null,{"$f":"SUMPRODUCT(--(#REF!=$AE$5),--(#REF!=AE19),#REF!)","v":{"$error":"#REF!"}},{"$f":"Таблица5[[#This Row],[план6]]-Таблица5[[#This Row],[факт6]]","v":{"$error":"#REF!"}},"ФБС24.5.6-т",1.58,null,null,{"$f":"SUMPRODUCT(--(#REF!=$AK$5),--(#REF!=AK19),#REF!)","v":{"$error":"#REF!"}},{"$f":"Таблица5[[#This Row],[план7]]-Таблица5[[#This Row],[факт7]]","v":{"$error":"#REF!"}},"ффф",1,null,null,{"$f":"SUMPRODUCT(--(#REF!=$AQ$5),--(#REF!=AQ19),#REF!)","v":{"$error":"#REF!"}},{"$f":"Таблица5[[#This Row],[план8]]-Таблица5[[#This Row],[факт8]]","v":{"$error":"#REF!"}},"ФБС24.5.6-т",1.58,null,null,{"$f":"SUMPRODUCT(--(#REF!=$AW$5),--(#REF!=AW19),#REF!)","v":{"$error":"#REF!"}},{"$f":"Таблица5[[#This Row],[план9]]-Таблица5[[#This Row],[факт9]]","v":{"$error":"#REF!"}},"ПК 54-15-8",2.58,null,null,{"$f":"SUMPRODUCT(--(#REF!=$BC$5),--(#REF!=BC19),#REF!)","v":{"$error":"#REF!"}},{"$f":"Таблица5[[#This Row],[план10]]-Таблица5[[#This Row],[факт10]]","v":{"$error":"#REF!"}},null,1,null,null,null,null,null,null,null,null,null,null,null,null,null,null,null,null,null,null,null,null,null,null,null,null,null,null,null,null,null,null,null,null,null,null,null,null,null,null,null,null,null,null,null,null,null,null,null,null,null,null,null,null,null,null,null,null,null,null,null,null,null,"ПК 51-15-8",2.4300000000000002]
[null,null,null,null,{"$f":"SUMPRODUCT(--(#REF!=$A$5),--(#REF!=A20),#REF!)","v":{"$error":"#REF!"}},{"$f":"Таблица5[[#This Row],[план]]-Таблица5[[#This Row],[факт]]","v":{"$error":"#REF!"}},"ФБС24.4.6-т",3.36,null,null,{"$f":"SUMPRODUCT(--(#REF!=$G$5),--(#REF!=G20),#REF!)","v":{"$error":"#REF!"}},{"$f":"Таблица5[[#This Row],[план2]]-Таблица5[[#This Row],[факт2]]","v":{"$error":"#REF!"}},null,null,null,null,{"$f":"SUMPRODUCT(--(#REF!=$M$5),--(#REF!=M20),#REF!)","v":{"$error":"#REF!"}},{"$f":"Таблица5[[#This Row],[план3]]-Таблица5[[#This Row],[факт3]]","v":{"$error":"#REF!"}},null,null,null,null,{"$f":"SUMPRODUCT(--(#REF!=$S$5),--(#REF!=S20),#REF!)","v":{"$error":"#REF!"}},{"$f":"Таблица5[[#This Row],[план4]]-Таблица5[[#This Row],[факт4]]","v":{"$error":"#REF!"}},null,null,null,null,{"$f":"SUMPRODUCT(--(#REF!=$Y$5),--(#REF!=Y20),#REF!)","v":{"$error":"#REF!"}},{"$f":"Таблица5[[#This Row],[план5]]-Таблица5[[#This Row],[факт5]]","v":{"$error":"#REF!"}},null,null,null,null,{"$f":"SUMPRODUCT(--(#REF!=$AE$5),--(#REF!=AE20),#REF!)","v":{"$error":"#REF!"}},{"$f":"Таблица5[[#This Row],[план6]]-Таблица5[[#This Row],[факт6]]","v":{"$error":"#REF!"}},"ффф",1,null,null,{"$f":"SUMPRODUCT(--(#REF!=$AK$5),--(#REF!=AK20),#REF!)","v":{"$error":"#REF!"}},{"$f":"Таблица5[[#This Row],[план7]]-Таблица5[[#This Row],[факт7]]","v":{"$error":"#REF!"}},null,null,null,null,{"$f":"SUMPRODUCT(--(#REF!=$AQ$5),--(#REF!=AQ20),#REF!)","v":{"$error":"#REF!"}},{"$f":"Таблица5[[#This Row],[план8]]-Таблица5[[#This Row],[факт8]]","v":{"$error":"#REF!"}},"ффф",1,null,null,{"$f":"SUMPRODUCT(--(#REF!=$AW$5),--(#REF!=AW20),#REF!)","v":{"$error":"#REF!"}},{"$f":"Таблица5[[#This Row],[план9]]-Таблица5[[#This Row],[факт9]]","v":{"$error":"#REF!"}},"ПК 57-10-8",1.65,null,null,{"$f":"SUMPRODUCT(--(#REF!=$BC$5),--(#REF!=BC20),#REF!)","v":{"$error":"#REF!"}},{"$f":"Таблица5[[#This Row],[план10]]-Таблица5[[#This Row],[факт10]]","v":{"$error":"#REF!"}},null,1,null,null,null,null,null,null,null,null,null,null,null,null,null,null,null,null,null,null,null,null,null,null,null,null,null,null,null,null,null,null,null,null,null,null,null,null,null,null,null,null,null,null,null,null,null,null,null,null,null,null,null,null,null,null,null,null,null,null,null,null,null,"ПК 54-12-8",1.95]
[null,null,null,null,{"$f":"SUMPRODUCT(--(#REF!=$A$5),--(#REF!=A21),#REF!)","v":{"$error":"#REF!"}},{"$f":"Таблица5[[#This Row],[план]]-Таблица5[[#This Row],[факт]]","v":{"$error":"#REF!"}},"ФБС24.5.6-т",1.58,null,null,{"$f":"SUMPRODUCT(--(#REF!=$G$5),--(#REF!=G21),#REF!)","v":{"$error":"#REF!"}},{"$f":"Таблица5[[#This Row],[план2]]-Таблица5[[#This Row],[факт2]]","v":{"$error":"#REF!"}},null,null,null,null,{"$f":"SUMPRODUCT(--(#REF!=$M$5),--(#REF!=M21),#REF!)","v":{"$error":"#REF!"}},{"$f":"Таблица5[[#This Row],[план3]]-Таблица5[[#This Row],[факт3]]","v":{"$error":"#REF!"}},null,null,null,null,{"$f":"SUMPRODUCT(--(#REF!=$S$5),--(#REF!=S21),#REF!)","v":{"$error":"#REF!"}},{"$f":"Таблица5[[#This Row],[план4]]-Таблица5[[#This Row],[факт4]]","v":{"$error":"#REF!"}},null,null,null,null,{"$f":"SUMPRODUCT(--(#REF!=$Y$5),--(#REF!=Y21),#REF!)","v":{"$error":"#REF!"}},{"$f":"Таблица5[[#This Row],[план5]]-Таблица5[[#This Row],[факт5]]","v":{"$error":"#REF!"}},null,null,null,null,{"$f":"SUMPRODUCT(--(#REF!=$AE$5),--(#REF!=AE21),#REF!)","v":{"$error":"#REF!"}},{"$f":"Таблица5[[#This Row],[план6]]-Таблица5[[#This Row],[факт6]]","v":{"$error":"#REF!"}},null,null,null,null,{"$f":"SUMPRODUCT(--(#REF!=$AK$5),--(#REF!=AK21),#REF!)","v":{"$error":"#REF!"}},{"$f":"Таблица5[[#This Row],[план7]]-Таблица5[[#This Row],[факт7]]","v":{"$error":"#REF!"}},null,null,null,null,{"$f":"SUMPRODUCT(--(#REF!=$AQ$5),--(#REF!=AQ21),#REF!)","v":{"$error":"#REF!"}},{"$f":"Таблица5[[#This Row],[план8]]-Таблица5[[#This Row],[факт8]]","v":{"$error":"#REF!"}},null,null,null,null,{"$f":"SUMPRODUCT(--(#REF!=$AW$5),--(#REF!=AW21),#REF!)","v":{"$error":"#REF!"}},{"$f":"Таблица5[[#This Row],[план9]]-Таблица5[[#This Row],[факт9]]","v":{"$error":"#REF!"}},null,null,null,null,{"$f":"SUMPRODUCT(--(#REF!=$BC$5),--(#REF!=BC21),#REF!)","v":{"$error":"#REF!"}},{"$f":"Таблица5[[#This Row],[план10]]-Таблица5[[#This Row],[факт10]]","v":{"$error":"#REF!"}},null,1,null,null,null,null,null,null,null,null,null,null,null,null,null,null,null,null,null,null,null,null,null,null,null,null,null,null,null,null,null,null,null,null,null,null,null,null,null,null,null,null,null,null,null,null,null,null,null,null,null,null,null,null,null,null,null,null,null,null,null,null,null,"ПК 54-15-8",2.58]
[null,null,null,null,{"$f":"SUMPRODUCT(--(#REF!=$A$5),--(#REF!=A22),#REF!)","v":{"$error":"#REF!"}},{"$f":"Таблица5[[#This Row],[план]]-Таблица5[[#This Row],[факт]]","v":{"$error":"#REF!"}},"ффф",1,null,null,{"$f":"SUMPRODUCT(--(#REF!=$G$5),--(#REF!=G22),#REF!)","v":{"$error":"#REF!"}},{"$f":"Таблица5[[#This Row],[план2]]-Таблица5[[#This Row],[факт2]]","v":{"$error":"#REF!"}},null,null,null,null,{"$f":"SUMPRODUCT(--(#REF!=$M$5),--(#REF!=M22),#REF!)","v":{"$error":"#REF!"}},{"$f":"Таблица5[[#This Row],[план3]]-Таблица5[[#This Row],[факт3]]","v":{"$error":"#REF!"}},null,null,null,null,{"$f":"SUMPRODUCT(--(#REF!=$S$5),--(#REF!=S22),#REF!)","v":{"$error":"#REF!"}},{"$f":"Таблица5[[#This Row],[план4]]-Таблица5[[#This Row],[факт4]]","v":{"$error":"#REF!"}},null,null,null,null,{"$f":"SUMPRODUCT(--(#REF!=$Y$5),--(#REF!=Y22),#REF!)","v":{"$error":"#REF!"}},{"$f":"Таблица5[[#This Row],[план5]]-Таблица5[[#This Row],[факт5]]","v":{"$error":"#REF!"}},null,null,null,null,{"$f":"SUMPRODUCT(--(#REF!=$AE$5),--(#REF!=AE22),#REF!)","v":{"$error":"#REF!"}},{"$f":"Таблица5[[#This Row],[план6]]-Таблица5[[#This Row],[факт6]]","v":{"$error":"#REF!"}},null,null,null,null,{"$f":"SUMPRODUCT(--(#REF!=$AK$5),--(#REF!=AK22),#REF!)","v":{"$error":"#REF!"}},{"$f":"Таблица5[[#This Row],[план7]]-Таблица5[[#This Row],[факт7]]","v":{"$error":"#REF!"}},null,null,null,null,{"$f":"SUMPRODUCT(--(#REF!=$AQ$5),--(#REF!=AQ22),#REF!)","v":{"$error":"#REF!"}},{"$f":"Таблица5[[#This Row],[план8]]-Таблица5[[#This Row],[факт8]]","v":{"$error":"#REF!"}},null,null,null,null,{"$f":"SUMPRODUCT(--(#REF!=$AW$5),--(#REF!=AW22),#REF!)","v":{"$error":"#REF!"}},{"$f":"Таблица5[[#This Row],[план9]]-Таблица5[[#This Row],[факт9]]","v":{"$error":"#REF!"}},null,null,null,null,{"$f":"SUMPRODUCT(--(#REF!=$BC$5),--(#REF!=BC22),#REF!)","v":{"$error":"#REF!"}},{"$f":"Таблица5[[#This Row],[план10]]-Таблица5[[#This Row],[факт10]]","v":{"$error":"#REF!"}},null,1,null,null,null,null,null,null,null,null,null,null,null,null,null,null,null,null,null,null,null,null,null,null,null,null,null,null,null,null,null,null,null,null,null,null,null,null,null,null,null,null,null,null,null,null,null,null,null,null,null,null,null,null,null,null,null,null,null,null,null,null,null,"ПК 57-10-8",1.65]
[null,null,null,null,{"$f":"SUMPRODUCT(--(#REF!=$A$5),--(#REF!=A23),#REF!)","v":{"$error":"#REF!"}},{"$f":"Таблица5[[#This Row],[план]]-Таблица5[[#This Row],[факт]]","v":{"$error":"#REF!"}},null,null,null,null,{"$f":"SUMPRODUCT(--(#REF!=$G$5),--(#REF!=G23),#REF!)","v":{"$error":"#REF!"}},{"$f":"Таблица5[[#This Row],[план2]]-Таблица5[[#This Row],[факт2]]","v":{"$error":"#REF!"}},null,null,null,null,{"$f":"SUMPRODUCT(--(#REF!=$M$5),--(#REF!=M23),#REF!)","v":{"$error":"#REF!"}},{"$f":"Таблица5[[#This Row],[план3]]-Таблица5[[#This Row],[факт3]]","v":{"$error":"#REF!"}},null,null,null,null,{"$f":"SUMPRODUCT(--(#REF!=$S$5),--(#REF!=S23),#REF!)","v":{"$error":"#REF!"}},{"$f":"Таблица5[[#This Row],[план4]]-Таблица5[[#This Row],[факт4]]","v":{"$error":"#REF!"}},null,null,null,null,{"$f":"SUMPRODUCT(--(#REF!=$Y$5),--(#REF!=Y23),#REF!)","v":{"$error":"#REF!"}},{"$f":"Таблица5[[#This Row],[план5]]-Таблица5[[#This Row],[факт5]]","v":{"$error":"#REF!"}},null,null,null,null,{"$f":"SUMPRODUCT(--(#REF!=$AE$5),--(#REF!=AE23),#REF!)","v":{"$error":"#REF!"}},{"$f":"Таблица5[[#This Row],[план6]]-Таблица5[[#This Row],[факт6]]","v":{"$error":"#REF!"}},null,null,null,null,{"$f":"SUMPRODUCT(--(#REF!=$AK$5),--(#REF!=AK23),#REF!)","v":{"$error":"#REF!"}},{"$f":"Таблица5[[#This Row],[план7]]-Таблица5[[#This Row],[факт7]]","v":{"$error":"#REF!"}},null,null,null,null,{"$f":"SUMPRODUCT(--(#REF!=$AQ$5),--(#REF!=AQ23),#REF!)","v":{"$error":"#REF!"}},{"$f":"Таблица5[[#This Row],[план8]]-Таблица5[[#This Row],[факт8]]","v":{"$error":"#REF!"}},null,null,null,null,{"$f":"SUMPRODUCT(--(#REF!=$AW$5),--(#REF!=AW23),#REF!)","v":{"$error":"#REF!"}},{"$f":"Таблица5[[#This Row],[план9]]-Таблица5[[#This Row],[факт9]]","v":{"$error":"#REF!"}},null,null,null,null,{"$f":"SUMPRODUCT(--(#REF!=$BC$5),--(#REF!=BC23),#REF!)","v":{"$error":"#REF!"}},{"$f":"Таблица5[[#This Row],[план10]]-Таблица5[[#This Row],[факт10]]","v":{"$error":"#REF!"}},null,1,null,null,null,null,null,null,null,null,null,null,null,null,null,null,null,null,null,null,null,null,null,null,null,null,null,null,null,null,null,null,null,null,null,null,null,null,null,null,null,null,null,null,null,null,null,null,null,null,null,null,null,null,null,null,null,null,null,null,null,null,null,"ПК 57-12-8",1.95]
[null,null,null,null,{"$f":"SUMPRODUCT(--(#REF!=$A$5),--(#REF!=A24),#REF!)","v":{"$error":"#REF!"}},{"$f":"Таблица5[[#This Row],[план]]-Таблица5[[#This Row],[факт]]","v":{"$error":"#REF!"}},null,null,null,null,{"$f":"SUMPRODUCT(--(#REF!=$G$5),--(#REF!=G24),#REF!)","v":{"$error":"#REF!"}},{"$f":"Таблица5[[#This Row],[план2]]-Таблица5[[#This Row],[факт2]]","v":{"$error":"#REF!"}},null,null,null,null,{"$f":"SUMPRODUCT(--(#REF!=$M$5),--(#REF!=M24),#REF!)","v":{"$error":"#REF!"}},{"$f":"Таблица5[[#This Row],[план3]]-Таблица5[[#This Row],[факт3]]","v":{"$error":"#REF!"}},null,null,null,null,{"$f":"SUMPRODUCT(--(#REF!=$S$5),--(#REF!=S24),#REF!)","v":{"$error":"#REF!"}},{"$f":"Таблица5[[#This Row],[план4]]-Таблица5[[#This Row],[факт4]]","v":{"$error":"#REF!"}},null,null,null,null,{"$f":"SUMPRODUCT(--(#REF!=$Y$5),--(#REF!=Y24),#REF!)","v":{"$error":"#REF!"}},{"$f":"Таблица5[[#This Row],[план5]]-Таблица5[[#This Row],[факт5]]","v":{"$error":"#REF!"}},null,null,null,null,{"$f":"SUMPRODUCT(--(#REF!=$AE$5),--(#REF!=AE24),#REF!)","v":{"$error":"#REF!"}},{"$f":"Таблица5[[#This Row],[план6]]-Таблица5[[#This Row],[факт6]]","v":{"$error":"#REF!"}},null,null,null,null,{"$f":"SUMPRODUCT(--(#REF!=$AK$5),--(#REF!=AK24),#REF!)","v":{"$error":"#REF!"}},{"$f":"Таблица5[[#This Row],[план7]]-Таблица5[[#This Row],[факт7]]","v":{"$error":"#REF!"}},null,null,null,null,{"$f":"SUMPRODUCT(--(#REF!=$AQ$5),--(#REF!=AQ24),#REF!)","v":{"$error":"#REF!"}},{"$f":"Таблица5[[#This Row],[план8]]-Таблица5[[#This Row],[факт8]]","v":{"$error":"#REF!"}},null,null,null,null,{"$f":"SUMPRODUCT(--(#REF!=$AW$5),--(#REF!=AW24),#REF!)","v":{"$error":"#REF!"}},{"$f":"Таблица5[[#This Row],[план9]]-Таблица5[[#This Row],[факт9]]","v":{"$error":"#REF!"}},null,null,null,null,{"$f":"SUMPRODUCT(--(#REF!=$BC$5),--(#REF!=BC24),#REF!)","v":{"$error":"#REF!"}},{"$f":"Таблица5[[#This Row],[план10]]-Таблица5[[#This Row],[факт10]]","v":{"$error":"#REF!"}},null,1,null,null,null,null,null,null,null,null,null,null,null,null,null,null,null,null,null,null,null,null,null,null,null,null,null,null,null,null,null,null,null,null,null,null,null,null,null,null,null,null,null,null,null,null,null,null,null,null,null,null,null,null,null,null,null,null,null,null,null,null,null,"ПК 72-15-8",3.41]
[null,null,null,null,{"$f":"SUMPRODUCT(--(#REF!=$A$5),--(#REF!=A25),#REF!)","v":{"$error":"#REF!"}},{"$f":"Таблица5[[#This Row],[план]]-Таблица5[[#This Row],[факт]]","v":{"$error":"#REF!"}},null,null,null,null,{"$f":"SUMPRODUCT(--(#REF!=$G$5),--(#REF!=G25),#REF!)","v":{"$error":"#REF!"}},{"$f":"Таблица5[[#This Row],[план2]]-Таблица5[[#This Row],[факт2]]","v":{"$error":"#REF!"}},null,null,null,null,{"$f":"SUMPRODUCT(--(#REF!=$M$5),--(#REF!=M25),#REF!)","v":{"$error":"#REF!"}},{"$f":"Таблица5[[#This Row],[план3]]-Таблица5[[#This Row],[факт3]]","v":{"$error":"#REF!"}},null,null,null,null,{"$f":"SUMPRODUCT(--(#REF!=$S$5),--(#REF!=S25),#REF!)","v":{"$error":"#REF!"}},{"$f":"Таблица5[[#This Row],[план4]]-Таблица5[[#This Row],[факт4]]","v":{"$error":"#REF!"}},null,null,null,null,{"$f":"SUMPRODUCT(--(#REF!=$Y$5),--(#REF!=Y25),#REF!)","v":{"$error":"#REF!"}},{"$f":"Таблица5[[#This Row],[план5]]-Таблица5[[#This Row],[факт5]]","v":{"$error":"#REF!"}},null,null,null,null,{"$f":"SUMPRODUCT(--(#REF!=$AE$5),--(#REF!=AE25),#REF!)","v":{"$error":"#REF!"}},{"$f":"Таблица5[[#This Row],[план6]]-Таблица5[[#This Row],[факт6]]","v":{"$error":"#REF!"}},null,null,null,null,{"$f":"SUMPRODUCT(--(#REF!=$AK$5),--(#REF!=AK25),#REF!)","v":{"$error":"#REF!"}},{"$f":"Таблица5[[#This Row],[план7]]-Таблица5[[#This Row],[факт7]]","v":{"$error":"#REF!"}},null,null,null,null,{"$f":"SUMPRODUCT(--(#REF!=$AQ$5),--(#REF!=AQ25),#REF!)","v":{"$error":"#REF!"}},{"$f":"Таблица5[[#This Row],[план8]]-Таблица5[[#This Row],[факт8]]","v":{"$error":"#REF!"}},null,null,null,null,{"$f":"SUMPRODUCT(--(#REF!=$AW$5),--(#REF!=AW25),#REF!)","v":{"$error":"#REF!"}},{"$f":"Таблица5[[#This Row],[план9]]-Таблица5[[#This Row],[факт9]]","v":{"$error":"#REF!"}},null,null,null,null,{"$f":"SUMPRODUCT(--(#REF!=$BC$5),--(#REF!=BC25),#REF!)","v":{"$error":"#REF!"}},{"$f":"Таблица5[[#This Row],[план10]]-Таблица5[[#This Row],[факт10]]","v":{"$error":"#REF!"}},null,1,null,null,null,null,null,null,null,null,null,null,null,null,null,null,null,null,null,null,null,null,null,null,null,null,null,null,null,null,null,null,null,null,null,null,null,null,null,null,null,null,null,null,null,null,null,null,null,null,null,null,null,null,null,null,null,null,null,null,null,null,null,"ПК27.12-10",1.58]
[null,null,null,null,{"$f":"SUMPRODUCT(--(#REF!=$A$5),--(#REF!=A26),#REF!)","v":{"$error":"#REF!"}},{"$f":"Таблица5[[#This Row],[план]]-Таблица5[[#This Row],[факт]]","v":{"$error":"#REF!"}},null,null,null,null,{"$f":"SUMPRODUCT(--(#REF!=$G$5),--(#REF!=G26),#REF!)","v":{"$error":"#REF!"}},{"$f":"Таблица5[[#This Row],[план2]]-Таблица5[[#This Row],[факт2]]","v":{"$error":"#REF!"}},null,null,null,null,{"$f":"SUMPRODUCT(--(#REF!=$M$5),--(#REF!=M26),#REF!)","v":{"$error":"#REF!"}},{"$f":"Таблица5[[#This Row],[план3]]-Таблица5[[#This Row],[факт3]]","v":{"$error":"#REF!"}},null,null,null,null,{"$f":"SUMPRODUCT(--(#REF!=$S$5),--(#REF!=S26),#REF!)","v":{"$error":"#REF!"}},{"$f":"Таблица5[[#This Row],[план4]]-Таблица5[[#This Row],[факт4]]","v":{"$error":"#REF!"}},null,null,null,null,{"$f":"SUMPRODUCT(--(#REF!=$Y$5),--(#REF!=Y26),#REF!)","v":{"$error":"#REF!"}},{"$f":"Таблица5[[#This Row],[план5]]-Таблица5[[#This Row],[факт5]]","v":{"$error":"#REF!"}},null,null,null,null,{"$f":"SUMPRODUCT(--(#REF!=$AE$5),--(#REF!=AE26),#REF!)","v":{"$error":"#REF!"}},{"$f":"Таблица5[[#This Row],[план6]]-Таблица5[[#This Row],[факт6]]","v":{"$error":"#REF!"}},null,null,null,null,{"$f":"SUMPRODUCT(--(#REF!=$AK$5),--(#REF!=AK26),#REF!)","v":{"$error":"#REF!"}},{"$f":"Таблица5[[#This Row],[план7]]-Таблица5[[#This Row],[факт7]]","v":{"$error":"#REF!"}},null,null,null,null,{"$f":"SUMPRODUCT(--(#REF!=$AQ$5),--(#REF!=AQ26),#REF!)","v":{"$error":"#REF!"}},{"$f":"Таблица5[[#This Row],[план8]]-Таблица5[[#This Row],[факт8]]","v":{"$error":"#REF!"}},null,null,null,null,{"$f":"SUMPRODUCT(--(#REF!=$AW$5),--(#REF!=AW26),#REF!)","v":{"$error":"#REF!"}},{"$f":"Таблица5[[#This Row],[план9]]-Таблица5[[#This Row],[факт9]]","v":{"$error":"#REF!"}},null,null,null,null,{"$f":"SUMPRODUCT(--(#REF!=$BC$5),--(#REF!=BC26),#REF!)","v":{"$error":"#REF!"}},{"$f":"Таблица5[[#This Row],[план10]]-Таблица5[[#This Row],[факт10]]","v":{"$error":"#REF!"}},null,1,null,null,null,null,null,null,null,null,null,null,null,null,null,null,null,null,null,null,null,null,null,null,null,null,null,null,null,null,null,null,null,null,null,null,null,null,null,null,null,null,null,null,null,null,null,null,null,null,null,null,null,null,null,null,null,null,null,null,null,null,null,"ПК56.12-10",3.36]
[null,null,null,null,{"$f":"SUMPRODUCT(--(#REF!=$A$5),--(#REF!=A27),#REF!)","v":{"$error":"#REF!"}},{"$f":"Таблица5[[#This Row],[план]]-Таблица5[[#This Row],[факт]]","v":{"$error":"#REF!"}},null,null,null,null,{"$f":"SUMPRODUCT(--(#REF!=$G$5),--(#REF!=G27),#REF!)","v":{"$error":"#REF!"}},{"$f":"Таблица5[[#This Row],[план2]]-Таблица5[[#This Row],[факт2]]","v":{"$error":"#REF!"}},null,null,null,null,{"$f":"SUMPRODUCT(--(#REF!=$M$5),--(#REF!=M27),#REF!)","v":{"$error":"#REF!"}},{"$f":"Таблица5[[#This Row],[план3]]-Таблица5[[#This Row],[факт3]]","v":{"$error":"#REF!"}},null,null,null,null,{"$f":"SUMPRODUCT(--(#REF!=$S$5),--(#REF!=S27),#REF!)","v":{"$error":"#REF!"}},{"$f":"Таблица5[[#This Row],[план4]]-Таблица5[[#This Row],[факт4]]","v":{"$error":"#REF!"}},null,null,null,null,{"$f":"SUMPRODUCT(--(#REF!=$Y$5),--(#REF!=Y27),#REF!)","v":{"$error":"#REF!"}},{"$f":"Таблица5[[#This Row],[план5]]-Таблица5[[#This Row],[факт5]]","v":{"$error":"#REF!"}},null,null,null,null,{"$f":"SUMPRODUCT(--(#REF!=$AE$5),--(#REF!=AE27),#REF!)","v":{"$error":"#REF!"}},{"$f":"Таблица5[[#This Row],[план6]]-Таблица5[[#This Row],[факт6]]","v":{"$error":"#REF!"}},null,null,null,null,{"$f":"SUMPRODUCT(--(#REF!=$AK$5),--(#REF!=AK27),#REF!)","v":{"$error":"#REF!"}},{"$f":"Таблица5[[#This Row],[план7]]-Таблица5[[#This Row],[факт7]]","v":{"$error":"#REF!"}},null,null,null,null,{"$f":"SUMPRODUCT(--(#REF!=$AQ$5),--(#REF!=AQ27),#REF!)","v":{"$error":"#REF!"}},{"$f":"Таблица5[[#This Row],[план8]]-Таблица5[[#This Row],[факт8]]","v":{"$error":"#REF!"}},null,null,null,null,{"$f":"SUMPRODUCT(--(#REF!=$AW$5),--(#REF!=AW27),#REF!)","v":{"$error":"#REF!"}},{"$f":"Таблица5[[#This Row],[план9]]-Таблица5[[#This Row],[факт9]]","v":{"$error":"#REF!"}},null,null,null,null,{"$f":"SUMPRODUCT(--(#REF!=$BC$5),--(#REF!=BC27),#REF!)","v":{"$error":"#REF!"}},{"$f":"Таблица5[[#This Row],[план10]]-Таблица5[[#This Row],[факт10]]","v":{"$error":"#REF!"}},null,1,null,null,null,null,null,null,null,null,null,null,null,null,null,null,null,null,null,null,null,null,null,null,null,null,null,null,null,null,null,null,null,null,null,null,null,null,null,null,null,null,null,null,null,null,null,null,null,null,null,null,null,null,null,null,null,null,null,null,null,null,null,"ФБВ9.5.6-т",0.54]
[null,null,null,null,{"$f":"SUMPRODUCT(--(#REF!=$A$5),--(#REF!=A28),#REF!)","v":{"$error":"#REF!"}},{"$f":"Таблица5[[#This Row],[план]]-Таблица5[[#This Row],[факт]]","v":{"$error":"#REF!"}},null,null,null,null,{"$f":"SUMPRODUCT(--(#REF!=$G$5),--(#REF!=G28),#REF!)","v":{"$error":"#REF!"}},{"$f":"Таблица5[[#This Row],[план2]]-Таблица5[[#This Row],[факт2]]","v":{"$error":"#REF!"}},null,null,null,null,{"$f":"SUMPRODUCT(--(#REF!=$M$5),--(#REF!=M28),#REF!)","v":{"$error":"#REF!"}},{"$f":"Таблица5[[#This Row],[план3]]-Таблица5[[#This Row],[факт3]]","v":{"$error":"#REF!"}},null,null,null,null,{"$f":"SUMPRODUCT(--(#REF!=$S$5),--(#REF!=S28),#REF!)","v":{"$error":"#REF!"}},{"$f":"Таблица5[[#This Row],[план4]]-Таблица5[[#This Row],[факт4]]","v":{"$error":"#REF!"}},null,null,null,null,{"$f":"SUMPRODUCT(--(#REF!=$Y$5),--(#REF!=Y28),#REF!)","v":{"$error":"#REF!"}},{"$f":"Таблица5[[#This Row],[план5]]-Таблица5[[#This Row],[факт5]]","v":{"$error":"#REF!"}},null,null,null,null,{"$f":"SUMPRODUCT(--(#REF!=$AE$5),--(#REF!=AE28),#REF!)","v":{"$error":"#REF!"}},{"$f":"Таблица5[[#This Row],[план6]]-Таблица5[[#This Row],[факт6]]","v":{"$error":"#REF!"}},null,null,null,null,{"$f":"SUMPRODUCT(--(#REF!=$AK$5),--(#REF!=AK28),#REF!)","v":{"$error":"#REF!"}},{"$f":"Таблица5[[#This Row],[план7]]-Таблица5[[#This Row],[факт7]]","v":{"$error":"#REF!"}},null,null,null,null,{"$f":"SUMPRODUCT(--(#REF!=$AQ$5),--(#REF!=AQ28),#REF!)","v":{"$error":"#REF!"}},{"$f":"Таблица5[[#This Row],[план8]]-Таблица5[[#This Row],[факт8]]","v":{"$error":"#REF!"}},null,null,null,null,{"$f":"SUMPRODUCT(--(#REF!=$AW$5),--(#REF!=AW28),#REF!)","v":{"$error":"#REF!"}},{"$f":"Таблица5[[#This Row],[план9]]-Таблица5[[#This Row],[факт9]]","v":{"$error":"#REF!"}},null,null,null,null,{"$f":"SUMPRODUCT(--(#REF!=$BC$5),--(#REF!=BC28),#REF!)","v":{"$error":"#REF!"}},{"$f":"Таблица5[[#This Row],[план10]]-Таблица5[[#This Row],[факт10]]","v":{"$error":"#REF!"}},null,11,null,null,null,null,null,null,null,null,null,null,null,null,null,null,null,null,null,null,null,null,null,null,null,null,null,null,null,null,null,null,null,null,null,null,null,null,null,null,null,null,null,null,null,null,null,null,null,null,null,null,null,null,null,null,null,null,null,null,null,null,null,"ФБС12.4.3-т",3.36]
[null,null,null,null,{"$f":"SUMPRODUCT(--(#REF!=$A$5),--(#REF!=A29),#REF!)","v":{"$error":"#REF!"}},{"$f":"Таблица5[[#This Row],[план]]-Таблица5[[#This Row],[факт]]","v":{"$error":"#REF!"}},null,null,null,null,{"$f":"SUMPRODUCT(--(#REF!=$G$5),--(#REF!=G29),#REF!)","v":{"$error":"#REF!"}},{"$f":"Таблица5[[#This Row],[план2]]-Таблица5[[#This Row],[факт2]]","v":{"$error":"#REF!"}},null,null,null,null,{"$f":"SUMPRODUCT(--(#REF!=$M$5),--(#REF!=M29),#REF!)","v":{"$error":"#REF!"}},{"$f":"Таблица5[[#This Row],[план3]]-Таблица5[[#This Row],[факт3]]","v":{"$error":"#REF!"}},null,null,null,null,{"$f":"SUMPRODUCT(--(#REF!=$S$5),--(#REF!=S29),#REF!)","v":{"$error":"#REF!"}},{"$f":"Таблица5[[#This Row],[план4]]-Таблица5[[#This Row],[факт4]]","v":{"$error":"#REF!"}},null,null,null,null,{"$f":"SUMPRODUCT(--(#REF!=$Y$5),--(#REF!=Y29),#REF!)","v":{"$error":"#REF!"}},{"$f":"Таблица5[[#This Row],[план5]]-Таблица5[[#This Row],[факт5]]","v":{"$error":"#REF!"}},null,null,null,null,{"$f":"SUMPRODUCT(--(#REF!=$AE$5),--(#REF!=AE29),#REF!)","v":{"$error":"#REF!"}},{"$f":"Таблица5[[#This Row],[план6]]-Таблица5[[#This Row],[факт6]]","v":{"$error":"#REF!"}},null,null,null,null,{"$f":"SUMPRODUCT(--(#REF!=$AK$5),--(#REF!=AK29),#REF!)","v":{"$error":"#REF!"}},{"$f":"Таблица5[[#This Row],[план7]]-Таблица5[[#This Row],[факт7]]","v":{"$error":"#REF!"}},null,null,null,null,{"$f":"SUMPRODUCT(--(#REF!=$AQ$5),--(#REF!=AQ29),#REF!)","v":{"$error":"#REF!"}},{"$f":"Таблица5[[#This Row],[план8]]-Таблица5[[#This Row],[факт8]]","v":{"$error":"#REF!"}},null,null,null,null,{"$f":"SUMPRODUCT(--(#REF!=$AW$5),--(#REF!=AW29),#REF!)","v":{"$error":"#REF!"}},{"$f":"Таблица5[[#This Row],[план9]]-Таблица5[[#This Row],[факт9]]","v":{"$error":"#REF!"}},null,null,null,null,{"$f":"SUMPRODUCT(--(#REF!=$BC$5),--(#REF!=BC29),#REF!)","v":{"$error":"#REF!"}},{"$f":"Таблица5[[#This Row],[план10]]-Таблица5[[#This Row],[факт10]]","v":{"$error":"#REF!"}},null,1,null,null,null,null,null,null,null,null,null,null,null,null,null,null,null,null,null,null,null,null,null,null,null,null,null,null,null,null,null,null,null,null,null,null,null,null,null,null,null,null,null,null,null,null,null,null,null,null,null,null,null,null,null,null,null,null,null,null,null,null,null,"ФБС12.5.6-т",0.43]
[null,null,null,null,{"$f":"SUMPRODUCT(--(#REF!=$A$5),--(#REF!=A30),#REF!)","v":{"$error":"#REF!"}},{"$f":"Таблица5[[#This Row],[план]]-Таблица5[[#This Row],[факт]]","v":{"$error":"#REF!"}},null,null,null,null,{"$f":"SUMPRODUCT(--(#REF!=$G$5),--(#REF!=G30),#REF!)","v":{"$error":"#REF!"}},{"$f":"Таблица5[[#This Row],[план2]]-Таблица5[[#This Row],[факт2]]","v":{"$error":"#REF!"}},null,null,null,null,{"$f":"SUMPRODUCT(--(#REF!=$M$5),--(#REF!=M30),#REF!)","v":{"$error":"#REF!"}},{"$f":"Таблица5[[#This Row],[план3]]-Таблица5[[#This Row],[факт3]]","v":{"$error":"#REF!"}},null,null,null,null,{"$f":"SUMPRODUCT(--(#REF!=$S$5),--(#REF!=S30),#REF!)","v":{"$error":"#REF!"}},{"$f":"Таблица5[[#This Row],[план4]]-Таблица5[[#This Row],[факт4]]","v":{"$error":"#REF!"}},null,null,null,null,{"$f":"SUMPRODUCT(--(#REF!=$Y$5),--(#REF!=Y30),#REF!)","v":{"$error":"#REF!"}},{"$f":"Таблица5[[#This Row],[план5]]-Таблица5[[#This Row],[факт5]]","v":{"$error":"#REF!"}},null,null,null,null,{"$f":"SUMPRODUCT(--(#REF!=$AE$5),--(#REF!=AE30),#REF!)","v":{"$error":"#REF!"}},{"$f":"Таблица5[[#This Row],[план6]]-Таблица5[[#This Row],[факт6]]","v":{"$error":"#REF!"}},null,null,null,null,{"$f":"SUMPRODUCT(--(#REF!=$AK$5),--(#REF!=AK30),#REF!)","v":{"$error":"#REF!"}},{"$f":"Таблица5[[#This Row],[план7]]-Таблица5[[#This Row],[факт7]]","v":{"$error":"#REF!"}},null,null,null,null,{"$f":"SUMPRODUCT(--(#REF!=$AQ$5),--(#REF!=AQ30),#REF!)","v":{"$error":"#REF!"}},{"$f":"Таблица5[[#This Row],[план8]]-Таблица5[[#This Row],[факт8]]","v":{"$error":"#REF!"}},null,null,null,null,{"$f":"SUMPRODUCT(--(#REF!=$AW$5),--(#REF!=AW30),#REF!)","v":{"$error":"#REF!"}},{"$f":"Таблица5[[#This Row],[план9]]-Таблица5[[#This Row],[факт9]]","v":{"$error":"#REF!"}},null,null,null,null,{"$f":"SUMPRODUCT(--(#REF!=$BC$5),--(#REF!=BC30),#REF!)","v":{"$error":"#REF!"}},{"$f":"Таблица5[[#This Row],[план10]]-Таблица5[[#This Row],[факт10]]","v":{"$error":"#REF!"}},null,1,null,null,null,null,null,null,null,null,null,null,null,null,null,null,null,null,null,null,null,null,null,null,null,null,null,null,null,null,null,null,null,null,null,null,null,null,null,null,null,null,null,null,null,null,null,null,null,null,null,null,null,null,null,null,null,null,null,null,null,null,null,"ФБС12.6.6-т",0.54]
[null,null,null,null,{"$f":"SUMPRODUCT(--(#REF!=$A$5),--(#REF!=A31),#REF!)","v":{"$error":"#REF!"}},{"$f":"Таблица5[[#This Row],[план]]-Таблица5[[#This Row],[факт]]","v":{"$error":"#REF!"}},null,null,null,null,{"$f":"SUMPRODUCT(--(#REF!=$G$5),--(#REF!=G31),#REF!)","v":{"$error":"#REF!"}},{"$f":"Таблица5[[#This Row],[план2]]-Таблица5[[#This Row],[факт2]]","v":{"$error":"#REF!"}},null,null,null,null,{"$f":"SUMPRODUCT(--(#REF!=$M$5),--(#REF!=M31),#REF!)","v":{"$error":"#REF!"}},{"$f":"Таблица5[[#This Row],[план3]]-Таблица5[[#This Row],[факт3]]","v":{"$error":"#REF!"}},null,null,null,null,{"$f":"SUMPRODUCT(--(#REF!=$S$5),--(#REF!=S31),#REF!)","v":{"$error":"#REF!"}},{"$f":"Таблица5[[#This Row],[план4]]-Таблица5[[#This Row],[факт4]]","v":{"$error":"#REF!"}},null,null,null,null,{"$f":"SUMPRODUCT(--(#REF!=$Y$5),--(#REF!=Y31),#REF!)","v":{"$error":"#REF!"}},{"$f":"Таблица5[[#This Row],[план5]]-Таблица5[[#This Row],[факт5]]","v":{"$error":"#REF!"}},null,null,null,null,{"$f":"SUMPRODUCT(--(#REF!=$AE$5),--(#REF!=AE31),#REF!)","v":{"$error":"#REF!"}},{"$f":"Таблица5[[#This Row],[план6]]-Таблица5[[#This Row],[факт6]]","v":{"$error":"#REF!"}},null,null,null,null,{"$f":"SUMPRODUCT(--(#REF!=$AK$5),--(#REF!=AK31),#REF!)","v":{"$error":"#REF!"}},{"$f":"Таблица5[[#This Row],[план7]]-Таблица5[[#This Row],[факт7]]","v":{"$error":"#REF!"}},null,null,null,null,{"$f":"SUMPRODUCT(--(#REF!=$AQ$5),--(#REF!=AQ31),#REF!)","v":{"$error":"#REF!"}},{"$f":"Таблица5[[#This Row],[план8]]-Таблица5[[#This Row],[факт8]]","v":{"$error":"#REF!"}},null,null,null,null,{"$f":"SUMPRODUCT(--(#REF!=$AW$5),--(#REF!=AW31),#REF!)","v":{"$error":"#REF!"}},{"$f":"Таблица5[[#This Row],[план9]]-Таблица5[[#This Row],[факт9]]","v":{"$error":"#REF!"}},null,null,null,null,{"$f":"SUMPRODUCT(--(#REF!=$BC$5),--(#REF!=BC31),#REF!)","v":{"$error":"#REF!"}},{"$f":"Таблица5[[#This Row],[план10]]-Таблица5[[#This Row],[факт10]]","v":{"$error":"#REF!"}},null,1,null,null,null,null,null,null,null,null,null,null,null,null,null,null,null,null,null,null,null,null,null,null,null,null,null,null,null,null,null,null,null,null,null,null,null,null,null,null,null,null,null,null,null,null,null,null,null,null,null,null,null,null,null,null,null,null,null,null,null,null,null,"ФБС24.3.6-т",0.54]
[null,null,null,null,{"$f":"SUMPRODUCT(--(#REF!=$A$5),--(#REF!=A32),#REF!)","v":{"$error":"#REF!"}},{"$f":"Таблица5[[#This Row],[план]]-Таблица5[[#This Row],[факт]]","v":{"$error":"#REF!"}},null,null,null,null,{"$f":"SUMPRODUCT(--(#REF!=$G$5),--(#REF!=G32),#REF!)","v":{"$error":"#REF!"}},{"$f":"Таблица5[[#This Row],[план2]]-Таблица5[[#This Row],[факт2]]","v":{"$error":"#REF!"}},null,null,null,null,{"$f":"SUMPRODUCT(--(#REF!=$M$5),--(#REF!=M32),#REF!)","v":{"$error":"#REF!"}},{"$f":"Таблица5[[#This Row],[план3]]-Таблица5[[#This Row],[факт3]]","v":{"$error":"#REF!"}},null,null,null,null,{"$f":"SUMPRODUCT(--(#REF!=$S$5),--(#REF!=S32),#REF!)","v":{"$error":"#REF!"}},{"$f":"Таблица5[[#This Row],[план4]]-Таблица5[[#This Row],[факт4]]","v":{"$error":"#REF!"}},null,null,null,null,{"$f":"SUMPRODUCT(--(#REF!=$Y$5),--(#REF!=Y32),#REF!)","v":{"$error":"#REF!"}},{"$f":"Таблица5[[#This Row],[план5]]-Таблица5[[#This Row],[факт5]]","v":{"$error":"#REF!"}},null,null,null,null,{"$f":"SUMPRODUCT(--(#REF!=$AE$5),--(#REF!=AE32),#REF!)","v":{"$error":"#REF!"}},{"$f":"Таблица5[[#This Row],[план6]]-Таблица5[[#This Row],[факт6]]","v":{"$error":"#REF!"}},null,null,null,null,{"$f":"SUMPRODUCT(--(#REF!=$AK$5),--(#REF!=AK32),#REF!)","v":{"$error":"#REF!"}},{"$f":"Таблица5[[#This Row],[план7]]-Таблица5[[#This Row],[факт7]]","v":{"$error":"#REF!"}},null,null,null,null,{"$f":"SUMPRODUCT(--(#REF!=$AQ$5),--(#REF!=AQ32),#REF!)","v":{"$error":"#REF!"}},{"$f":"Таблица5[[#This Row],[план8]]-Таблица5[[#This Row],[факт8]]","v":{"$error":"#REF!"}},null,null,null,null,{"$f":"SUMPRODUCT(--(#REF!=$AW$5),--(#REF!=AW32),#REF!)","v":{"$error":"#REF!"}},{"$f":"Таблица5[[#This Row],[план9]]-Таблица5[[#This Row],[факт9]]","v":{"$error":"#REF!"}},null,null,null,null,{"$f":"SUMPRODUCT(--(#REF!=$BC$5),--(#REF!=BC32),#REF!)","v":{"$error":"#REF!"}},{"$f":"Таблица5[[#This Row],[план10]]-Таблица5[[#This Row],[факт10]]","v":{"$error":"#REF!"}},null,null,null,null,null,null,null,null,null,null,null,null,null,null,null,null,null,null,null,null,null,null,null,null,null,null,null,null,null,null,null,null,null,null,null,null,null,null,null,null,null,null,null,null,null,null,null,null,null,null,null,null,null,null,null,null,null,null,null,null,null,null,null,"ФБС24.4.6-т",3.36]
[null,null,null,null,{"$f":"SUMPRODUCT(--(#REF!=$A$5),--(#REF!=A33),#REF!)","v":{"$error":"#REF!"}},{"$f":"Таблица5[[#This Row],[план]]-Таблица5[[#This Row],[факт]]","v":{"$error":"#REF!"}},null,null,null,null,{"$f":"SUMPRODUCT(--(#REF!=$G$5),--(#REF!=G33),#REF!)","v":{"$error":"#REF!"}},{"$f":"Таблица5[[#This Row],[план2]]-Таблица5[[#This Row],[факт2]]","v":{"$error":"#REF!"}},null,null,null,null,{"$f":"SUMPRODUCT(--(#REF!=$M$5),--(#REF!=M33),#REF!)","v":{"$error":"#REF!"}},{"$f":"Таблица5[[#This Row],[план3]]-Таблица5[[#This Row],[факт3]]","v":{"$error":"#REF!"}},null,null,null,null,{"$f":"SUMPRODUCT(--(#REF!=$S$5),--(#REF!=S33),#REF!)","v":{"$error":"#REF!"}},{"$f":"Таблица5[[#This Row],[план4]]-Таблица5[[#This Row],[факт4]]","v":{"$error":"#REF!"}},null,null,null,null,{"$f":"SUMPRODUCT(--(#REF!=$Y$5),--(#REF!=Y33),#REF!)","v":{"$error":"#REF!"}},{"$f":"Таблица5[[#This Row],[план5]]-Таблица5[[#This Row],[факт5]]","v":{"$error":"#REF!"}},null,null,null,null,{"$f":"SUMPRODUCT(--(#REF!=$AE$5),--(#REF!=AE33),#REF!)","v":{"$error":"#REF!"}},{"$f":"Таблица5[[#This Row],[план6]]-Таблица5[[#This Row],[факт6]]","v":{"$error":"#REF!"}},null,null,null,null,{"$f":"SUMPRODUCT(--(#REF!=$AK$5),--(#REF!=AK33),#REF!)","v":{"$error":"#REF!"}},{"$f":"Таблица5[[#This Row],[план7]]-Таблица5[[#This Row],[факт7]]","v":{"$error":"#REF!"}},null,null,null,null,{"$f":"SUMPRODUCT(--(#REF!=$AQ$5),--(#REF!=AQ33),#REF!)","v":{"$error":"#REF!"}},{"$f":"Таблица5[[#This Row],[план8]]-Таблица5[[#This Row],[факт8]]","v":{"$error":"#REF!"}},null,null,null,null,{"$f":"SUMPRODUCT(--(#REF!=$AW$5),--(#REF!=AW33),#REF!)","v":{"$error":"#REF!"}},{"$f":"Таблица5[[#This Row],[план9]]-Таблица5[[#This Row],[факт9]]","v":{"$error":"#REF!"}},null,null,null,null,{"$f":"SUMPRODUCT(--(#REF!=$BC$5),--(#REF!=BC33),#REF!)","v":{"$error":"#REF!"}},{"$f":"Таблица5[[#This Row],[план10]]-Таблица5[[#This Row],[факт10]]","v":{"$error":"#REF!"}},null,null,null,null,null,null,null,null,null,null,null,null,null,null,null,null,null,null,null,null,null,null,null,null,null,null,null,null,null,null,null,null,null,null,null,null,null,null,null,null,null,null,null,null,null,null,null,null,null,null,null,null,null,null,null,null,null,null,null,null,null,null,null,"ФБС24.5.6-т",1.58]
[null,null,null,null,{"$f":"SUMPRODUCT(--(#REF!=$A$5),--(#REF!=A34),#REF!)","v":{"$error":"#REF!"}},{"$f":"Таблица5[[#This Row],[план]]-Таблица5[[#This Row],[факт]]","v":{"$error":"#REF!"}},null,null,null,null,{"$f":"SUMPRODUCT(--(#REF!=$G$5),--(#REF!=G34),#REF!)","v":{"$error":"#REF!"}},{"$f":"Таблица5[[#This Row],[план2]]-Таблица5[[#This Row],[факт2]]","v":{"$error":"#REF!"}},null,null,null,null,{"$f":"SUMPRODUCT(--(#REF!=$M$5),--(#REF!=M34),#REF!)","v":{"$error":"#REF!"}},{"$f":"Таблица5[[#This Row],[план3]]-Таблица5[[#This Row],[факт3]]","v":{"$error":"#REF!"}},null,null,null,null,{"$f":"SUMPRODUCT(--(#REF!=$S$5),--(#REF!=S34),#REF!)","v":{"$error":"#REF!"}},{"$f":"Таблица5[[#This Row],[план4]]-Таблица5[[#This Row],[факт4]]","v":{"$error":"#REF!"}},null,null,null,null,{"$f":"SUMPRODUCT(--(#REF!=$Y$5),--(#REF!=Y34),#REF!)","v":{"$error":"#REF!"}},{"$f":"Таблица5[[#This Row],[план5]]-Таблица5[[#This Row],[факт5]]","v":{"$error":"#REF!"}},null,null,null,null,{"$f":"SUMPRODUCT(--(#REF!=$AE$5),--(#REF!=AE34),#REF!)","v":{"$error":"#REF!"}},{"$f":"Таблица5[[#This Row],[план6]]-Таблица5[[#This Row],[факт6]]","v":{"$error":"#REF!"}},null,null,null,null,{"$f":"SUMPRODUCT(--(#REF!=$AK$5),--(#REF!=AK34),#REF!)","v":{"$error":"#REF!"}},{"$f":"Таблица5[[#This Row],[план7]]-Таблица5[[#This Row],[факт7]]","v":{"$error":"#REF!"}},null,null,null,null,{"$f":"SUMPRODUCT(--(#REF!=$AQ$5),--(#REF!=AQ34),#REF!)","v":{"$error":"#REF!"}},{"$f":"Таблица5[[#This Row],[план8]]-Таблица5[[#This Row],[факт8]]","v":{"$error":"#REF!"}},null,null,null,null,{"$f":"SUMPRODUCT(--(#REF!=$AW$5),--(#REF!=AW34),#REF!)","v":{"$error":"#REF!"}},{"$f":"Таблица5[[#This Row],[план9]]-Таблица5[[#This Row],[факт9]]","v":{"$error":"#REF!"}},null,null,null,null,{"$f":"SUMPRODUCT(--(#REF!=$BC$5),--(#REF!=BC34),#REF!)","v":{"$error":"#REF!"}},{"$f":"Таблица5[[#This Row],[план10]]-Таблица5[[#This Row],[факт10]]","v":{"$error":"#REF!"}},null,null,null,null,null,null,null,null,null,null,null,null,null,null,null,null,null,null,null,null,null,null,null,null,null,null,null,null,null,null,null,null,null,null,null,null,null,null,null,null,null,null,null,null,null,null,null,null,null,null,null,null,null,null,null,null,null,null,null,null,null,null,null,"ффф",1]
[null,null,null,null,{"$f":"SUMPRODUCT(--(#REF!=$A$5),--(#REF!=A35),#REF!)","v":{"$error":"#REF!"}},{"$f":"Таблица5[[#This Row],[план]]-Таблица5[[#This Row],[факт]]","v":{"$error":"#REF!"}},null,null,null,null,{"$f":"SUMPRODUCT(--(#REF!=$G$5),--(#REF!=G35),#REF!)","v":{"$error":"#REF!"}},{"$f":"Таблица5[[#This Row],[план2]]-Таблица5[[#This Row],[факт2]]","v":{"$error":"#REF!"}},null,null,null,null,{"$f":"SUMPRODUCT(--(#REF!=$M$5),--(#REF!=M35),#REF!)","v":{"$error":"#REF!"}},{"$f":"Таблица5[[#This Row],[план3]]-Таблица5[[#This Row],[факт3]]","v":{"$error":"#REF!"}},null,null,null,null,{"$f":"SUMPRODUCT(--(#REF!=$S$5),--(#REF!=S35),#REF!)","v":{"$error":"#REF!"}},{"$f":"Таблица5[[#This Row],[план4]]-Таблица5[[#This Row],[факт4]]","v":{"$error":"#REF!"}},null,null,null,null,{"$f":"SUMPRODUCT(--(#REF!=$Y$5),--(#REF!=Y35),#REF!)","v":{"$error":"#REF!"}},{"$f":"Таблица5[[#This Row],[план5]]-Таблица5[[#This Row],[факт5]]","v":{"$error":"#REF!"}},null,null,null,null,{"$f":"SUMPRODUCT(--(#REF!=$AE$5),--(#REF!=AE35),#REF!)","v":{"$error":"#REF!"}},{"$f":"Таблица5[[#This Row],[план6]]-Таблица5[[#This Row],[факт6]]","v":{"$error":"#REF!"}},null,null,null,null,{"$f":"SUMPRODUCT(--(#REF!=$AK$5),--(#REF!=AK35),#REF!)","v":{"$error":"#REF!"}},{"$f":"Таблица5[[#This Row],[план7]]-Таблица5[[#This Row],[факт7]]","v":{"$error":"#REF!"}},null,null,null,null,{"$f":"SUMPRODUCT(--(#REF!=$AQ$5),--(#REF!=AQ35),#REF!)","v":{"$error":"#REF!"}},{"$f":"Таблица5[[#This Row],[план8]]-Таблица5[[#This Row],[факт8]]","v":{"$error":"#REF!"}},null,null,null,null,{"$f":"SUMPRODUCT(--(#REF!=$AW$5),--(#REF!=AW35),#REF!)","v":{"$error":"#REF!"}},{"$f":"Таблица5[[#This Row],[план9]]-Таблица5[[#This Row],[факт9]]","v":{"$error":"#REF!"}},null,null,null,null,{"$f":"SUMPRODUCT(--(#REF!=$BC$5),--(#REF!=BC35),#REF!)","v":{"$error":"#REF!"}},{"$f":"Таблица5[[#This Row],[план10]]-Таблица5[[#This Row],[факт10]]","v":{"$error":"#REF!"}}]
[null,null,null,null,{"$f":"SUMPRODUCT(--(#REF!=$A$5),--(#REF!=A36),#REF!)","v":{"$error":"#REF!"}},{"$f":"Таблица5[[#This Row],[план]]-Таблица5[[#This Row],[факт]]","v":{"$error":"#REF!"}},null,null,null,null,{"$f":"SUMPRODUCT(--(#REF!=$G$5),--(#REF!=G36),#REF!)","v":{"$error":"#REF!"}},{"$f":"Таблица5[[#This Row],[план2]]-Таблица5[[#This Row],[факт2]]","v":{"$error":"#REF!"}},null,null,null,null,{"$f":"SUMPRODUCT(--(#REF!=$M$5),--(#REF!=M36),#REF!)","v":{"$error":"#REF!"}},{"$f":"Таблица5[[#This Row],[план3]]-Таблица5[[#This Row],[факт3]]","v":{"$error":"#REF!"}},null,null,null,null,{"$f":"SUMPRODUCT(--(#REF!=$S$5),--(#REF!=S36),#REF!)","v":{"$error":"#REF!"}},{"$f":"Таблица5[[#This Row],[план4]]-Таблица5[[#This Row],[факт4]]","v":{"$error":"#REF!"}},null,null,null,null,{"$f":"SUMPRODUCT(--(#REF!=$Y$5),--(#REF!=Y36),#REF!)","v":{"$error":"#REF!"}},{"$f":"Таблица5[[#This Row],[план5]]-Таблица5[[#This Row],[факт5]]","v":{"$error":"#REF!"}},null,null,null,null,{"$f":"SUMPRODUCT(--(#REF!=$AE$5),--(#REF!=AE36),#REF!)","v":{"$error":"#REF!"}},{"$f":"Таблица5[[#This Row],[план6]]-Таблица5[[#This Row],[факт6]]","v":{"$error":"#REF!"}},null,null,null,null,{"$f":"SUMPRODUCT(--(#REF!=$AK$5),--(#REF!=AK36),#REF!)","v":{"$error":"#REF!"}},{"$f":"Таблица5[[#This Row],[план7]]-Таблица5[[#This Row],[факт7]]","v":{"$error":"#REF!"}},null,null,null,null,{"$f":"SUMPRODUCT(--(#REF!=$AQ$5),--(#REF!=AQ36),#REF!)","v":{"$error":"#REF!"}},{"$f":"Таблица5[[#This Row],[план8]]-Таблица5[[#This Row],[факт8]]","v":{"$error":"#REF!"}},null,null,null,null,{"$f":"SUMPRODUCT(--(#REF!=$AW$5),--(#REF!=AW36),#REF!)","v":{"$error":"#REF!"}},{"$f":"Таблица5[[#This Row],[план9]]-Таблица5[[#This Row],[факт9]]","v":{"$error":"#REF!"}},null,null,null,null,{"$f":"SUMPRODUCT(--(#REF!=$BC$5),--(#REF!=BC36),#REF!)","v":{"$error":"#REF!"}},{"$f":"Таблица5[[#This Row],[план10]]-Таблица5[[#This Row],[факт10]]","v":{"$error":"#REF!"}}]
[null,null,null,null,{"$f":"SUMPRODUCT(--(#REF!=$A$5),--(#REF!=A37),#REF!)","v":{"$error":"#REF!"}},{"$f":"Таблица5[[#This Row],[план]]-Таблица5[[#This Row],[факт]]","v":{"$error":"#REF!"}},null,null,null,null,{"$f":"SUMPRODUCT(--(#REF!=$G$5),--(#REF!=G37),#REF!)","v":{"$error":"#REF!"}},{"$f":"Таблица5[[#This Row],[план2]]-Таблица5[[#This Row],[факт2]]","v":{"$error":"#REF!"}},null,null,null,null,{"$f":"SUMPRODUCT(--(#REF!=$M$5),--(#REF!=M37),#REF!)","v":{"$error":"#REF!"}},{"$f":"Таблица5[[#This Row],[план3]]-Таблица5[[#This Row],[факт3]]","v":{"$error":"#REF!"}},null,null,null,null,{"$f":"SUMPRODUCT(--(#REF!=$S$5),--(#REF!=S37),#REF!)","v":{"$error":"#REF!"}},{"$f":"Таблица5[[#This Row],[план4]]-Таблица5[[#This Row],[факт4]]","v":{"$error":"#REF!"}},null,null,null,null,{"$f":"SUMPRODUCT(--(#REF!=$Y$5),--(#REF!=Y37),#REF!)","v":{"$error":"#REF!"}},{"$f":"Таблица5[[#This Row],[план5]]-Таблица5[[#This Row],[факт5]]","v":{"$error":"#REF!"}},null,null,null,null,{"$f":"SUMPRODUCT(--(#REF!=$AE$5),--(#REF!=AE37),#REF!)","v":{"$error":"#REF!"}},{"$f":"Таблица5[[#This Row],[план6]]-Таблица5[[#This Row],[факт6]]","v":{"$error":"#REF!"}},null,null,null,null,{"$f":"SUMPRODUCT(--(#REF!=$AK$5),--(#REF!=AK37),#REF!)","v":{"$error":"#REF!"}},{"$f":"Таблица5[[#This Row],[план7]]-Таблица5[[#This Row],[факт7]]","v":{"$error":"#REF!"}},null,null,null,null,{"$f":"SUMPRODUCT(--(#REF!=$AQ$5),--(#REF!=AQ37),#REF!)","v":{"$error":"#REF!"}},{"$f":"Таблица5[[#This Row],[план8]]-Таблица5[[#This Row],[факт8]]","v":{"$error":"#REF!"}},null,null,null,null,{"$f":"SUMPRODUCT(--(#REF!=$AW$5),--(#REF!=AW37),#REF!)","v":{"$error":"#REF!"}},{"$f":"Таблица5[[#This Row],[план9]]-Таблица5[[#This Row],[факт9]]","v":{"$error":"#REF!"}},null,null,null,null,{"$f":"SUMPRODUCT(--(#REF!=$BC$5),--(#REF!=BC37),#REF!)","v":{"$error":"#REF!"}},{"$f":"Таблица5[[#This Row],[план10]]-Таблица5[[#This Row],[факт10]]","v":{"$error":"#REF!"}}]
[null,null,null,null,{"$f":"SUMPRODUCT(--(#REF!=$A$5),--(#REF!=A38),#REF!)","v":{"$error":"#REF!"}},{"$f":"Таблица5[[#This Row],[план]]-Таблица5[[#This Row],[факт]]","v":{"$error":"#REF!"}},null,null,null,null,{"$f":"SUMPRODUCT(--(#REF!=$G$5),--(#REF!=G38),#REF!)","v":{"$error":"#REF!"}},{"$f":"Таблица5[[#This Row],[план2]]-Таблица5[[#This Row],[факт2]]","v":{"$error":"#REF!"}},null,null,null,null,{"$f":"SUMPRODUCT(--(#REF!=$M$5),--(#REF!=M38),#REF!)","v":{"$error":"#REF!"}},{"$f":"Таблица5[[#This Row],[план3]]-Таблица5[[#This Row],[факт3]]","v":{"$error":"#REF!"}},null,null,null,null,{"$f":"SUMPRODUCT(--(#REF!=$S$5),--(#REF!=S38),#REF!)","v":{"$error":"#REF!"}},{"$f":"Таблица5[[#This Row],[план4]]-Таблица5[[#This Row],[факт4]]","v":{"$error":"#REF!"}},null,null,null,null,{"$f":"SUMPRODUCT(--(#REF!=$Y$5),--(#REF!=Y38),#REF!)","v":{"$error":"#REF!"}},{"$f":"Таблица5[[#This Row],[план5]]-Таблица5[[#This Row],[факт5]]","v":{"$error":"#REF!"}},null,null,null,null,{"$f":"SUMPRODUCT(--(#REF!=$AE$5),--(#REF!=AE38),#REF!)","v":{"$error":"#REF!"}},{"$f":"Таблица5[[#This Row],[план6]]-Таблица5[[#This Row],[факт6]]","v":{"$error":"#REF!"}},null,null,null,null,{"$f":"SUMPRODUCT(--(#REF!=$AK$5),--(#REF!=AK38),#REF!)","v":{"$error":"#REF!"}},{"$f":"Таблица5[[#This Row],[план7]]-Таблица5[[#This Row],[факт7]]","v":{"$error":"#REF!"}},null,null,null,null,{"$f":"SUMPRODUCT(--(#REF!=$AQ$5),--(#REF!=AQ38),#REF!)","v":{"$error":"#REF!"}},{"$f":"Таблица5[[#This Row],[план8]]-Таблица5[[#This Row],[факт8]]","v":{"$error":"#REF!"}},null,null,null,null,{"$f":"SUMPRODUCT(--(#REF!=$AW$5),--(#REF!=AW38),#REF!)","v":{"$error":"#REF!"}},{"$f":"Таблица5[[#This Row],[план9]]-Таблица5[[#This Row],[факт9]]","v":{"$error":"#REF!"}},null,null,null,null,{"$f":"SUMPRODUCT(--(#REF!=$BC$5),--(#REF!=BC38),#REF!)","v":{"$error":"#REF!"}},{"$f":"Таблица5[[#This Row],[план10]]-Таблица5[[#This Row],[факт10]]","v":{"$error":"#REF!"}}]
[null,null,null,null,{"$f":"SUMPRODUCT(--(#REF!=$A$5),--(#REF!=A39),#REF!)","v":{"$error":"#REF!"}},{"$f":"Таблица5[[#This Row],[план]]-Таблица5[[#This Row],[факт]]","v":{"$error":"#REF!"}},null,null,null,null,{"$f":"SUMPRODUCT(--(#REF!=$G$5),--(#REF!=G39),#REF!)","v":{"$error":"#REF!"}},{"$f":"Таблица5[[#This Row],[план2]]-Таблица5[[#This Row],[факт2]]","v":{"$error":"#REF!"}},null,null,null,null,{"$f":"SUMPRODUCT(--(#REF!=$M$5),--(#REF!=M39),#REF!)","v":{"$error":"#REF!"}},{"$f":"Таблица5[[#This Row],[план3]]-Таблица5[[#This Row],[факт3]]","v":{"$error":"#REF!"}},null,null,null,null,{"$f":"SUMPRODUCT(--(#REF!=$S$5),--(#REF!=S39),#REF!)","v":{"$error":"#REF!"}},{"$f":"Таблица5[[#This Row],[план4]]-Таблица5[[#This Row],[факт4]]","v":{"$error":"#REF!"}},null,null,null,null,{"$f":"SUMPRODUCT(--(#REF!=$Y$5),--(#REF!=Y39),#REF!)","v":{"$error":"#REF!"}},{"$f":"Таблица5[[#This Row],[план5]]-Таблица5[[#This Row],[факт5]]","v":{"$error":"#REF!"}},null,null,null,null,{"$f":"SUMPRODUCT(--(#REF!=$AE$5),--(#REF!=AE39),#REF!)","v":{"$error":"#REF!"}},{"$f":"Таблица5[[#This Row],[план6]]-Таблица5[[#This Row],[факт6]]","v":{"$error":"#REF!"}},null,null,null,null,{"$f":"SUMPRODUCT(--(#REF!=$AK$5),--(#REF!=AK39),#REF!)","v":{"$error":"#REF!"}},{"$f":"Таблица5[[#This Row],[план7]]-Таблица5[[#This Row],[факт7]]","v":{"$error":"#REF!"}},null,null,null,null,{"$f":"SUMPRODUCT(--(#REF!=$AQ$5),--(#REF!=AQ39),#REF!)","v":{"$error":"#REF!"}},{"$f":"Таблица5[[#This Row],[план8]]-Таблица5[[#This Row],[факт8]]","v":{"$error":"#REF!"}},null,null,null,null,{"$f":"SUMPRODUCT(--(#REF!=$AW$5),--(#REF!=AW39),#REF!)","v":{"$error":"#REF!"}},{"$f":"Таблица5[[#This Row],[план9]]-Таблица5[[#This Row],[факт9]]","v":{"$error":"#REF!"}},null,null,null,null,{"$f":"SUMPRODUCT(--(#REF!=$BC$5),--(#REF!=BC39),#REF!)","v":{"$error":"#REF!"}},{"$f":"Таблица5[[#This Row],[план10]]-Таблица5[[#This Row],[факт10]]","v":{"$error":"#REF!"}}]
[null,null,null,null,{"$f":"SUMPRODUCT(--(#REF!=$A$5),--(#REF!=A40),#REF!)","v":{"$error":"#REF!"}},{"$f":"Таблица5[[#This Row],[план]]-Таблица5[[#This Row],[факт]]","v":{"$error":"#REF!"}},null,null,null,null,{"$f":"SUMPRODUCT(--(#REF!=$G$5),--(#REF!=G40),#REF!)","v":{"$error":"#REF!"}},{"$f":"Таблица5[[#This Row],[план2]]-Таблица5[[#This Row],[факт2]]","v":{"$error":"#REF!"}},null,null,null,null,{"$f":"SUMPRODUCT(--(#REF!=$M$5),--(#REF!=M40),#REF!)","v":{"$error":"#REF!"}},{"$f":"Таблица5[[#This Row],[план3]]-Таблица5[[#This Row],[факт3]]","v":{"$error":"#REF!"}},null,null,null,null,{"$f":"SUMPRODUCT(--(#REF!=$S$5),--(#REF!=S40),#REF!)","v":{"$error":"#REF!"}},{"$f":"Таблица5[[#This Row],[план4]]-Таблица5[[#This Row],[факт4]]","v":{"$error":"#REF!"}},null,null,null,null,{"$f":"SUMPRODUCT(--(#REF!=$Y$5),--(#REF!=Y40),#REF!)","v":{"$error":"#REF!"}},{"$f":"Таблица5[[#This Row],[план5]]-Таблица5[[#This Row],[факт5]]","v":{"$error":"#REF!"}},null,null,null,null,{"$f":"SUMPRODUCT(--(#REF!=$AE$5),--(#REF!=AE40),#REF!)","v":{"$error":"#REF!"}},{"$f":"Таблица5[[#This Row],[план6]]-Таблица5[[#This Row],[факт6]]","v":{"$error":"#REF!"}},null,null,null,null,{"$f":"SUMPRODUCT(--(#REF!=$AK$5),--(#REF!=AK40),#REF!)","v":{"$error":"#REF!"}},{"$f":"Таблица5[[#This Row],[план7]]-Таблица5[[#This Row],[факт7]]","v":{"$error":"#REF!"}},null,null,null,null,{"$f":"SUMPRODUCT(--(#REF!=$AQ$5),--(#REF!=AQ40),#REF!)","v":{"$error":"#REF!"}},{"$f":"Таблица5[[#This Row],[план8]]-Таблица5[[#This Row],[факт8]]","v":{"$error":"#REF!"}},null,null,null,null,{"$f":"SUMPRODUCT(--(#REF!=$AW$5),--(#REF!=AW40),#REF!)","v":{"$error":"#REF!"}},{"$f":"Таблица5[[#This Row],[план9]]-Таблица5[[#This Row],[факт9]]","v":{"$error":"#REF!"}},null,null,null,null,{"$f":"SUMPRODUCT(--(#REF!=$BC$5),--(#REF!=BC40),#REF!)","v":{"$error":"#REF!"}},{"$f":"Таблица5[[#This Row],[план10]]-Таблица5[[#This Row],[факт10]]","v":{"$error":"#REF!"}}]
[null,null,null,null,{"$f":"SUMPRODUCT(--(#REF!=$A$5),--(#REF!=A41),#REF!)","v":{"$error":"#REF!"}},{"$f":"Таблица5[[#This Row],[план]]-Таблица5[[#This Row],[факт]]","v":{"$error":"#REF!"}},null,null,null,null,{"$f":"SUMPRODUCT(--(#REF!=$G$5),--(#REF!=G41),#REF!)","v":{"$error":"#REF!"}},{"$f":"Таблица5[[#This Row],[план2]]-Таблица5[[#This Row],[факт2]]","v":{"$error":"#REF!"}},null,null,null,null,{"$f":"SUMPRODUCT(--(#REF!=$M$5),--(#REF!=M41),#REF!)","v":{"$error":"#REF!"}},{"$f":"Таблица5[[#This Row],[план3]]-Таблица5[[#This Row],[факт3]]","v":{"$error":"#REF!"}},null,null,null,null,{"$f":"SUMPRODUCT(--(#REF!=$S$5),--(#REF!=S41),#REF!)","v":{"$error":"#REF!"}},{"$f":"Таблица5[[#This Row],[план4]]-Таблица5[[#This Row],[факт4]]","v":{"$error":"#REF!"}},null,null,null,null,{"$f":"SUMPRODUCT(--(#REF!=$Y$5),--(#REF!=Y41),#REF!)","v":{"$error":"#REF!"}},{"$f":"Таблица5[[#This Row],[план5]]-Таблица5[[#This Row],[факт5]]","v":{"$error":"#REF!"}},null,null,null,null,{"$f":"SUMPRODUCT(--(#REF!=$AE$5),--(#REF!=AE41),#REF!)","v":{"$error":"#REF!"}},{"$f":"Таблица5[[#This Row],[план6]]-Таблица5[[#This Row],[факт6]]","v":{"$error":"#REF!"}},null,null,null,null,{"$f":"SUMPRODUCT(--(#REF!=$AK$5),--(#REF!=AK41),#REF!)","v":{"$error":"#REF!"}},{"$f":"Таблица5[[#This Row],[план7]]-Таблица5[[#This Row],[факт7]]","v":{"$error":"#REF!"}},null,null,null,null,{"$f":"SUMPRODUCT(--(#REF!=$AQ$5),--(#REF!=AQ41),#REF!)","v":{"$error":"#REF!"}},{"$f":"Таблица5[[#This Row],[план8]]-Таблица5[[#This Row],[факт8]]","v":{"$error":"#REF!"}},null,null,null,null,{"$f":"SUMPRODUCT(--(#REF!=$AW$5),--(#REF!=AW41),#REF!)","v":{"$error":"#REF!"}},{"$f":"Таблица5[[#This Row],[план9]]-Таблица5[[#This Row],[факт9]]","v":{"$error":"#REF!"}},null,null,null,null,{"$f":"SUMPRODUCT(--(#REF!=$BC$5),--(#REF!=BC41),#REF!)","v":{"$error":"#REF!"}},{"$f":"Таблица5[[#This Row],[план10]]-Таблица5[[#This Row],[факт10]]","v":{"$error":"#REF!"}}]
[null,null,null,null,{"$f":"SUMPRODUCT(--(#REF!=$A$5),--(#REF!=A42),#REF!)","v":{"$error":"#REF!"}},{"$f":"Таблица5[[#This Row],[план]]-Таблица5[[#This Row],[факт]]","v":{"$error":"#REF!"}},null,null,null,null,{"$f":"SUMPRODUCT(--(#REF!=$G$5),--(#REF!=G42),#REF!)","v":{"$error":"#REF!"}},{"$f":"Таблица5[[#This Row],[план2]]-Таблица5[[#This Row],[факт2]]","v":{"$error":"#REF!"}},null,null,null,null,{"$f":"SUMPRODUCT(--(#REF!=$M$5),--(#REF!=M42),#REF!)","v":{"$error":"#REF!"}},{"$f":"Таблица5[[#This Row],[план3]]-Таблица5[[#This Row],[факт3]]","v":{"$error":"#REF!"}},null,null,null,null,{"$f":"SUMPRODUCT(--(#REF!=$S$5),--(#REF!=S42),#REF!)","v":{"$error":"#REF!"}},{"$f":"Таблица5[[#This Row],[план4]]-Таблица5[[#This Row],[факт4]]","v":{"$error":"#REF!"}},null,null,null,null,{"$f":"SUMPRODUCT(--(#REF!=$Y$5),--(#REF!=Y42),#REF!)","v":{"$error":"#REF!"}},{"$f":"Таблица5[[#This Row],[план5]]-Таблица5[[#This Row],[факт5]]","v":{"$error":"#REF!"}},null,null,null,null,{"$f":"SUMPRODUCT(--(#REF!=$AE$5),--(#REF!=AE42),#REF!)","v":{"$error":"#REF!"}},{"$f":"Таблица5[[#This Row],[план6]]-Таблица5[[#This Row],[факт6]]","v":{"$error":"#REF!"}},null,null,null,null,{"$f":"SUMPRODUCT(--(#REF!=$AK$5),--(#REF!=AK42),#REF!)","v":{"$error":"#REF!"}},{"$f":"Таблица5[[#This Row],[план7]]-Таблица5[[#This Row],[факт7]]","v":{"$error":"#REF!"}},null,null,null,null,{"$f":"SUMPRODUCT(--(#REF!=$AQ$5),--(#REF!=AQ42),#REF!)","v":{"$error":"#REF!"}},{"$f":"Таблица5[[#This Row],[план8]]-Таблица5[[#This Row],[факт8]]","v":{"$error":"#REF!"}},null,null,null,null,{"$f":"SUMPRODUCT(--(#REF!=$AW$5),--(#REF!=AW42),#REF!)","v":{"$error":"#REF!"}},{"$f":"Таблица5[[#This Row],[план9]]-Таблица5[[#This Row],[факт9]]","v":{"$error":"#REF!"}},null,null,null,null,{"$f":"SUMPRODUCT(--(#REF!=$BC$5),--(#REF!=BC42),#REF!)","v":{"$error":"#REF!"}},{"$f":"Таблица5[[#This Row],[план10]]-Таблица5[[#This Row],[факт10]]","v":{"$error":"#REF!"}}]
[null,null,null,null,{"$f":"SUMPRODUCT(--(#REF!=$A$5),--(#REF!=A43),#REF!)","v":{"$error":"#REF!"}},{"$f":"Таблица5[[#This Row],[план]]-Таблица5[[#This Row],[факт]]","v":{"$error":"#REF!"}},null,null,null,null,{"$f":"SUMPRODUCT(--(#REF!=$G$5),--(#REF!=G43),#REF!)","v":{"$error":"#REF!"}},{"$f":"Таблица5[[#This Row],[план2]]-Таблица5[[#This Row],[факт2]]","v":{"$error":"#REF!"}},null,null,null,null,{"$f":"SUMPRODUCT(--(#REF!=$M$5),--(#REF!=M43),#REF!)","v":{"$error":"#REF!"}},{"$f":"Таблица5[[#This Row],[план3]]-Таблица5[[#This Row],[факт3]]","v":{"$error":"#REF!"}},null,null,null,null,{"$f":"SUMPRODUCT(--(#REF!=$S$5),--(#REF!=S43),#REF!)","v":{"$error":"#REF!"}},{"$f":"Таблица5[[#This Row],[план4]]-Таблица5[[#This Row],[факт4]]","v":{"$error":"#REF!"}},null,null,null,null,{"$f":"SUMPRODUCT(--(#REF!=$Y$5),--(#REF!=Y43),#REF!)","v":{"$error":"#REF!"}},{"$f":"Таблица5[[#This Row],[план5]]-Таблица5[[#This Row],[факт5]]","v":{"$error":"#REF!"}},null,null,null,null,{"$f":"SUMPRODUCT(--(#REF!=$AE$5),--(#REF!=AE43),#REF!)","v":{"$error":"#REF!"}},{"$f":"Таблица5[[#This Row],[план6]]-Таблица5[[#This Row],[факт6]]","v":{"$error":"#REF!"}},null,null,null,null,{"$f":"SUMPRODUCT(--(#REF!=$AK$5),--(#REF!=AK43),#REF!)","v":{"$error":"#REF!"}},{"$f":"Таблица5[[#This Row],[план7]]-Таблица5[[#This Row],[факт7]]","v":{"$error":"#REF!"}},null,null,null,null,{"$f":"SUMPRODUCT(--(#REF!=$AQ$5),--(#REF!=AQ43),#REF!)","v":{"$error":"#REF!"}},{"$f":"Таблица5[[#This Row],[план8]]-Таблица5[[#This Row],[факт8]]","v":{"$error":"#REF!"}},null,null,null,null,{"$f":"SUMPRODUCT(--(#REF!=$AW$5),--(#REF!=AW43),#REF!)","v":{"$error":"#REF!"}},{"$f":"Таблица5[[#This Row],[план9]]-Таблица5[[#This Row],[факт9]]","v":{"$error":"#REF!"}},null,null,null,null,{"$f":"SUMPRODUCT(--(#REF!=$BC$5),--(#REF!=BC43),#REF!)","v":{"$error":"#REF!"}},{"$f":"Таблица5[[#This Row],[план10]]-Таблица5[[#This Row],[факт10]]","v":{"$error":"#REF!"}}]
[null,null,null,null,{"$f":"SUMPRODUCT(--(#REF!=$A$5),--(#REF!=A44),#REF!)","v":{"$error":"#REF!"}},{"$f":"Таблица5[[#This Row],[план]]-Таблица5[[#This Row],[факт]]","v":{"$error":"#REF!"}},null,null,null,null,{"$f":"SUMPRODUCT(--(#REF!=$G$5),--(#REF!=G44),#REF!)","v":{"$error":"#REF!"}},{"$f":"Таблица5[[#This Row],[план2]]-Таблица5[[#This Row],[факт2]]","v":{"$error":"#REF!"}},null,null,null,null,{"$f":"SUMPRODUCT(--(#REF!=$M$5),--(#REF!=M44),#REF!)","v":{"$error":"#REF!"}},{"$f":"Таблица5[[#This Row],[план3]]-Таблица5[[#This Row],[факт3]]","v":{"$error":"#REF!"}},null,null,null,null,{"$f":"SUMPRODUCT(--(#REF!=$S$5),--(#REF!=S44),#REF!)","v":{"$error":"#REF!"}},{"$f":"Таблица5[[#This Row],[план4]]-Таблица5[[#This Row],[факт4]]","v":{"$error":"#REF!"}},null,null,null,null,{"$f":"SUMPRODUCT(--(#REF!=$Y$5),--(#REF!=Y44),#REF!)","v":{"$error":"#REF!"}},{"$f":"Таблица5[[#This Row],[план5]]-Таблица5[[#This Row],[факт5]]","v":{"$error":"#REF!"}},null,null,null,null,{"$f":"SUMPRODUCT(--(#REF!=$AE$5),--(#REF!=AE44),#REF!)","v":{"$error":"#REF!"}},{"$f":"Таблица5[[#This Row],[план6]]-Таблица5[[#This Row],[факт6]]","v":{"$error":"#REF!"}},null,null,null,null,{"$f":"SUMPRODUCT(--(#REF!=$AK$5),--(#REF!=AK44),#REF!)","v":{"$error":"#REF!"}},{"$f":"Таблица5[[#This Row],[план7]]-Таблица5[[#This Row],[факт7]]","v":{"$error":"#REF!"}},null,null,null,null,{"$f":"SUMPRODUCT(--(#REF!=$AQ$5),--(#REF!=AQ44),#REF!)","v":{"$error":"#REF!"}},{"$f":"Таблица5[[#This Row],[план8]]-Таблица5[[#This Row],[факт8]]","v":{"$error":"#REF!"}},null,null,null,null,{"$f":"SUMPRODUCT(--(#REF!=$AW$5),--(#REF!=AW44),#REF!)","v":{"$error":"#REF!"}},{"$f":"Таблица5[[#This Row],[план9]]-Таблица5[[#This Row],[факт9]]","v":{"$error":"#REF!"}},null,null,null,null,{"$f":"SUMPRODUCT(--(#REF!=$BC$5),--(#REF!=BC44),#REF!)","v":{"$error":"#REF!"}},{"$f":"Таблица5[[#This Row],[план10]]-Таблица5[[#This Row],[факт10]]","v":{"$error":"#REF!"}}]
[null,null,null,null,{"$f":"SUMPRODUCT(--(#REF!=$A$5),--(#REF!=A45),#REF!)","v":{"$error":"#REF!"}},{"$f":"Таблица5[[#This Row],[план]]-Таблица5[[#This Row],[факт]]","v":{"$error":"#REF!"}},null,null,null,null,{"$f":"SUMPRODUCT(--(#REF!=$G$5),--(#REF!=G45),#REF!)","v":{"$error":"#REF!"}},{"$f":"Таблица5[[#This Row],[план2]]-Таблица5[[#This Row],[факт2]]","v":{"$error":"#REF!"}},null,null,null,null,{"$f":"SUMPRODUCT(--(#REF!=$M$5),--(#REF!=M45),#REF!)","v":{"$error":"#REF!"}},{"$f":"Таблица5[[#This Row],[план3]]-Таблица5[[#This Row],[факт3]]","v":{"$error":"#REF!"}},null,null,null,null,{"$f":"SUMPRODUCT(--(#REF!=$S$5),--(#REF!=S45),#REF!)","v":{"$error":"#REF!"}},{"$f":"Таблица5[[#This Row],[план4]]-Таблица5[[#This Row],[факт4]]","v":{"$error":"#REF!"}},null,null,null,null,{"$f":"SUMPRODUCT(--(#REF!=$Y$5),--(#REF!=Y45),#REF!)","v":{"$error":"#REF!"}},{"$f":"Таблица5[[#This Row],[план5]]-Таблица5[[#This Row],[факт5]]","v":{"$error":"#REF!"}},null,null,null,null,{"$f":"SUMPRODUCT(--(#REF!=$AE$5),--(#REF!=AE45),#REF!)","v":{"$error":"#REF!"}},{"$f":"Таблица5[[#This Row],[план6]]-Таблица5[[#This Row],[факт6]]","v":{"$error":"#REF!"}},null,null,null,null,{"$f":"SUMPRODUCT(--(#REF!=$AK$5),--(#REF!=AK45),#REF!)","v":{"$error":"#REF!"}},{"$f":"Таблица5[[#This Row],[план7]]-Таблица5[[#This Row],[факт7]]","v":{"$error":"#REF!"}},null,null,null,null,{"$f":"SUMPRODUCT(--(#REF!=$AQ$5),--(#REF!=AQ45),#REF!)","v":{"$error":"#REF!"}},{"$f":"Таблица5[[#This Row],[план8]]-Таблица5[[#This Row],[факт8]]","v":{"$error":"#REF!"}},null,null,null,null,{"$f":"SUMPRODUCT(--(#REF!=$AW$5),--(#REF!=AW45),#REF!)","v":{"$error":"#REF!"}},{"$f":"Таблица5[[#This Row],[план9]]-Таблица5[[#This Row],[факт9]]","v":{"$error":"#REF!"}},null,null,null,null,{"$f":"SUMPRODUCT(--(#REF!=$BC$5),--(#REF!=BC45),#REF!)","v":{"$error":"#REF!"}},{"$f":"Таблица5[[#This Row],[план10]]-Таблица5[[#This Row],[факт10]]","v":{"$error":"#REF!"}}]
[null,null,null,null,{"$f":"SUMPRODUCT(--(#REF!=$A$5),--(#REF!=A46),#REF!)","v":{"$error":"#REF!"}},{"$f":"Таблица5[[#This Row],[план]]-Таблица5[[#This Row],[факт]]","v":{"$error":"#REF!"}},null,null,null,null,{"$f":"SUMPRODUCT(--(#REF!=$G$5),--(#REF!=G46),#REF!)","v":{"$error":"#REF!"}},{"$f":"Таблица5[[#This Row],[план2]]-Таблица5[[#This Row],[факт2]]","v":{"$error":"#REF!"}},null,null,null,null,{"$f":"SUMPRODUCT(--(#REF!=$M$5),--(#REF!=M46),#REF!)","v":{"$error":"#REF!"}},{"$f":"Таблица5[[#This Row],[план3]]-Таблица5[[#This Row],[факт3]]","v":{"$error":"#REF!"}},null,null,null,null,{"$f":"SUMPRODUCT(--(#REF!=$S$5),--(#REF!=S46),#REF!)","v":{"$error":"#REF!"}},{"$f":"Таблица5[[#This Row],[план4]]-Таблица5[[#This Row],[факт4]]","v":{"$error":"#REF!"}},null,null,null,null,{"$f":"SUMPRODUCT(--(#REF!=$Y$5),--(#REF!=Y46),#REF!)","v":{"$error":"#REF!"}},{"$f":"Таблица5[[#This Row],[план5]]-Таблица5[[#This Row],[факт5]]","v":{"$error":"#REF!"}},null,null,null,null,{"$f":"SUMPRODUCT(--(#REF!=$AE$5),--(#REF!=AE46),#REF!)","v":{"$error":"#REF!"}},{"$f":"Таблица5[[#This Row],[план6]]-Таблица5[[#This Row],[факт6]]","v":{"$error":"#REF!"}},null,null,null,null,{"$f":"SUMPRODUCT(--(#REF!=$AK$5),--(#REF!=AK46),#REF!)","v":{"$error":"#REF!"}},{"$f":"Таблица5[[#This Row],[план7]]-Таблица5[[#This Row],[факт7]]","v":{"$error":"#REF!"}},null,null,null,null,{"$f":"SUMPRODUCT(--(#REF!=$AQ$5),--(#REF!=AQ46),#REF!)","v":{"$error":"#REF!"}},{"$f":"Таблица5[[#This Row],[план8]]-Таблица5[[#This Row],[факт8]]","v":{"$error":"#REF!"}},null,null,null,null,{"$f":"SUMPRODUCT(--(#REF!=$AW$5),--(#REF!=AW46),#REF!)","v":{"$error":"#REF!"}},{"$f":"Таблица5[[#This Row],[план9]]-Таблица5[[#This Row],[факт9]]","v":{"$error":"#REF!"}},null,null,null,null,{"$f":"SUMPRODUCT(--(#REF!=$BC$5),--(#REF!=BC46),#REF!)","v":{"$error":"#REF!"}},{"$f":"Таблица5[[#This Row],[план10]]-Таблица5[[#This Row],[факт10]]","v":{"$error":"#REF!"}}]
[null,null,null,null,{"$f":"SUMPRODUCT(--(#REF!=$A$5),--(#REF!=A47),#REF!)","v":{"$error":"#REF!"}},{"$f":"Таблица5[[#This Row],[план]]-Таблица5[[#This Row],[факт]]","v":{"$error":"#REF!"}},null,null,null,null,{"$f":"SUMPRODUCT(--(#REF!=$G$5),--(#REF!=G47),#REF!)","v":{"$error":"#REF!"}},{"$f":"Таблица5[[#This Row],[план2]]-Таблица5[[#This Row],[факт2]]","v":{"$error":"#REF!"}},null,null,null,null,{"$f":"SUMPRODUCT(--(#REF!=$M$5),--(#REF!=M47),#REF!)","v":{"$error":"#REF!"}},{"$f":"Таблица5[[#This Row],[план3]]-Таблица5[[#This Row],[факт3]]","v":{"$error":"#REF!"}},null,null,null,null,{"$f":"SUMPRODUCT(--(#REF!=$S$5),--(#REF!=S47),#REF!)","v":{"$error":"#REF!"}},{"$f":"Таблица5[[#This Row],[план4]]-Таблица5[[#This Row],[факт4]]","v":{"$error":"#REF!"}},null,null,null,null,{"$f":"SUMPRODUCT(--(#REF!=$Y$5),--(#REF!=Y47),#REF!)","v":{"$error":"#REF!"}},{"$f":"Таблица5[[#This Row],[план5]]-Таблица5[[#This Row],[факт5]]","v":{"$error":"#REF!"}},null,null,null,null,{"$f":"SUMPRODUCT(--(#REF!=$AE$5),--(#REF!=AE47),#REF!)","v":{"$error":"#REF!"}},{"$f":"Таблица5[[#This Row],[план6]]-Таблица5[[#This Row],[факт6]]","v":{"$error":"#REF!"}},null,null,null,null,{"$f":"SUMPRODUCT(--(#REF!=$AK$5),--(#REF!=AK47),#REF!)","v":{"$error":"#REF!"}},{"$f":"Таблица5[[#This Row],[план7]]-Таблица5[[#This Row],[факт7]]","v":{"$error":"#REF!"}},null,null,null,null,{"$f":"SUMPRODUCT(--(#REF!=$AQ$5),--(#REF!=AQ47),#REF!)","v":{"$error":"#REF!"}},{"$f":"Таблица5[[#This Row],[план8]]-Таблица5[[#This Row],[факт8]]","v":{"$error":"#REF!"}},null,null,null,null,{"$f":"SUMPRODUCT(--(#REF!=$AW$5),--(#REF!=AW47),#REF!)","v":{"$error":"#REF!"}},{"$f":"Таблица5[[#This Row],[план9]]-Таблица5[[#This Row],[факт9]]","v":{"$error":"#REF!"}},null,null,null,null,{"$f":"SUMPRODUCT(--(#REF!=$BC$5),--(#REF!=BC47),#REF!)","v":{"$error":"#REF!"}},{"$f":"Таблица5[[#This Row],[план10]]-Таблица5[[#This Row],[факт10]]","v":{"$error":"#REF!"}}]
[null,null,null,null,{"$f":"SUMPRODUCT(--(#REF!=$A$5),--(#REF!=A48),#REF!)","v":{"$error":"#REF!"}},{"$f":"Таблица5[[#This Row],[план]]-Таблица5[[#This Row],[факт]]","v":{"$error":"#REF!"}},null,null,null,null,{"$f":"SUMPRODUCT(--(#REF!=$G$5),--(#REF!=G48),#REF!)","v":{"$error":"#REF!"}},{"$f":"Таблица5[[#This Row],[план2]]-Таблица5[[#This Row],[факт2]]","v":{"$error":"#REF!"}},null,null,null,null,{"$f":"SUMPRODUCT(--(#REF!=$M$5),--(#REF!=M48),#REF!)","v":{"$error":"#REF!"}},{"$f":"Таблица5[[#This Row],[план3]]-Таблица5[[#This Row],[факт3]]","v":{"$error":"#REF!"}},null,null,null,null,{"$f":"SUMPRODUCT(--(#REF!=$S$5),--(#REF!=S48),#REF!)","v":{"$error":"#REF!"}},{"$f":"Таблица5[[#This Row],[план4]]-Таблица5[[#This Row],[факт4]]","v":{"$error":"#REF!"}},null,null,null,null,{"$f":"SUMPRODUCT(--(#REF!=$Y$5),--(#REF!=Y48),#REF!)","v":{"$error":"#REF!"}},{"$f":"Таблица5[[#This Row],[план5]]-Таблица5[[#This Row],[факт5]]","v":{"$error":"#REF!"}},null,null,null,null,{"$f":"SUMPRODUCT(--(#REF!=$AE$5),--(#REF!=AE48),#REF!)","v":{"$error":"#REF!"}},{"$f":"Таблица5[[#This Row],[план6]]-Таблица5[[#This Row],[факт6]]","v":{"$error":"#REF!"}},null,null,null,null,{"$f":"SUMPRODUCT(--(#REF!=$AK$5),--(#REF!=AK48),#REF!)","v":{"$error":"#REF!"}},{"$f":"Таблица5[[#This Row],[план7]]-Таблица5[[#This Row],[факт7]]","v":{"$error":"#REF!"}},null,null,null,null,{"$f":"SUMPRODUCT(--(#REF!=$AQ$5),--(#REF!=AQ48),#REF!)","v":{"$error":"#REF!"}},{"$f":"Таблица5[[#This Row],[план8]]-Таблица5[[#This Row],[факт8]]","v":{"$error":"#REF!"}},null,null,null,null,{"$f":"SUMPRODUCT(--(#REF!=$AW$5),--(#REF!=AW48),#REF!)","v":{"$error":"#REF!"}},{"$f":"Таблица5[[#This Row],[план9]]-Таблица5[[#This Row],[факт9]]","v":{"$error":"#REF!"}},null,null,null,null,{"$f":"SUMPRODUCT(--(#REF!=$BC$5),--(#REF!=BC48),#REF!)","v":{"$error":"#REF!"}},{"$f":"Таблица5[[#This Row],[план10]]-Таблица5[[#This Row],[факт10]]","v":{"$error":"#REF!"}}]
[null,null,null,null,{"$f":"SUMPRODUCT(--(#REF!=$A$5),--(#REF!=A49),#REF!)","v":{"$error":"#REF!"}},{"$f":"Таблица5[[#This Row],[план]]-Таблица5[[#This Row],[факт]]","v":{"$error":"#REF!"}},null,null,null,null,{"$f":"SUMPRODUCT(--(#REF!=$G$5),--(#REF!=G49),#REF!)","v":{"$error":"#REF!"}},{"$f":"Таблица5[[#This Row],[план2]]-Таблица5[[#This Row],[факт2]]","v":{"$error":"#REF!"}},null,null,null,null,{"$f":"SUMPRODUCT(--(#REF!=$M$5),--(#REF!=M49),#REF!)","v":{"$error":"#REF!"}},{"$f":"Таблица5[[#This Row],[план3]]-Таблица5[[#This Row],[факт3]]","v":{"$error":"#REF!"}},null,null,null,null,{"$f":"SUMPRODUCT(--(#REF!=$S$5),--(#REF!=S49),#REF!)","v":{"$error":"#REF!"}},{"$f":"Таблица5[[#This Row],[план4]]-Таблица5[[#This Row],[факт4]]","v":{"$error":"#REF!"}},null,null,null,null,{"$f":"SUMPRODUCT(--(#REF!=$Y$5),--(#REF!=Y49),#REF!)","v":{"$error":"#REF!"}},{"$f":"Таблица5[[#This Row],[план5]]-Таблица5[[#This Row],[факт5]]","v":{"$error":"#REF!"}},null,null,null,null,{"$f":"SUMPRODUCT(--(#REF!=$AE$5),--(#REF!=AE49),#REF!)","v":{"$error":"#REF!"}},{"$f":"Таблица5[[#This Row],[план6]]-Таблица5[[#This Row],[факт6]]","v":{"$error":"#REF!"}},null,null,null,null,{"$f":"SUMPRODUCT(--(#REF!=$AK$5),--(#REF!=AK49),#REF!)","v":{"$error":"#REF!"}},{"$f":"Таблица5[[#This Row],[план7]]-Таблица5[[#This Row],[факт7]]","v":{"$error":"#REF!"}},null,null,null,null,{"$f":"SUMPRODUCT(--(#REF!=$AQ$5),--(#REF!=AQ49),#REF!)","v":{"$error":"#REF!"}},{"$f":"Таблица5[[#This Row],[план8]]-Таблица5[[#This Row],[факт8]]","v":{"$error":"#REF!"}},null,null,null,null,{"$f":"SUMPRODUCT(--(#REF!=$AW$5),--(#REF!=AW49),#REF!)","v":{"$error":"#REF!"}},{"$f":"Таблица5[[#This Row],[план9]]-Таблица5[[#This Row],[факт9]]","v":{"$error":"#REF!"}},null,null,null,null,{"$f":"SUMPRODUCT(--(#REF!=$BC$5),--(#REF!=BC49),#REF!)","v":{"$error":"#REF!"}},{"$f":"Таблица5[[#This Row],[план10]]-Таблица5[[#This Row],[факт10]]","v":{"$error":"#REF!"}}]
[null,null,null,null,{"$f":"SUMPRODUCT(--(#REF!=$A$5),--(#REF!=A50),#REF!)","v":{"$error":"#REF!"}},{"$f":"Таблица5[[#This Row],[план]]-Таблица5[[#This Row],[факт]]","v":{"$error":"#REF!"}},null,null,null,null,{"$f":"SUMPRODUCT(--(#REF!=$G$5),--(#REF!=G50),#REF!)","v":{"$error":"#REF!"}},{"$f":"Таблица5[[#This Row],[план2]]-Таблица5[[#This Row],[факт2]]","v":{"$error":"#REF!"}},null,null,null,null,{"$f":"SUMPRODUCT(--(#REF!=$M$5),--(#REF!=M50),#REF!)","v":{"$error":"#REF!"}},{"$f":"Таблица5[[#This Row],[план3]]-Таблица5[[#This Row],[факт3]]","v":{"$error":"#REF!"}},null,null,null,null,{"$f":"SUMPRODUCT(--(#REF!=$S$5),--(#REF!=S50),#REF!)","v":{"$error":"#REF!"}},{"$f":"Таблица5[[#This Row],[план4]]-Таблица5[[#This Row],[факт4]]","v":{"$error":"#REF!"}},null,null,null,null,{"$f":"SUMPRODUCT(--(#REF!=$Y$5),--(#REF!=Y50),#REF!)","v":{"$error":"#REF!"}},{"$f":"Таблица5[[#This Row],[план5]]-Таблица5[[#This Row],[факт5]]","v":{"$error":"#REF!"}},null,null,null,null,{"$f":"SUMPRODUCT(--(#REF!=$AE$5),--(#REF!=AE50),#REF!)","v":{"$error":"#REF!"}},{"$f":"Таблица5[[#This Row],[план6]]-Таблица5[[#This Row],[факт6]]","v":{"$error":"#REF!"}},null,null,null,null,{"$f":"SUMPRODUCT(--(#REF!=$AK$5),--(#REF!=AK50),#REF!)","v":{"$error":"#REF!"}},{"$f":"Таблица5[[#This Row],[план7]]-Таблица5[[#This Row],[факт7]]","v":{"$error":"#REF!"}},null,null,null,null,{"$f":"SUMPRODUCT(--(#REF!=$AQ$5),--(#REF!=AQ50),#REF!)","v":{"$error":"#REF!"}},{"$f":"Таблица5[[#This Row],[план8]]-Таблица5[[#This Row],[факт8]]","v":{"$error":"#REF!"}},null,null,null,null,{"$f":"SUMPRODUCT(--(#REF!=$AW$5),--(#REF!=AW50),#REF!)","v":{"$error":"#REF!"}},{"$f":"Таблица5[[#This Row],[план9]]-Таблица5[[#This Row],[факт9]]","v":{"$error":"#REF!"}},null,null,null,null,{"$f":"SUMPRODUCT(--(#REF!=$BC$5),--(#REF!=BC50),#REF!)","v":{"$error":"#REF!"}},{"$f":"Таблица5[[#This Row],[план10]]-Таблица5[[#This Row],[факт10]]","v":{"$error":"#REF!"}}]
[null,null,null,null,{"$f":"SUMPRODUCT(--(#REF!=$A$5),--(#REF!=A51),#REF!)","v":{"$error":"#REF!"}},{"$f":"Таблица5[[#This Row],[план]]-Таблица5[[#This Row],[факт]]","v":{"$error":"#REF!"}},null,null,null,null,{"$f":"SUMPRODUCT(--(#REF!=$G$5),--(#REF!=G51),#REF!)","v":{"$error":"#REF!"}},{"$f":"Таблица5[[#This Row],[план2]]-Таблица5[[#This Row],[факт2]]","v":{"$error":"#REF!"}},null,null,null,null,{"$f":"SUMPRODUCT(--(#REF!=$M$5),--(#REF!=M51),#REF!)","v":{"$error":"#REF!"}},{"$f":"Таблица5[[#This Row],[план3]]-Таблица5[[#This Row],[факт3]]","v":{"$error":"#REF!"}},null,null,null,null,{"$f":"SUMPRODUCT(--(#REF!=$S$5),--(#REF!=S51),#REF!)","v":{"$error":"#REF!"}},{"$f":"Таблица5[[#This Row],[план4]]-Таблица5[[#This Row],[факт4]]","v":{"$error":"#REF!"}},null,null,null,null,{"$f":"SUMPRODUCT(--(#REF!=$Y$5),--(#REF!=Y51),#REF!)","v":{"$error":"#REF!"}},{"$f":"Таблица5[[#This Row],[план5]]-Таблица5[[#This Row],[факт5]]","v":{"$error":"#REF!"}},null,null,null,null,{"$f":"SUMPRODUCT(--(#REF!=$AE$5),--(#REF!=AE51),#REF!)","v":{"$error":"#REF!"}},{"$f":"Таблица5[[#This Row],[план6]]-Таблица5[[#This Row],[факт6]]","v":{"$error":"#REF!"}},null,null,null,null,{"$f":"SUMPRODUCT(--(#REF!=$AK$5),--(#REF!=AK51),#REF!)","v":{"$error":"#REF!"}},{"$f":"Таблица5[[#This Row],[план7]]-Таблица5[[#This Row],[факт7]]","v":{"$error":"#REF!"}},null,null,null,null,{"$f":"SUMPRODUCT(--(#REF!=$AQ$5),--(#REF!=AQ51),#REF!)","v":{"$error":"#REF!"}},{"$f":"Таблица5[[#This Row],[план8]]-Таблица5[[#This Row],[факт8]]","v":{"$error":"#REF!"}},null,null,null,null,{"$f":"SUMPRODUCT(--(#REF!=$AW$5),--(#REF!=AW51),#REF!)","v":{"$error":"#REF!"}},{"$f":"Таблица5[[#This Row],[план9]]-Таблица5[[#This Row],[факт9]]","v":{"$error":"#REF!"}},null,null,null,null,{"$f":"SUMPRODUCT(--(#REF!=$BC$5),--(#REF!=BC51),#REF!)","v":{"$error":"#REF!"}},{"$f":"Таблица5[[#This Row],[план10]]-Таблица5[[#This Row],[факт10]]","v":{"$error":"#REF!"}}]
[null,null,null,null,{"$f":"SUMPRODUCT(--(#REF!=$A$5),--(#REF!=A52),#REF!)","v":{"$error":"#REF!"}},{"$f":"Таблица5[[#This Row],[план]]-Таблица5[[#This Row],[факт]]","v":{"$error":"#REF!"}},null,null,null,null,{"$f":"SUMPRODUCT(--(#REF!=$G$5),--(#REF!=G52),#REF!)","v":{"$error":"#REF!"}},{"$f":"Таблица5[[#This Row],[план2]]-Таблица5[[#This Row],[факт2]]","v":{"$error":"#REF!"}},null,null,null,null,{"$f":"SUMPRODUCT(--(#REF!=$M$5),--(#REF!=M52),#REF!)","v":{"$error":"#REF!"}},{"$f":"Таблица5[[#This Row],[план3]]-Таблица5[[#This Row],[факт3]]","v":{"$error":"#REF!"}},null,null,null,null,{"$f":"SUMPRODUCT(--(#REF!=$S$5),--(#REF!=S52),#REF!)","v":{"$error":"#REF!"}},{"$f":"Таблица5[[#This Row],[план4]]-Таблица5[[#This Row],[факт4]]","v":{"$error":"#REF!"}},null,null,null,null,{"$f":"SUMPRODUCT(--(#REF!=$Y$5),--(#REF!=Y52),#REF!)","v":{"$error":"#REF!"}},{"$f":"Таблица5[[#This Row],[план5]]-Таблица5[[#This Row],[факт5]]","v":{"$error":"#REF!"}},null,null,null,null,{"$f":"SUMPRODUCT(--(#REF!=$AE$5),--(#REF!=AE52),#REF!)","v":{"$error":"#REF!"}},{"$f":"Таблица5[[#This Row],[план6]]-Таблица5[[#This Row],[факт6]]","v":{"$error":"#REF!"}},null,null,null,null,{"$f":"SUMPRODUCT(--(#REF!=$AK$5),--(#REF!=AK52),#REF!)","v":{"$error":"#REF!"}},{"$f":"Таблица5[[#This Row],[план7]]-Таблица5[[#This Row],[факт7]]","v":{"$error":"#REF!"}},null,null,null,null,{"$f":"SUMPRODUCT(--(#REF!=$AQ$5),--(#REF!=AQ52),#REF!)","v":{"$error":"#REF!"}},{"$f":"Таблица5[[#This Row],[план8]]-Таблица5[[#This Row],[факт8]]","v":{"$error":"#REF!"}},null,null,null,null,{"$f":"SUMPRODUCT(--(#REF!=$AW$5),--(#REF!=AW52),#REF!)","v":{"$error":"#REF!"}},{"$f":"Таблица5[[#This Row],[план9]]-Таблица5[[#This Row],[факт9]]","v":{"$error":"#REF!"}},null,null,null,null,{"$f":"SUMPRODUCT(--(#REF!=$BC$5),--(#REF!=BC52),#REF!)","v":{"$error":"#REF!"}},{"$f":"Таблица5[[#This Row],[план10]]-Таблица5[[#This Row],[факт10]]","v":{"$error":"#REF!"}}]
[null,null,null,null,{"$f":"SUMPRODUCT(--(#REF!=$A$5),--(#REF!=A53),#REF!)","v":{"$error":"#REF!"}},{"$f":"Таблица5[[#This Row],[план]]-Таблица5[[#This Row],[факт]]","v":{"$error":"#REF!"}},null,null,null,null,{"$f":"SUMPRODUCT(--(#REF!=$G$5),--(#REF!=G53),#REF!)","v":{"$error":"#REF!"}},{"$f":"Таблица5[[#This Row],[план2]]-Таблица5[[#This Row],[факт2]]","v":{"$error":"#REF!"}},null,null,null,null,{"$f":"SUMPRODUCT(--(#REF!=$M$5),--(#REF!=M53),#REF!)","v":{"$error":"#REF!"}},{"$f":"Таблица5[[#This Row],[план3]]-Таблица5[[#This Row],[факт3]]","v":{"$error":"#REF!"}},null,null,null,null,{"$f":"SUMPRODUCT(--(#REF!=$S$5),--(#REF!=S53),#REF!)","v":{"$error":"#REF!"}},{"$f":"Таблица5[[#This Row],[план4]]-Таблица5[[#This Row],[факт4]]","v":{"$error":"#REF!"}},null,null,null,null,{"$f":"SUMPRODUCT(--(#REF!=$Y$5),--(#REF!=Y53),#REF!)","v":{"$error":"#REF!"}},{"$f":"Таблица5[[#This Row],[план5]]-Таблица5[[#This Row],[факт5]]","v":{"$error":"#REF!"}},null,null,null,null,{"$f":"SUMPRODUCT(--(#REF!=$AE$5),--(#REF!=AE53),#REF!)","v":{"$error":"#REF!"}},{"$f":"Таблица5[[#This Row],[план6]]-Таблица5[[#This Row],[факт6]]","v":{"$error":"#REF!"}},null,null,null,null,{"$f":"SUMPRODUCT(--(#REF!=$AK$5),--(#REF!=AK53),#REF!)","v":{"$error":"#REF!"}},{"$f":"Таблица5[[#This Row],[план7]]-Таблица5[[#This Row],[факт7]]","v":{"$error":"#REF!"}},null,null,null,null,{"$f":"SUMPRODUCT(--(#REF!=$AQ$5),--(#REF!=AQ53),#REF!)","v":{"$error":"#REF!"}},{"$f":"Таблица5[[#This Row],[план8]]-Таблица5[[#This Row],[факт8]]","v":{"$error":"#REF!"}},null,null,null,null,{"$f":"SUMPRODUCT(--(#REF!=$AW$5),--(#REF!=AW53),#REF!)","v":{"$error":"#REF!"}},{"$f":"Таблица5[[#This Row],[план9]]-Таблица5[[#This Row],[факт9]]","v":{"$error":"#REF!"}},null,null,null,null,{"$f":"SUMPRODUCT(--(#REF!=$BC$5),--(#REF!=BC53),#REF!)","v":{"$error":"#REF!"}},{"$f":"Таблица5[[#This Row],[план10]]-Таблица5[[#This Row],[факт10]]","v":{"$error":"#REF!"}}]
[null,null,null,null,{"$f":"SUMPRODUCT(--(#REF!=$A$5),--(#REF!=A54),#REF!)","v":{"$error":"#REF!"}},{"$f":"Таблица5[[#This Row],[план]]-Таблица5[[#This Row],[факт]]","v":{"$error":"#REF!"}},null,null,null,null,{"$f":"SUMPRODUCT(--(#REF!=$G$5),--(#REF!=G54),#REF!)","v":{"$error":"#REF!"}},{"$f":"Таблица5[[#This Row],[план2]]-Таблица5[[#This Row],[факт2]]","v":{"$error":"#REF!"}},null,null,null,null,{"$f":"SUMPRODUCT(--(#REF!=$M$5),--(#REF!=M54),#REF!)","v":{"$error":"#REF!"}},{"$f":"Таблица5[[#This Row],[план3]]-Таблица5[[#This Row],[факт3]]","v":{"$error":"#REF!"}},null,null,null,null,{"$f":"SUMPRODUCT(--(#REF!=$S$5),--(#REF!=S54),#REF!)","v":{"$error":"#REF!"}},{"$f":"Таблица5[[#This Row],[план4]]-Таблица5[[#This Row],[факт4]]","v":{"$error":"#REF!"}},null,null,null,null,{"$f":"SUMPRODUCT(--(#REF!=$Y$5),--(#REF!=Y54),#REF!)","v":{"$error":"#REF!"}},{"$f":"Таблица5[[#This Row],[план5]]-Таблица5[[#This Row],[факт5]]","v":{"$error":"#REF!"}},null,null,null,null,{"$f":"SUMPRODUCT(--(#REF!=$AE$5),--(#REF!=AE54),#REF!)","v":{"$error":"#REF!"}},{"$f":"Таблица5[[#This Row],[план6]]-Таблица5[[#This Row],[факт6]]","v":{"$error":"#REF!"}},null,null,null,null,{"$f":"SUMPRODUCT(--(#REF!=$AK$5),--(#REF!=AK54),#REF!)","v":{"$error":"#REF!"}},{"$f":"Таблица5[[#This Row],[план7]]-Таблица5[[#This Row],[факт7]]","v":{"$error":"#REF!"}},null,null,null,null,{"$f":"SUMPRODUCT(--(#REF!=$AQ$5),--(#REF!=AQ54),#REF!)","v":{"$error":"#REF!"}},{"$f":"Таблица5[[#This Row],[план8]]-Таблица5[[#This Row],[факт8]]","v":{"$error":"#REF!"}},null,null,null,null,{"$f":"SUMPRODUCT(--(#REF!=$AW$5),--(#REF!=AW54),#REF!)","v":{"$error":"#REF!"}},{"$f":"Таблица5[[#This Row],[план9]]-Таблица5[[#This Row],[факт9]]","v":{"$error":"#REF!"}},null,null,null,null,{"$f":"SUMPRODUCT(--(#REF!=$BC$5),--(#REF!=BC54),#REF!)","v":{"$error":"#REF!"}},{"$f":"Таблица5[[#This Row],[план10]]-Таблица5[[#This Row],[факт10]]","v":{"$error":"#REF!"}}]
[null,null,null,null,{"$f":"SUMPRODUCT(--(#REF!=$A$5),--(#REF!=A55),#REF!)","v":{"$error":"#REF!"}},{"$f":"Таблица5[[#This Row],[план]]-Таблица5[[#This Row],[факт]]","v":{"$error":"#REF!"}},null,null,null,null,{"$f":"SUMPRODUCT(--(#REF!=$G$5),--(#REF!=G55),#REF!)","v":{"$error":"#REF!"}},{"$f":"Таблица5[[#This Row],[план2]]-Таблица5[[#This Row],[факт2]]","v":{"$error":"#REF!"}},null,null,null,null,{"$f":"SUMPRODUCT(--(#REF!=$M$5),--(#REF!=M55),#REF!)","v":{"$error":"#REF!"}},{"$f":"Таблица5[[#This Row],[план3]]-Таблица5[[#This Row],[факт3]]","v":{"$error":"#REF!"}},null,null,null,null,{"$f":"SUMPRODUCT(--(#REF!=$S$5),--(#REF!=S55),#REF!)","v":{"$error":"#REF!"}},{"$f":"Таблица5[[#This Row],[план4]]-Таблица5[[#This Row],[факт4]]","v":{"$error":"#REF!"}},null,null,null,null,{"$f":"SUMPRODUCT(--(#REF!=$Y$5),--(#REF!=Y55),#REF!)","v":{"$error":"#REF!"}},{"$f":"Таблица5[[#This Row],[план5]]-Таблица5[[#This Row],[факт5]]","v":{"$error":"#REF!"}},null,null,null,null,{"$f":"SUMPRODUCT(--(#REF!=$AE$5),--(#REF!=AE55),#REF!)","v":{"$error":"#REF!"}},{"$f":"Таблица5[[#This Row],[план6]]-Таблица5[[#This Row],[факт6]]","v":{"$error":"#REF!"}},null,null,null,null,{"$f":"SUMPRODUCT(--(#REF!=$AK$5),--(#REF!=AK55),#REF!)","v":{"$error":"#REF!"}},{"$f":"Таблица5[[#This Row],[план7]]-Таблица5[[#This Row],[факт7]]","v":{"$error":"#REF!"}},null,null,null,null,{"$f":"SUMPRODUCT(--(#REF!=$AQ$5),--(#REF!=AQ55),#REF!)","v":{"$error":"#REF!"}},{"$f":"Таблица5[[#This Row],[план8]]-Таблица5[[#This Row],[факт8]]","v":{"$error":"#REF!"}},null,null,null,null,{"$f":"SUMPRODUCT(--(#REF!=$AW$5),--(#REF!=AW55),#REF!)","v":{"$error":"#REF!"}},{"$f":"Таблица5[[#This Row],[план9]]-Таблица5[[#This Row],[факт9]]","v":{"$error":"#REF!"}},null,null,null,null,{"$f":"SUMPRODUCT(--(#REF!=$BC$5),--(#REF!=BC55),#REF!)","v":{"$error":"#REF!"}},{"$f":"Таблица5[[#This Row],[план10]]-Таблица5[[#This Row],[факт10]]","v":{"$error":"#REF!"}}]
[null,null,null,null,{"$f":"SUMPRODUCT(--(#REF!=$A$5),--(#REF!=A56),#REF!)","v":{"$error":"#REF!"}},{"$f":"Таблица5[[#This Row],[план]]-Таблица5[[#This Row],[факт]]","v":{"$error":"#REF!"}},null,null,null,null,{"$f":"SUMPRODUCT(--(#REF!=$G$5),--(#REF!=G56),#REF!)","v":{"$error":"#REF!"}},{"$f":"Таблица5[[#This Row],[план2]]-Таблица5[[#This Row],[факт2]]","v":{"$error":"#REF!"}},null,null,null,null,{"$f":"SUMPRODUCT(--(#REF!=$M$5),--(#REF!=M56),#REF!)","v":{"$error":"#REF!"}},{"$f":"Таблица5[[#This Row],[план3]]-Таблица5[[#This Row],[факт3]]","v":{"$error":"#REF!"}},null,null,null,null,{"$f":"SUMPRODUCT(--(#REF!=$S$5),--(#REF!=S56),#REF!)","v":{"$error":"#REF!"}},{"$f":"Таблица5[[#This Row],[план4]]-Таблица5[[#This Row],[факт4]]","v":{"$error":"#REF!"}},null,null,null,null,{"$f":"SUMPRODUCT(--(#REF!=$Y$5),--(#REF!=Y56),#REF!)","v":{"$error":"#REF!"}},{"$f":"Таблица5[[#This Row],[план5]]-Таблица5[[#This Row],[факт5]]","v":{"$error":"#REF!"}},null,null,null,null,{"$f":"SUMPRODUCT(--(#REF!=$AE$5),--(#REF!=AE56),#REF!)","v":{"$error":"#REF!"}},{"$f":"Таблица5[[#This Row],[план6]]-Таблица5[[#This Row],[факт6]]","v":{"$error":"#REF!"}},null,null,null,null,{"$f":"SUMPRODUCT(--(#REF!=$AK$5),--(#REF!=AK56),#REF!)","v":{"$error":"#REF!"}},{"$f":"Таблица5[[#This Row],[план7]]-Таблица5[[#This Row],[факт7]]","v":{"$error":"#REF!"}},null,null,null,null,{"$f":"SUMPRODUCT(--(#REF!=$AQ$5),--(#REF!=AQ56),#REF!)","v":{"$error":"#REF!"}},{"$f":"Таблица5[[#This Row],[план8]]-Таблица5[[#This Row],[факт8]]","v":{"$error":"#REF!"}},null,null,null,null,{"$f":"SUMPRODUCT(--(#REF!=$AW$5),--(#REF!=AW56),#REF!)","v":{"$error":"#REF!"}},{"$f":"Таблица5[[#This Row],[план9]]-Таблица5[[#This Row],[факт9]]","v":{"$error":"#REF!"}},null,null,null,null,{"$f":"SUMPRODUCT(--(#REF!=$BC$5),--(#REF!=BC56),#REF!)","v":{"$error":"#REF!"}},{"$f":"Таблица5[[#This Row],[план10]]-Таблица5[[#This Row],[факт10]]","v":{"$error":"#REF!"}}]
[null,null,null,null,{"$f":"SUMPRODUCT(--(#REF!=$A$5),--(#REF!=A57),#REF!)","v":{"$error":"#REF!"}},{"$f":"Таблица5[[#This Row],[план]]-Таблица5[[#This Row],[факт]]","v":{"$error":"#REF!"}},null,null,null,null,{"$f":"SUMPRODUCT(--(#REF!=$G$5),--(#REF!=G57),#REF!)","v":{"$error":"#REF!"}},{"$f":"Таблица5[[#This Row],[план2]]-Таблица5[[#This Row],[факт2]]","v":{"$error":"#REF!"}},null,null,null,null,{"$f":"SUMPRODUCT(--(#REF!=$M$5),--(#REF!=M57),#REF!)","v":{"$error":"#REF!"}},{"$f":"Таблица5[[#This Row],[план3]]-Таблица5[[#This Row],[факт3]]","v":{"$error":"#REF!"}},null,null,null,null,{"$f":"SUMPRODUCT(--(#REF!=$S$5),--(#REF!=S57),#REF!)","v":{"$error":"#REF!"}},{"$f":"Таблица5[[#This Row],[план4]]-Таблица5[[#This Row],[факт4]]","v":{"$error":"#REF!"}},null,null,null,null,{"$f":"SUMPRODUCT(--(#REF!=$Y$5),--(#REF!=Y57),#REF!)","v":{"$error":"#REF!"}},{"$f":"Таблица5[[#This Row],[план5]]-Таблица5[[#This Row],[факт5]]","v":{"$error":"#REF!"}},null,null,null,null,{"$f":"SUMPRODUCT(--(#REF!=$AE$5),--(#REF!=AE57),#REF!)","v":{"$error":"#REF!"}},{"$f":"Таблица5[[#This Row],[план6]]-Таблица5[[#This Row],[факт6]]","v":{"$error":"#REF!"}},null,null,null,null,{"$f":"SUMPRODUCT(--(#REF!=$AK$5),--(#REF!=AK57),#REF!)","v":{"$error":"#REF!"}},{"$f":"Таблица5[[#This Row],[план7]]-Таблица5[[#This Row],[факт7]]","v":{"$error":"#REF!"}},null,null,null,null,{"$f":"SUMPRODUCT(--(#REF!=$AQ$5),--(#REF!=AQ57),#REF!)","v":{"$error":"#REF!"}},{"$f":"Таблица5[[#This Row],[план8]]-Таблица5[[#This Row],[факт8]]","v":{"$error":"#REF!"}},null,null,null,null,{"$f":"SUMPRODUCT(--(#REF!=$AW$5),--(#REF!=AW57),#REF!)","v":{"$error":"#REF!"}},{"$f":"Таблица5[[#This Row],[план9]]-Таблица5[[#This Row],[факт9]]","v":{"$error":"#REF!"}},null,null,null,null,{"$f":"SUMPRODUCT(--(#REF!=$BC$5),--(#REF!=BC57),#REF!)","v":{"$error":"#REF!"}},{"$f":"Таблица5[[#This Row],[план10]]-Таблица5[[#This Row],[факт10]]","v":{"$error":"#REF!"}}]
[null,null,null,null,{"$f":"SUMPRODUCT(--(#REF!=$A$5),--(#REF!=A58),#REF!)","v":{"$error":"#REF!"}},{"$f":"Таблица5[[#This Row],[план]]-Таблица5[[#This Row],[факт]]","v":{"$error":"#REF!"}},null,null,null,null,{"$f":"SUMPRODUCT(--(#REF!=$G$5),--(#REF!=G58),#REF!)","v":{"$error":"#REF!"}},{"$f":"Таблица5[[#This Row],[план2]]-Таблица5[[#This Row],[факт2]]","v":{"$error":"#REF!"}},null,null,null,null,{"$f":"SUMPRODUCT(--(#REF!=$M$5),--(#REF!=M58),#REF!)","v":{"$error":"#REF!"}},{"$f":"Таблица5[[#This Row],[план3]]-Таблица5[[#This Row],[факт3]]","v":{"$error":"#REF!"}},null,null,null,null,{"$f":"SUMPRODUCT(--(#REF!=$S$5),--(#REF!=S58),#REF!)","v":{"$error":"#REF!"}},{"$f":"Таблица5[[#This Row],[план4]]-Таблица5[[#This Row],[факт4]]","v":{"$error":"#REF!"}},null,null,null,null,{"$f":"SUMPRODUCT(--(#REF!=$Y$5),--(#REF!=Y58),#REF!)","v":{"$error":"#REF!"}},{"$f":"Таблица5[[#This Row],[план5]]-Таблица5[[#This Row],[факт5]]","v":{"$error":"#REF!"}},null,null,null,null,{"$f":"SUMPRODUCT(--(#REF!=$AE$5),--(#REF!=AE58),#REF!)","v":{"$error":"#REF!"}},{"$f":"Таблица5[[#This Row],[план6]]-Таблица5[[#This Row],[факт6]]","v":{"$error":"#REF!"}},null,null,null,null,{"$f":"SUMPRODUCT(--(#REF!=$AK$5),--(#REF!=AK58),#REF!)","v":{"$error":"#REF!"}},{"$f":"Таблица5[[#This Row],[план7]]-Таблица5[[#This Row],[факт7]]","v":{"$error":"#REF!"}},null,null,null,null,{"$f":"SUMPRODUCT(--(#REF!=$AQ$5),--(#REF!=AQ58),#REF!)","v":{"$error":"#REF!"}},{"$f":"Таблица5[[#This Row],[план8]]-Таблица5[[#This Row],[факт8]]","v":{"$error":"#REF!"}},null,null,null,null,{"$f":"SUMPRODUCT(--(#REF!=$AW$5),--(#REF!=AW58),#REF!)","v":{"$error":"#REF!"}},{"$f":"Таблица5[[#This Row],[план9]]-Таблица5[[#This Row],[факт9]]","v":{"$error":"#REF!"}},null,null,null,null,{"$f":"SUMPRODUCT(--(#REF!=$BC$5),--(#REF!=BC58),#REF!)","v":{"$error":"#REF!"}},{"$f":"Таблица5[[#This Row],[план10]]-Таблица5[[#This Row],[факт10]]","v":{"$error":"#REF!"}}]
[null,null,null,null,{"$f":"SUMPRODUCT(--(#REF!=$A$5),--(#REF!=A59),#REF!)","v":{"$error":"#REF!"}},{"$f":"Таблица5[[#This Row],[план]]-Таблица5[[#This Row],[факт]]","v":{"$error":"#REF!"}},null,null,null,null,{"$f":"SUMPRODUCT(--(#REF!=$G$5),--(#REF!=G59),#REF!)","v":{"$error":"#REF!"}},{"$f":"Таблица5[[#This Row],[план2]]-Таблица5[[#This Row],[факт2]]","v":{"$error":"#REF!"}},null,null,null,null,{"$f":"SUMPRODUCT(--(#REF!=$M$5),--(#REF!=M59),#REF!)","v":{"$error":"#REF!"}},{"$f":"Таблица5[[#This Row],[план3]]-Таблица5[[#This Row],[факт3]]","v":{"$error":"#REF!"}},null,null,null,null,{"$f":"SUMPRODUCT(--(#REF!=$S$5),--(#REF!=S59),#REF!)","v":{"$error":"#REF!"}},{"$f":"Таблица5[[#This Row],[план4]]-Таблица5[[#This Row],[факт4]]","v":{"$error":"#REF!"}},null,null,null,null,{"$f":"SUMPRODUCT(--(#REF!=$Y$5),--(#REF!=Y59),#REF!)","v":{"$error":"#REF!"}},{"$f":"Таблица5[[#This Row],[план5]]-Таблица5[[#This Row],[факт5]]","v":{"$error":"#REF!"}},null,null,null,null,{"$f":"SUMPRODUCT(--(#REF!=$AE$5),--(#REF!=AE59),#REF!)","v":{"$error":"#REF!"}},{"$f":"Таблица5[[#This Row],[план6]]-Таблица5[[#This Row],[факт6]]","v":{"$error":"#REF!"}},null,null,null,null,{"$f":"SUMPRODUCT(--(#REF!=$AK$5),--(#REF!=AK59),#REF!)","v":{"$error":"#REF!"}},{"$f":"Таблица5[[#This Row],[план7]]-Таблица5[[#This Row],[факт7]]","v":{"$error":"#REF!"}},null,null,null,null,{"$f":"SUMPRODUCT(--(#REF!=$AQ$5),--(#REF!=AQ59),#REF!)","v":{"$error":"#REF!"}},{"$f":"Таблица5[[#This Row],[план8]]-Таблица5[[#This Row],[факт8]]","v":{"$error":"#REF!"}},null,null,null,null,{"$f":"SUMPRODUCT(--(#REF!=$AW$5),--(#REF!=AW59),#REF!)","v":{"$error":"#REF!"}},{"$f":"Таблица5[[#This Row],[план9]]-Таблица5[[#This Row],[факт9]]","v":{"$error":"#REF!"}},null,null,null,null,{"$f":"SUMPRODUCT(--(#REF!=$BC$5),--(#REF!=BC59),#REF!)","v":{"$error":"#REF!"}},{"$f":"Таблица5[[#This Row],[план10]]-Таблица5[[#This Row],[факт10]]","v":{"$error":"#REF!"}}]
[null,null,null,null,{"$f":"SUMPRODUCT(--(#REF!=$A$5),--(#REF!=A60),#REF!)","v":{"$error":"#REF!"}},{"$f":"Таблица5[[#This Row],[план]]-Таблица5[[#This Row],[факт]]","v":{"$error":"#REF!"}},null,null,null,null,{"$f":"SUMPRODUCT(--(#REF!=$G$5),--(#REF!=G60),#REF!)","v":{"$error":"#REF!"}},{"$f":"Таблица5[[#This Row],[план2]]-Таблица5[[#This Row],[факт2]]","v":{"$error":"#REF!"}},null,null,null,null,{"$f":"SUMPRODUCT(--(#REF!=$M$5),--(#REF!=M60),#REF!)","v":{"$error":"#REF!"}},{"$f":"Таблица5[[#This Row],[план3]]-Таблица5[[#This Row],[факт3]]","v":{"$error":"#REF!"}},null,null,null,null,{"$f":"SUMPRODUCT(--(#REF!=$S$5),--(#REF!=S60),#REF!)","v":{"$error":"#REF!"}},{"$f":"Таблица5[[#This Row],[план4]]-Таблица5[[#This Row],[факт4]]","v":{"$error":"#REF!"}},null,null,null,null,{"$f":"SUMPRODUCT(--(#REF!=$Y$5),--(#REF!=Y60),#REF!)","v":{"$error":"#REF!"}},{"$f":"Таблица5[[#This Row],[план5]]-Таблица5[[#This Row],[факт5]]","v":{"$error":"#REF!"}},null,null,null,null,{"$f":"SUMPRODUCT(--(#REF!=$AE$5),--(#REF!=AE60),#REF!)","v":{"$error":"#REF!"}},{"$f":"Таблица5[[#This Row],[план6]]-Таблица5[[#This Row],[факт6]]","v":{"$error":"#REF!"}},null,null,null,null,{"$f":"SUMPRODUCT(--(#REF!=$AK$5),--(#REF!=AK60),#REF!)","v":{"$error":"#REF!"}},{"$f":"Таблица5[[#This Row],[план7]]-Таблица5[[#This Row],[факт7]]","v":{"$error":"#REF!"}},null,null,null,null,{"$f":"SUMPRODUCT(--(#REF!=$AQ$5),--(#REF!=AQ60),#REF!)","v":{"$error":"#REF!"}},{"$f":"Таблица5[[#This Row],[план8]]-Таблица5[[#This Row],[факт8]]","v":{"$error":"#REF!"}},null,null,null,null,{"$f":"SUMPRODUCT(--(#REF!=$AW$5),--(#REF!=AW60),#REF!)","v":{"$error":"#REF!"}},{"$f":"Таблица5[[#This Row],[план9]]-Таблица5[[#This Row],[факт9]]","v":{"$error":"#REF!"}},null,null,null,null,{"$f":"SUMPRODUCT(--(#REF!=$BC$5),--(#REF!=BC60),#REF!)","v":{"$error":"#REF!"}},{"$f":"Таблица5[[#This Row],[план10]]-Таблица5[[#This Row],[факт10]]","v":{"$error":"#REF!"}}]
[null,null,null,null,{"$f":"SUMPRODUCT(--(#REF!=$A$5),--(#REF!=A61),#REF!)","v":{"$error":"#REF!"}},{"$f":"Таблица5[[#This Row],[план]]-Таблица5[[#This Row],[факт]]","v":{"$error":"#REF!"}},null,null,null,null,{"$f":"SUMPRODUCT(--(#REF!=$G$5),--(#REF!=G61),#REF!)","v":{"$error":"#REF!"}},{"$f":"Таблица5[[#This Row],[план2]]-Таблица5[[#This Row],[факт2]]","v":{"$error":"#REF!"}},null,null,null,null,{"$f":"SUMPRODUCT(--(#REF!=$M$5),--(#REF!=M61),#REF!)","v":{"$error":"#REF!"}},{"$f":"Таблица5[[#This Row],[план3]]-Таблица5[[#This Row],[факт3]]","v":{"$error":"#REF!"}},null,null,null,null,{"$f":"SUMPRODUCT(--(#REF!=$S$5),--(#REF!=S61),#REF!)","v":{"$error":"#REF!"}},{"$f":"Таблица5[[#This Row],[план4]]-Таблица5[[#This Row],[факт4]]","v":{"$error":"#REF!"}},null,null,null,null,{"$f":"SUMPRODUCT(--(#REF!=$Y$5),--(#REF!=Y61),#REF!)","v":{"$error":"#REF!"}},{"$f":"Таблица5[[#This Row],[план5]]-Таблица5[[#This Row],[факт5]]","v":{"$error":"#REF!"}},null,null,null,null,{"$f":"SUMPRODUCT(--(#REF!=$AE$5),--(#REF!=AE61),#REF!)","v":{"$error":"#REF!"}},{"$f":"Таблица5[[#This Row],[план6]]-Таблица5[[#This Row],[факт6]]","v":{"$error":"#REF!"}},null,null,null,null,{"$f":"SUMPRODUCT(--(#REF!=$AK$5),--(#REF!=AK61),#REF!)","v":{"$error":"#REF!"}},{"$f":"Таблица5[[#This Row],[план7]]-Таблица5[[#This Row],[факт7]]","v":{"$error":"#REF!"}},null,null,null,null,{"$f":"SUMPRODUCT(--(#REF!=$AQ$5),--(#REF!=AQ61),#REF!)","v":{"$error":"#REF!"}},{"$f":"Таблица5[[#This Row],[план8]]-Таблица5[[#This Row],[факт8]]","v":{"$error":"#REF!"}},null,null,null,null,{"$f":"SUMPRODUCT(--(#REF!=$AW$5),--(#REF!=AW61),#REF!)","v":{"$error":"#REF!"}},{"$f":"Таблица5[[#This Row],[план9]]-Таблица5[[#This Row],[факт9]]","v":{"$error":"#REF!"}},null,null,null,null,{"$f":"SUMPRODUCT(--(#REF!=$BC$5),--(#REF!=BC61),#REF!)","v":{"$error":"#REF!"}},{"$f":"Таблица5[[#This Row],[план10]]-Таблица5[[#This Row],[факт10]]","v":{"$error":"#REF!"}}]
[null,null,null,null,{"$f":"SUMPRODUCT(--(#REF!=$A$5),--(#REF!=A62),#REF!)","v":{"$error":"#REF!"}},{"$f":"Таблица5[[#This Row],[план]]-Таблица5[[#This Row],[факт]]","v":{"$error":"#REF!"}},null,null,null,null,{"$f":"SUMPRODUCT(--(#REF!=$G$5),--(#REF!=G62),#REF!)","v":{"$error":"#REF!"}},{"$f":"Таблица5[[#This Row],[план2]]-Таблица5[[#This Row],[факт2]]","v":{"$error":"#REF!"}},null,null,null,null,{"$f":"SUMPRODUCT(--(#REF!=$M$5),--(#REF!=M62),#REF!)","v":{"$error":"#REF!"}},{"$f":"Таблица5[[#This Row],[план3]]-Таблица5[[#This Row],[факт3]]","v":{"$error":"#REF!"}},null,null,null,null,{"$f":"SUMPRODUCT(--(#REF!=$S$5),--(#REF!=S62),#REF!)","v":{"$error":"#REF!"}},{"$f":"Таблица5[[#This Row],[план4]]-Таблица5[[#This Row],[факт4]]","v":{"$error":"#REF!"}},null,null,null,null,{"$f":"SUMPRODUCT(--(#REF!=$Y$5),--(#REF!=Y62),#REF!)","v":{"$error":"#REF!"}},{"$f":"Таблица5[[#This Row],[план5]]-Таблица5[[#This Row],[факт5]]","v":{"$error":"#REF!"}},null,null,null,null,{"$f":"SUMPRODUCT(--(#REF!=$AE$5),--(#REF!=AE62),#REF!)","v":{"$error":"#REF!"}},{"$f":"Таблица5[[#This Row],[план6]]-Таблица5[[#This Row],[факт6]]","v":{"$error":"#REF!"}},null,null,null,null,{"$f":"SUMPRODUCT(--(#REF!=$AK$5),--(#REF!=AK62),#REF!)","v":{"$error":"#REF!"}},{"$f":"Таблица5[[#This Row],[план7]]-Таблица5[[#This Row],[факт7]]","v":{"$error":"#REF!"}},null,null,null,null,{"$f":"SUMPRODUCT(--(#REF!=$AQ$5),--(#REF!=AQ62),#REF!)","v":{"$error":"#REF!"}},{"$f":"Таблица5[[#This Row],[план8]]-Таблица5[[#This Row],[факт8]]","v":{"$error":"#REF!"}},null,null,null,null,{"$f":"SUMPRODUCT(--(#REF!=$AW$5),--(#REF!=AW62),#REF!)","v":{"$error":"#REF!"}},{"$f":"Таблица5[[#This Row],[план9]]-Таблица5[[#This Row],[факт9]]","v":{"$error":"#REF!"}},null,null,null,null,{"$f":"SUMPRODUCT(--(#REF!=$BC$5),--(#REF!=BC62),#REF!)","v":{"$error":"#REF!"}},{"$f":"Таблица5[[#This Row],[план10]]-Таблица5[[#This Row],[факт10]]","v":{"$error":"#REF!"}}]
[null,null,null,null,{"$f":"SUMPRODUCT(--(#REF!=$A$5),--(#REF!=A63),#REF!)","v":{"$error":"#REF!"}},{"$f":"Таблица5[[#This Row],[план]]-Таблица5[[#This Row],[факт]]","v":{"$error":"#REF!"}},null,null,null,null,{"$f":"SUMPRODUCT(--(#REF!=$G$5),--(#REF!=G63),#REF!)","v":{"$error":"#REF!"}},{"$f":"Таблица5[[#This Row],[план2]]-Таблица5[[#This Row],[факт2]]","v":{"$error":"#REF!"}},null,null,null,null,{"$f":"SUMPRODUCT(--(#REF!=$M$5),--(#REF!=M63),#REF!)","v":{"$error":"#REF!"}},{"$f":"Таблица5[[#This Row],[план3]]-Таблица5[[#This Row],[факт3]]","v":{"$error":"#REF!"}},null,null,null,null,{"$f":"SUMPRODUCT(--(#REF!=$S$5),--(#REF!=S63),#REF!)","v":{"$error":"#REF!"}},{"$f":"Таблица5[[#This Row],[план4]]-Таблица5[[#This Row],[факт4]]","v":{"$error":"#REF!"}},null,null,null,null,{"$f":"SUMPRODUCT(--(#REF!=$Y$5),--(#REF!=Y63),#REF!)","v":{"$error":"#REF!"}},{"$f":"Таблица5[[#This Row],[план5]]-Таблица5[[#This Row],[факт5]]","v":{"$error":"#REF!"}},null,null,null,null,{"$f":"SUMPRODUCT(--(#REF!=$AE$5),--(#REF!=AE63),#REF!)","v":{"$error":"#REF!"}},{"$f":"Таблица5[[#This Row],[план6]]-Таблица5[[#This Row],[факт6]]","v":{"$error":"#REF!"}},null,null,null,null,{"$f":"SUMPRODUCT(--(#REF!=$AK$5),--(#REF!=AK63),#REF!)","v":{"$error":"#REF!"}},{"$f":"Таблица5[[#This Row],[план7]]-Таблица5[[#This Row],[факт7]]","v":{"$error":"#REF!"}},null,null,null,null,{"$f":"SUMPRODUCT(--(#REF!=$AQ$5),--(#REF!=AQ63),#REF!)","v":{"$error":"#REF!"}},{"$f":"Таблица5[[#This Row],[план8]]-Таблица5[[#This Row],[факт8]]","v":{"$error":"#REF!"}},null,null,null,null,{"$f":"SUMPRODUCT(--(#REF!=$AW$5),--(#REF!=AW63),#REF!)","v":{"$error":"#REF!"}},{"$f":"Таблица5[[#This Row],[план9]]-Таблица5[[#This Row],[факт9]]","v":{"$error":"#REF!"}},null,null,null,null,{"$f":"SUMPRODUCT(--(#REF!=$BC$5),--(#REF!=BC63),#REF!)","v":{"$error":"#REF!"}},{"$f":"Таблица5[[#This Row],[план10]]-Таблица5[[#This Row],[факт10]]","v":{"$error":"#REF!"}}]
[null,null,null,null,{"$f":"SUMPRODUCT(--(#REF!=$A$5),--(#REF!=A64),#REF!)","v":{"$error":"#REF!"}},{"$f":"Таблица5[[#This Row],[план]]-Таблица5[[#This Row],[факт]]","v":{"$error":"#REF!"}},null,null,null,null,{"$f":"SUMPRODUCT(--(#REF!=$G$5),--(#REF!=G64),#REF!)","v":{"$error":"#REF!"}},{"$f":"Таблица5[[#This Row],[план2]]-Таблица5[[#This Row],[факт2]]","v":{"$error":"#REF!"}},null,null,null,null,{"$f":"SUMPRODUCT(--(#REF!=$M$5),--(#REF!=M64),#REF!)","v":{"$error":"#REF!"}},{"$f":"Таблица5[[#This Row],[план3]]-Таблица5[[#This Row],[факт3]]","v":{"$error":"#REF!"}},null,null,null,null,{"$f":"SUMPRODUCT(--(#REF!=$S$5),--(#REF!=S64),#REF!)","v":{"$error":"#REF!"}},{"$f":"Таблица5[[#This Row],[план4]]-Таблица5[[#This Row],[факт4]]","v":{"$error":"#REF!"}},null,null,null,null,{"$f":"SUMPRODUCT(--(#REF!=$Y$5),--(#REF!=Y64),#REF!)","v":{"$error":"#REF!"}},{"$f":"Таблица5[[#This Row],[план5]]-Таблица5[[#This Row],[факт5]]","v":{"$error":"#REF!"}},null,null,null,null,{"$f":"SUMPRODUCT(--(#REF!=$AE$5),--(#REF!=AE64),#REF!)","v":{"$error":"#REF!"}},{"$f":"Таблица5[[#This Row],[план6]]-Таблица5[[#This Row],[факт6]]","v":{"$error":"#REF!"}},null,null,null,null,{"$f":"SUMPRODUCT(--(#REF!=$AK$5),--(#REF!=AK64),#REF!)","v":{"$error":"#REF!"}},{"$f":"Таблица5[[#This Row],[план7]]-Таблица5[[#This Row],[факт7]]","v":{"$error":"#REF!"}},null,null,null,null,{"$f":"SUMPRODUCT(--(#REF!=$AQ$5),--(#REF!=AQ64),#REF!)","v":{"$error":"#REF!"}},{"$f":"Таблица5[[#This Row],[план8]]-Таблица5[[#This Row],[факт8]]","v":{"$error":"#REF!"}},null,null,null,null,{"$f":"SUMPRODUCT(--(#REF!=$AW$5),--(#REF!=AW64),#REF!)","v":{"$error":"#REF!"}},{"$f":"Таблица5[[#This Row],[план9]]-Таблица5[[#This Row],[факт9]]","v":{"$error":"#REF!"}},null,null,null,null,{"$f":"SUMPRODUCT(--(#REF!=$BC$5),--(#REF!=BC64),#REF!)","v":{"$error":"#REF!"}},{"$f":"Таблица5[[#This Row],[план10]]-Таблица5[[#This Row],[факт10]]","v":{"$error":"#REF!"}}]
[null,null,null,null,{"$f":"SUMPRODUCT(--(#REF!=$A$5),--(#REF!=A65),#REF!)","v":{"$error":"#REF!"}},{"$f":"Таблица5[[#This Row],[план]]-Таблица5[[#This Row],[факт]]","v":{"$error":"#REF!"}},null,null,null,null,{"$f":"SUMPRODUCT(--(#REF!=$G$5),--(#REF!=G65),#REF!)","v":{"$error":"#REF!"}},{"$f":"Таблица5[[#This Row],[план2]]-Таблица5[[#This Row],[факт2]]","v":{"$error":"#REF!"}},null,null,null,null,{"$f":"SUMPRODUCT(--(#REF!=$M$5),--(#REF!=M65),#REF!)","v":{"$error":"#REF!"}},{"$f":"Таблица5[[#This Row],[план3]]-Таблица5[[#This Row],[факт3]]","v":{"$error":"#REF!"}},null,null,null,null,{"$f":"SUMPRODUCT(--(#REF!=$S$5),--(#REF!=S65),#REF!)","v":{"$error":"#REF!"}},{"$f":"Таблица5[[#This Row],[план4]]-Таблица5[[#This Row],[факт4]]","v":{"$error":"#REF!"}},null,null,null,null,{"$f":"SUMPRODUCT(--(#REF!=$Y$5),--(#REF!=Y65),#REF!)","v":{"$error":"#REF!"}},{"$f":"Таблица5[[#This Row],[план5]]-Таблица5[[#This Row],[факт5]]","v":{"$error":"#REF!"}},null,null,null,null,{"$f":"SUMPRODUCT(--(#REF!=$AE$5),--(#REF!=AE65),#REF!)","v":{"$error":"#REF!"}},{"$f":"Таблица5[[#This Row],[план6]]-Таблица5[[#This Row],[факт6]]","v":{"$error":"#REF!"}},null,null,null,null,{"$f":"SUMPRODUCT(--(#REF!=$AK$5),--(#REF!=AK65),#REF!)","v":{"$error":"#REF!"}},{"$f":"Таблица5[[#This Row],[план7]]-Таблица5[[#This Row],[факт7]]","v":{"$error":"#REF!"}},null,null,null,null,{"$f":"SUMPRODUCT(--(#REF!=$AQ$5),--(#REF!=AQ65),#REF!)","v":{"$error":"#REF!"}},{"$f":"Таблица5[[#This Row],[план8]]-Таблица5[[#This Row],[факт8]]","v":{"$error":"#REF!"}},null,null,null,null,{"$f":"SUMPRODUCT(--(#REF!=$AW$5),--(#REF!=AW65),#REF!)","v":{"$error":"#REF!"}},{"$f":"Таблица5[[#This Row],[план9]]-Таблица5[[#This Row],[факт9]]","v":{"$error":"#REF!"}},null,null,null,null,{"$f":"SUMPRODUCT(--(#REF!=$BC$5),--(#REF!=BC65),#REF!)","v":{"$error":"#REF!"}},{"$f":"Таблица5[[#This Row],[план10]]-Таблица5[[#This Row],[факт10]]","v":{"$error":"#REF!"}}]
[null,null,null,null,{"$f":"SUMPRODUCT(--(#REF!=$A$5),--(#REF!=A66),#REF!)","v":{"$error":"#REF!"}},{"$f":"Таблица5[[#This Row],[план]]-Таблица5[[#This Row],[факт]]","v":{"$error":"#REF!"}},null,null,null,null,{"$f":"SUMPRODUCT(--(#REF!=$G$5),--(#REF!=G66),#REF!)","v":{"$error":"#REF!"}},{"$f":"Таблица5[[#This Row],[план2]]-Таблица5[[#This Row],[факт2]]","v":{"$error":"#REF!"}},null,null,null,null,{"$f":"SUMPRODUCT(--(#REF!=$M$5),--(#REF!=M66),#REF!)","v":{"$error":"#REF!"}},{"$f":"Таблица5[[#This Row],[план3]]-Таблица5[[#This Row],[факт3]]","v":{"$error":"#REF!"}},null,null,null,null,{"$f":"SUMPRODUCT(--(#REF!=$S$5),--(#REF!=S66),#REF!)","v":{"$error":"#REF!"}},{"$f":"Таблица5[[#This Row],[план4]]-Таблица5[[#This Row],[факт4]]","v":{"$error":"#REF!"}},null,null,null,null,{"$f":"SUMPRODUCT(--(#REF!=$Y$5),--(#REF!=Y66),#REF!)","v":{"$error":"#REF!"}},{"$f":"Таблица5[[#This Row],[план5]]-Таблица5[[#This Row],[факт5]]","v":{"$error":"#REF!"}},null,null,null,null,{"$f":"SUMPRODUCT(--(#REF!=$AE$5),--(#REF!=AE66),#REF!)","v":{"$error":"#REF!"}},{"$f":"Таблица5[[#This Row],[план6]]-Таблица5[[#This Row],[факт6]]","v":{"$error":"#REF!"}},null,null,null,null,{"$f":"SUMPRODUCT(--(#REF!=$AK$5),--(#REF!=AK66),#REF!)","v":{"$error":"#REF!"}},{"$f":"Таблица5[[#This Row],[план7]]-Таблица5[[#This Row],[факт7]]","v":{"$error":"#REF!"}},null,null,null,null,{"$f":"SUMPRODUCT(--(#REF!=$AQ$5),--(#REF!=AQ66),#REF!)","v":{"$error":"#REF!"}},{"$f":"Таблица5[[#This Row],[план8]]-Таблица5[[#This Row],[факт8]]","v":{"$error":"#REF!"}},null,null,null,null,{"$f":"SUMPRODUCT(--(#REF!=$AW$5),--(#REF!=AW66),#REF!)","v":{"$error":"#REF!"}},{"$f":"Таблица5[[#This Row],[план9]]-Таблица5[[#This Row],[факт9]]","v":{"$error":"#REF!"}},null,null,null,null,{"$f":"SUMPRODUCT(--(#REF!=$BC$5),--(#REF!=BC66),#REF!)","v":{"$error":"#REF!"}},{"$f":"Таблица5[[#This Row],[план10]]-Таблица5[[#This Row],[факт10]]","v":{"$error":"#REF!"}}]
[null,null,null,null,{"$f":"SUMPRODUCT(--(#REF!=$A$5),--(#REF!=A67),#REF!)","v":{"$error":"#REF!"}},{"$f":"Таблица5[[#This Row],[план]]-Таблица5[[#This Row],[факт]]","v":{"$error":"#REF!"}},null,null,null,null,{"$f":"SUMPRODUCT(--(#REF!=$G$5),--(#REF!=G67),#REF!)","v":{"$error":"#REF!"}},{"$f":"Таблица5[[#This Row],[план2]]-Таблица5[[#This Row],[факт2]]","v":{"$error":"#REF!"}},null,null,null,null,{"$f":"SUMPRODUCT(--(#REF!=$M$5),--(#REF!=M67),#REF!)","v":{"$error":"#REF!"}},{"$f":"Таблица5[[#This Row],[план3]]-Таблица5[[#This Row],[факт3]]","v":{"$error":"#REF!"}},null,null,null,null,{"$f":"SUMPRODUCT(--(#REF!=$S$5),--(#REF!=S67),#REF!)","v":{"$error":"#REF!"}},{"$f":"Таблица5[[#This Row],[план4]]-Таблица5[[#This Row],[факт4]]","v":{"$error":"#REF!"}},null,null,null,null,{"$f":"SUMPRODUCT(--(#REF!=$Y$5),--(#REF!=Y67),#REF!)","v":{"$error":"#REF!"}},{"$f":"Таблица5[[#This Row],[план5]]-Таблица5[[#This Row],[факт5]]","v":{"$error":"#REF!"}},null,null,null,null,{"$f":"SUMPRODUCT(--(#REF!=$AE$5),--(#REF!=AE67),#REF!)","v":{"$error":"#REF!"}},{"$f":"Таблица5[[#This Row],[план6]]-Таблица5[[#This Row],[факт6]]","v":{"$error":"#REF!"}},null,null,null,null,{"$f":"SUMPRODUCT(--(#REF!=$AK$5),--(#REF!=AK67),#REF!)","v":{"$error":"#REF!"}},{"$f":"Таблица5[[#This Row],[план7]]-Таблица5[[#This Row],[факт7]]","v":{"$error":"#REF!"}},null,null,null,null,{"$f":"SUMPRODUCT(--(#REF!=$AQ$5),--(#REF!=AQ67),#REF!)","v":{"$error":"#REF!"}},{"$f":"Таблица5[[#This Row],[план8]]-Таблица5[[#This Row],[факт8]]","v":{"$error":"#REF!"}},null,null,null,null,{"$f":"SUMPRODUCT(--(#REF!=$AW$5),--(#REF!=AW67),#REF!)","v":{"$error":"#REF!"}},{"$f":"Таблица5[[#This Row],[план9]]-Таблица5[[#This Row],[факт9]]","v":{"$error":"#REF!"}},null,null,null,null,{"$f":"SUMPRODUCT(--(#REF!=$BC$5),--(#REF!=BC67),#REF!)","v":{"$error":"#REF!"}},{"$f":"Таблица5[[#This Row],[план10]]-Таблица5[[#This Row],[факт10]]","v":{"$error":"#REF!"}}]
[null,null,null,null,{"$f":"SUMPRODUCT(--(#REF!=$A$5),--(#REF!=A68),#REF!)","v":{"$error":"#REF!"}},{"$f":"Таблица5[[#This Row],[план]]-Таблица5[[#This Row],[факт]]","v":{"$error":"#REF!"}},null,null,null,null,{"$f":"SUMPRODUCT(--(#REF!=$G$5),--(#REF!=G68),#REF!)","v":{"$error":"#REF!"}},{"$f":"Таблица5[[#This Row],[план2]]-Таблица5[[#This Row],[факт2]]","v":{"$error":"#REF!"}},null,null,null,null,{"$f":"SUMPRODUCT(--(#REF!=$M$5),--(#REF!=M68),#REF!)","v":{"$error":"#REF!"}},{"$f":"Таблица5[[#This Row],[план3]]-Таблица5[[#This Row],[факт3]]","v":{"$error":"#REF!"}},null,null,null,null,{"$f":"SUMPRODUCT(--(#REF!=$S$5),--(#REF!=S68),#REF!)","v":{"$error":"#REF!"}},{"$f":"Таблица5[[#This Row],[план4]]-Таблица5[[#This Row],[факт4]]","v":{"$error":"#REF!"}},null,null,null,null,{"$f":"SUMPRODUCT(--(#REF!=$Y$5),--(#REF!=Y68),#REF!)","v":{"$error":"#REF!"}},{"$f":"Таблица5[[#This Row],[план5]]-Таблица5[[#This Row],[факт5]]","v":{"$error":"#REF!"}},null,null,null,null,{"$f":"SUMPRODUCT(--(#REF!=$AE$5),--(#REF!=AE68),#REF!)","v":{"$error":"#REF!"}},{"$f":"Таблица5[[#This Row],[план6]]-Таблица5[[#This Row],[факт6]]","v":{"$error":"#REF!"}},null,null,null,null,{"$f":"SUMPRODUCT(--(#REF!=$AK$5),--(#REF!=AK68),#REF!)","v":{"$error":"#REF!"}},{"$f":"Таблица5[[#This Row],[план7]]-Таблица5[[#This Row],[факт7]]","v":{"$error":"#REF!"}},null,null,null,null,{"$f":"SUMPRODUCT(--(#REF!=$AQ$5),--(#REF!=AQ68),#REF!)","v":{"$error":"#REF!"}},{"$f":"Таблица5[[#This Row],[план8]]-Таблица5[[#This Row],[факт8]]","v":{"$error":"#REF!"}},null,null,null,null,{"$f":"SUMPRODUCT(--(#REF!=$AW$5),--(#REF!=AW68),#REF!)","v":{"$error":"#REF!"}},{"$f":"Таблица5[[#This Row],[план9]]-Таблица5[[#This Row],[факт9]]","v":{"$error":"#REF!"}},null,null,null,null,{"$f":"SUMPRODUCT(--(#REF!=$BC$5),--(#REF!=BC68),#REF!)","v":{"$error":"#REF!"}},{"$f":"Таблица5[[#This Row],[план10]]-Таблица5[[#This Row],[факт10]]","v":{"$error":"#REF!"}}]
[null,null,null,null,{"$f":"SUMPRODUCT(--(#REF!=$A$5),--(#REF!=A69),#REF!)","v":{"$error":"#REF!"}},{"$f":"Таблица5[[#This Row],[план]]-Таблица5[[#This Row],[факт]]","v":{"$error":"#REF!"}},null,null,null,null,{"$f":"SUMPRODUCT(--(#REF!=$G$5),--(#REF!=G69),#REF!)","v":{"$error":"#REF!"}},{"$f":"Таблица5[[#This Row],[план2]]-Таблица5[[#This Row],[факт2]]","v":{"$error":"#REF!"}},null,null,null,null,{"$f":"SUMPRODUCT(--(#REF!=$M$5),--(#REF!=M69),#REF!)","v":{"$error":"#REF!"}},{"$f":"Таблица5[[#This Row],[план3]]-Таблица5[[#This Row],[факт3]]","v":{"$error":"#REF!"}},null,null,null,null,{"$f":"SUMPRODUCT(--(#REF!=$S$5),--(#REF!=S69),#REF!)","v":{"$error":"#REF!"}},{"$f":"Таблица5[[#This Row],[план4]]-Таблица5[[#This Row],[факт4]]","v":{"$error":"#REF!"}},null,null,null,null,{"$f":"SUMPRODUCT(--(#REF!=$Y$5),--(#REF!=Y69),#REF!)","v":{"$error":"#REF!"}},{"$f":"Таблица5[[#This Row],[план5]]-Таблица5[[#This Row],[факт5]]","v":{"$error":"#REF!"}},null,null,null,null,{"$f":"SUMPRODUCT(--(#REF!=$AE$5),--(#REF!=AE69),#REF!)","v":{"$error":"#REF!"}},{"$f":"Таблица5[[#This Row],[план6]]-Таблица5[[#This Row],[факт6]]","v":{"$error":"#REF!"}},null,null,null,null,{"$f":"SUMPRODUCT(--(#REF!=$AK$5),--(#REF!=AK69),#REF!)","v":{"$error":"#REF!"}},{"$f":"Таблица5[[#This Row],[план7]]-Таблица5[[#This Row],[факт7]]","v":{"$error":"#REF!"}},null,null,null,null,{"$f":"SUMPRODUCT(--(#REF!=$AQ$5),--(#REF!=AQ69),#REF!)","v":{"$error":"#REF!"}},{"$f":"Таблица5[[#This Row],[план8]]-Таблица5[[#This Row],[факт8]]","v":{"$error":"#REF!"}},null,null,null,null,{"$f":"SUMPRODUCT(--(#REF!=$AW$5),--(#REF!=AW69),#REF!)","v":{"$error":"#REF!"}},{"$f":"Таблица5[[#This Row],[план9]]-Таблица5[[#This Row],[факт9]]","v":{"$error":"#REF!"}},null,null,null,null,{"$f":"SUMPRODUCT(--(#REF!=$BC$5),--(#REF!=BC69),#REF!)","v":{"$error":"#REF!"}},{"$f":"Таблица5[[#This Row],[план10]]-Таблица5[[#This Row],[факт10]]","v":{"$error":"#REF!"}}]
[null,null,null,null,{"$f":"SUMPRODUCT(--(#REF!=$A$5),--(#REF!=A70),#REF!)","v":{"$error":"#REF!"}},{"$f":"Таблица5[[#This Row],[план]]-Таблица5[[#This Row],[факт]]","v":{"$error":"#REF!"}},null,null,null,null,{"$f":"SUMPRODUCT(--(#REF!=$G$5),--(#REF!=G70),#REF!)","v":{"$error":"#REF!"}},{"$f":"Таблица5[[#This Row],[план2]]-Таблица5[[#This Row],[факт2]]","v":{"$error":"#REF!"}},null,null,null,null,{"$f":"SUMPRODUCT(--(#REF!=$M$5),--(#REF!=M70),#REF!)","v":{"$error":"#REF!"}},{"$f":"Таблица5[[#This Row],[план3]]-Таблица5[[#This Row],[факт3]]","v":{"$error":"#REF!"}},null,null,null,null,{"$f":"SUMPRODUCT(--(#REF!=$S$5),--(#REF!=S70),#REF!)","v":{"$error":"#REF!"}},{"$f":"Таблица5[[#This Row],[план4]]-Таблица5[[#This Row],[факт4]]","v":{"$error":"#REF!"}},null,null,null,null,{"$f":"SUMPRODUCT(--(#REF!=$Y$5),--(#REF!=Y70),#REF!)","v":{"$error":"#REF!"}},{"$f":"Таблица5[[#This Row],[план5]]-Таблица5[[#This Row],[факт5]]","v":{"$error":"#REF!"}},null,null,null,null,{"$f":"SUMPRODUCT(--(#REF!=$AE$5),--(#REF!=AE70),#REF!)","v":{"$error":"#REF!"}},{"$f":"Таблица5[[#This Row],[план6]]-Таблица5[[#This Row],[факт6]]","v":{"$error":"#REF!"}},null,null,null,null,{"$f":"SUMPRODUCT(--(#REF!=$AK$5),--(#REF!=AK70),#REF!)","v":{"$error":"#REF!"}},{"$f":"Таблица5[[#This Row],[план7]]-Таблица5[[#This Row],[факт7]]","v":{"$error":"#REF!"}},null,null,null,null,{"$f":"SUMPRODUCT(--(#REF!=$AQ$5),--(#REF!=AQ70),#REF!)","v":{"$error":"#REF!"}},{"$f":"Таблица5[[#This Row],[план8]]-Таблица5[[#This Row],[факт8]]","v":{"$error":"#REF!"}},null,null,null,null,{"$f":"SUMPRODUCT(--(#REF!=$AW$5),--(#REF!=AW70),#REF!)","v":{"$error":"#REF!"}},{"$f":"Таблица5[[#This Row],[план9]]-Таблица5[[#This Row],[факт9]]","v":{"$error":"#REF!"}},null,null,null,null,{"$f":"SUMPRODUCT(--(#REF!=$BC$5),--(#REF!=BC70),#REF!)","v":{"$error":"#REF!"}},{"$f":"Таблица5[[#This Row],[план10]]-Таблица5[[#This Row],[факт10]]","v":{"$error":"#REF!"}}]
[null,null,null,null,{"$f":"SUMPRODUCT(--(#REF!=$A$5),--(#REF!=A71),#REF!)","v":{"$error":"#REF!"}},{"$f":"Таблица5[[#This Row],[план]]-Таблица5[[#This Row],[факт]]","v":{"$error":"#REF!"}},null,null,null,null,{"$f":"SUMPRODUCT(--(#REF!=$G$5),--(#REF!=G71),#REF!)","v":{"$error":"#REF!"}},{"$f":"Таблица5[[#This Row],[план2]]-Таблица5[[#This Row],[факт2]]","v":{"$error":"#REF!"}},null,null,null,null,{"$f":"SUMPRODUCT(--(#REF!=$M$5),--(#REF!=M71),#REF!)","v":{"$error":"#REF!"}},{"$f":"Таблица5[[#This Row],[план3]]-Таблица5[[#This Row],[факт3]]","v":{"$error":"#REF!"}},null,null,null,null,{"$f":"SUMPRODUCT(--(#REF!=$S$5),--(#REF!=S71),#REF!)","v":{"$error":"#REF!"}},{"$f":"Таблица5[[#This Row],[план4]]-Таблица5[[#This Row],[факт4]]","v":{"$error":"#REF!"}},null,null,null,null,{"$f":"SUMPRODUCT(--(#REF!=$Y$5),--(#REF!=Y71),#REF!)","v":{"$error":"#REF!"}},{"$f":"Таблица5[[#This Row],[план5]]-Таблица5[[#This Row],[факт5]]","v":{"$error":"#REF!"}},null,null,null,null,{"$f":"SUMPRODUCT(--(#REF!=$AE$5),--(#REF!=AE71),#REF!)","v":{"$error":"#REF!"}},{"$f":"Таблица5[[#This Row],[план6]]-Таблица5[[#This Row],[факт6]]","v":{"$error":"#REF!"}},null,null,null,null,{"$f":"SUMPRODUCT(--(#REF!=$AK$5),--(#REF!=AK71),#REF!)","v":{"$error":"#REF!"}},{"$f":"Таблица5[[#This Row],[план7]]-Таблица5[[#This Row],[факт7]]","v":{"$error":"#REF!"}},null,null,null,null,{"$f":"SUMPRODUCT(--(#REF!=$AQ$5),--(#REF!=AQ71),#REF!)","v":{"$error":"#REF!"}},{"$f":"Таблица5[[#This Row],[план8]]-Таблица5[[#This Row],[факт8]]","v":{"$error":"#REF!"}},null,null,null,null,{"$f":"SUMPRODUCT(--(#REF!=$AW$5),--(#REF!=AW71),#REF!)","v":{"$error":"#REF!"}},{"$f":"Таблица5[[#This Row],[план9]]-Таблица5[[#This Row],[факт9]]","v":{"$error":"#REF!"}},null,null,null,null,{"$f":"SUMPRODUCT(--(#REF!=$BC$5),--(#REF!=BC71),#REF!)","v":{"$error":"#REF!"}},{"$f":"Таблица5[[#This Row],[план10]]-Таблица5[[#This Row],[факт10]]","v":{"$error":"#REF!"}}]
[null,null,null,null,{"$f":"SUMPRODUCT(--(#REF!=$A$5),--(#REF!=A72),#REF!)","v":{"$error":"#REF!"}},{"$f":"Таблица5[[#This Row],[план]]-Таблица5[[#This Row],[факт]]","v":{"$error":"#REF!"}},null,null,null,null,{"$f":"SUMPRODUCT(--(#REF!=$G$5),--(#REF!=G72),#REF!)","v":{"$error":"#REF!"}},{"$f":"Таблица5[[#This Row],[план2]]-Таблица5[[#This Row],[факт2]]","v":{"$error":"#REF!"}},null,null,null,null,{"$f":"SUMPRODUCT(--(#REF!=$M$5),--(#REF!=M72),#REF!)","v":{"$error":"#REF!"}},{"$f":"Таблица5[[#This Row],[план3]]-Таблица5[[#This Row],[факт3]]","v":{"$error":"#REF!"}},null,null,null,null,{"$f":"SUMPRODUCT(--(#REF!=$S$5),--(#REF!=S72),#REF!)","v":{"$error":"#REF!"}},{"$f":"Таблица5[[#This Row],[план4]]-Таблица5[[#This Row],[факт4]]","v":{"$error":"#REF!"}},null,null,null,null,{"$f":"SUMPRODUCT(--(#REF!=$Y$5),--(#REF!=Y72),#REF!)","v":{"$error":"#REF!"}},{"$f":"Таблица5[[#This Row],[план5]]-Таблица5[[#This Row],[факт5]]","v":{"$error":"#REF!"}},null,null,null,null,{"$f":"SUMPRODUCT(--(#REF!=$AE$5),--(#REF!=AE72),#REF!)","v":{"$error":"#REF!"}},{"$f":"Таблица5[[#This Row],[план6]]-Таблица5[[#This Row],[факт6]]","v":{"$error":"#REF!"}},null,null,null,null,{"$f":"SUMPRODUCT(--(#REF!=$AK$5),--(#REF!=AK72),#REF!)","v":{"$error":"#REF!"}},{"$f":"Таблица5[[#This Row],[план7]]-Таблица5[[#This Row],[факт7]]","v":{"$error":"#REF!"}},null,null,null,null,{"$f":"SUMPRODUCT(--(#REF!=$AQ$5),--(#REF!=AQ72),#REF!)","v":{"$error":"#REF!"}},{"$f":"Таблица5[[#This Row],[план8]]-Таблица5[[#This Row],[факт8]]","v":{"$error":"#REF!"}},null,null,null,null,{"$f":"SUMPRODUCT(--(#REF!=$AW$5),--(#REF!=AW72),#REF!)","v":{"$error":"#REF!"}},{"$f":"Таблица5[[#This Row],[план9]]-Таблица5[[#This Row],[факт9]]","v":{"$error":"#REF!"}},null,null,null,null,{"$f":"SUMPRODUCT(--(#REF!=$BC$5),--(#REF!=BC72),#REF!)","v":{"$error":"#REF!"}},{"$f":"Таблица5[[#This Row],[план10]]-Таблица5[[#This Row],[факт10]]","v":{"$error":"#REF!"}}]
[null,null,null,null,{"$f":"SUMPRODUCT(--(#REF!=$A$5),--(#REF!=A73),#REF!)","v":{"$error":"#REF!"}},{"$f":"Таблица5[[#This Row],[план]]-Таблица5[[#This Row],[факт]]","v":{"$error":"#REF!"}},null,null,null,null,{"$f":"SUMPRODUCT(--(#REF!=$G$5),--(#REF!=G73),#REF!)","v":{"$error":"#REF!"}},{"$f":"Таблица5[[#This Row],[план2]]-Таблица5[[#This Row],[факт2]]","v":{"$error":"#REF!"}},null,null,null,null,{"$f":"SUMPRODUCT(--(#REF!=$M$5),--(#REF!=M73),#REF!)","v":{"$error":"#REF!"}},{"$f":"Таблица5[[#This Row],[план3]]-Таблица5[[#This Row],[факт3]]","v":{"$error":"#REF!"}},null,null,null,null,{"$f":"SUMPRODUCT(--(#REF!=$S$5),--(#REF!=S73),#REF!)","v":{"$error":"#REF!"}},{"$f":"Таблица5[[#This Row],[план4]]-Таблица5[[#This Row],[факт4]]","v":{"$error":"#REF!"}},null,null,null,null,{"$f":"SUMPRODUCT(--(#REF!=$Y$5),--(#REF!=Y73),#REF!)","v":{"$error":"#REF!"}},{"$f":"Таблица5[[#This Row],[план5]]-Таблица5[[#This Row],[факт5]]","v":{"$error":"#REF!"}},null,null,null,null,{"$f":"SUMPRODUCT(--(#REF!=$AE$5),--(#REF!=AE73),#REF!)","v":{"$error":"#REF!"}},{"$f":"Таблица5[[#This Row],[план6]]-Таблица5[[#This Row],[факт6]]","v":{"$error":"#REF!"}},null,null,null,null,{"$f":"SUMPRODUCT(--(#REF!=$AK$5),--(#REF!=AK73),#REF!)","v":{"$error":"#REF!"}},{"$f":"Таблица5[[#This Row],[план7]]-Таблица5[[#This Row],[факт7]]","v":{"$error":"#REF!"}},null,null,null,null,{"$f":"SUMPRODUCT(--(#REF!=$AQ$5),--(#REF!=AQ73),#REF!)","v":{"$error":"#REF!"}},{"$f":"Таблица5[[#This Row],[план8]]-Таблица5[[#This Row],[факт8]]","v":{"$error":"#REF!"}},null,null,null,null,{"$f":"SUMPRODUCT(--(#REF!=$AW$5),--(#REF!=AW73),#REF!)","v":{"$error":"#REF!"}},{"$f":"Таблица5[[#This Row],[план9]]-Таблица5[[#This Row],[факт9]]","v":{"$error":"#REF!"}},null,null,null,null,{"$f":"SUMPRODUCT(--(#REF!=$BC$5),--(#REF!=BC73),#REF!)","v":{"$error":"#REF!"}},{"$f":"Таблица5[[#This Row],[план10]]-Таблица5[[#This Row],[факт10]]","v":{"$error":"#REF!"}}]
[null,null,null,null,{"$f":"SUMPRODUCT(--(#REF!=$A$5),--(#REF!=A74),#REF!)","v":{"$error":"#REF!"}},{"$f":"Таблица5[[#This Row],[план]]-Таблица5[[#This Row],[факт]]","v":{"$error":"#REF!"}},null,null,null,null,{"$f":"SUMPRODUCT(--(#REF!=$G$5),--(#REF!=G74),#REF!)","v":{"$error":"#REF!"}},{"$f":"Таблица5[[#This Row],[план2]]-Таблица5[[#This Row],[факт2]]","v":{"$error":"#REF!"}},null,null,null,null,{"$f":"SUMPRODUCT(--(#REF!=$M$5),--(#REF!=M74),#REF!)","v":{"$error":"#REF!"}},{"$f":"Таблица5[[#This Row],[план3]]-Таблица5[[#This Row],[факт3]]","v":{"$error":"#REF!"}},null,null,null,null,{"$f":"SUMPRODUCT(--(#REF!=$S$5),--(#REF!=S74),#REF!)","v":{"$error":"#REF!"}},{"$f":"Таблица5[[#This Row],[план4]]-Таблица5[[#This Row],[факт4]]","v":{"$error":"#REF!"}},null,null,null,null,{"$f":"SUMPRODUCT(--(#REF!=$Y$5),--(#REF!=Y74),#REF!)","v":{"$error":"#REF!"}},{"$f":"Таблица5[[#This Row],[план5]]-Таблица5[[#This Row],[факт5]]","v":{"$error":"#REF!"}},null,null,null,null,{"$f":"SUMPRODUCT(--(#REF!=$AE$5),--(#REF!=AE74),#REF!)","v":{"$error":"#REF!"}},{"$f":"Таблица5[[#This Row],[план6]]-Таблица5[[#This Row],[факт6]]","v":{"$error":"#REF!"}},null,null,null,null,{"$f":"SUMPRODUCT(--(#REF!=$AK$5),--(#REF!=AK74),#REF!)","v":{"$error":"#REF!"}},{"$f":"Таблица5[[#This Row],[план7]]-Таблица5[[#This Row],[факт7]]","v":{"$error":"#REF!"}},null,null,null,null,{"$f":"SUMPRODUCT(--(#REF!=$AQ$5),--(#REF!=AQ74),#REF!)","v":{"$error":"#REF!"}},{"$f":"Таблица5[[#This Row],[план8]]-Таблица5[[#This Row],[факт8]]","v":{"$error":"#REF!"}},null,null,null,null,{"$f":"SUMPRODUCT(--(#REF!=$AW$5),--(#REF!=AW74),#REF!)","v":{"$error":"#REF!"}},{"$f":"Таблица5[[#This Row],[план9]]-Таблица5[[#This Row],[факт9]]","v":{"$error":"#REF!"}},null,null,null,null,{"$f":"SUMPRODUCT(--(#REF!=$BC$5),--(#REF!=BC74),#REF!)","v":{"$error":"#REF!"}},{"$f":"Таблица5[[#This Row],[план10]]-Таблица5[[#This Row],[факт10]]","v":{"$error":"#REF!"}}]
[null,null,null,null,{"$f":"SUMPRODUCT(--(#REF!=$A$5),--(#REF!=A75),#REF!)","v":{"$error":"#REF!"}},{"$f":"Таблица5[[#This Row],[план]]-Таблица5[[#This Row],[факт]]","v":{"$error":"#REF!"}},null,null,null,null,{"$f":"SUMPRODUCT(--(#REF!=$G$5),--(#REF!=G75),#REF!)","v":{"$error":"#REF!"}},{"$f":"Таблица5[[#This Row],[план2]]-Таблица5[[#This Row],[факт2]]","v":{"$error":"#REF!"}},null,null,null,null,{"$f":"SUMPRODUCT(--(#REF!=$M$5),--(#REF!=M75),#REF!)","v":{"$error":"#REF!"}},{"$f":"Таблица5[[#This Row],[план3]]-Таблица5[[#This Row],[факт3]]","v":{"$error":"#REF!"}},null,null,null,null,{"$f":"SUMPRODUCT(--(#REF!=$S$5),--(#REF!=S75),#REF!)","v":{"$error":"#REF!"}},{"$f":"Таблица5[[#This Row],[план4]]-Таблица5[[#This Row],[факт4]]","v":{"$error":"#REF!"}},null,null,null,null,{"$f":"SUMPRODUCT(--(#REF!=$Y$5),--(#REF!=Y75),#REF!)","v":{"$error":"#REF!"}},{"$f":"Таблица5[[#This Row],[план5]]-Таблица5[[#This Row],[факт5]]","v":{"$error":"#REF!"}},null,null,null,null,{"$f":"SUMPRODUCT(--(#REF!=$AE$5),--(#REF!=AE75),#REF!)","v":{"$error":"#REF!"}},{"$f":"Таблица5[[#This Row],[план6]]-Таблица5[[#This Row],[факт6]]","v":{"$error":"#REF!"}},null,null,null,null,{"$f":"SUMPRODUCT(--(#REF!=$AK$5),--(#REF!=AK75),#REF!)","v":{"$error":"#REF!"}},{"$f":"Таблица5[[#This Row],[план7]]-Таблица5[[#This Row],[факт7]]","v":{"$error":"#REF!"}},null,null,null,null,{"$f":"SUMPRODUCT(--(#REF!=$AQ$5),--(#REF!=AQ75),#REF!)","v":{"$error":"#REF!"}},{"$f":"Таблица5[[#This Row],[план8]]-Таблица5[[#This Row],[факт8]]","v":{"$error":"#REF!"}},null,null,null,null,{"$f":"SUMPRODUCT(--(#REF!=$AW$5),--(#REF!=AW75),#REF!)","v":{"$error":"#REF!"}},{"$f":"Таблица5[[#This Row],[план9]]-Таблица5[[#This Row],[факт9]]","v":{"$error":"#REF!"}},null,null,null,null,{"$f":"SUMPRODUCT(--(#REF!=$BC$5),--(#REF!=BC75),#REF!)","v":{"$error":"#REF!"}},{"$f":"Таблица5[[#This Row],[план10]]-Таблица5[[#This Row],[факт10]]","v":{"$error":"#REF!"}}]
[null,null,null,null,{"$f":"SUMPRODUCT(--(#REF!=$A$5),--(#REF!=A76),#REF!)","v":{"$error":"#REF!"}},{"$f":"Таблица5[[#This Row],[план]]-Таблица5[[#This Row],[факт]]","v":{"$error":"#REF!"}},null,null,null,null,{"$f":"SUMPRODUCT(--(#REF!=$G$5),--(#REF!=G76),#REF!)","v":{"$error":"#REF!"}},{"$f":"Таблица5[[#This Row],[план2]]-Таблица5[[#This Row],[факт2]]","v":{"$error":"#REF!"}},null,null,null,null,{"$f":"SUMPRODUCT(--(#REF!=$M$5),--(#REF!=M76),#REF!)","v":{"$error":"#REF!"}},{"$f":"Таблица5[[#This Row],[план3]]-Таблица5[[#This Row],[факт3]]","v":{"$error":"#REF!"}},null,null,null,null,{"$f":"SUMPRODUCT(--(#REF!=$S$5),--(#REF!=S76),#REF!)","v":{"$error":"#REF!"}},{"$f":"Таблица5[[#This Row],[план4]]-Таблица5[[#This Row],[факт4]]","v":{"$error":"#REF!"}},null,null,null,null,{"$f":"SUMPRODUCT(--(#REF!=$Y$5),--(#REF!=Y76),#REF!)","v":{"$error":"#REF!"}},{"$f":"Таблица5[[#This Row],[план5]]-Таблица5[[#This Row],[факт5]]","v":{"$error":"#REF!"}},null,null,null,null,{"$f":"SUMPRODUCT(--(#REF!=$AE$5),--(#REF!=AE76),#REF!)","v":{"$error":"#REF!"}},{"$f":"Таблица5[[#This Row],[план6]]-Таблица5[[#This Row],[факт6]]","v":{"$error":"#REF!"}},null,null,null,null,{"$f":"SUMPRODUCT(--(#REF!=$AK$5),--(#REF!=AK76),#REF!)","v":{"$error":"#REF!"}},{"$f":"Таблица5[[#This Row],[план7]]-Таблица5[[#This Row],[факт7]]","v":{"$error":"#REF!"}},null,null,null,null,{"$f":"SUMPRODUCT(--(#REF!=$AQ$5),--(#REF!=AQ76),#REF!)","v":{"$error":"#REF!"}},{"$f":"Таблица5[[#This Row],[план8]]-Таблица5[[#This Row],[факт8]]","v":{"$error":"#REF!"}},null,null,null,null,{"$f":"SUMPRODUCT(--(#REF!=$AW$5),--(#REF!=AW76),#REF!)","v":{"$error":"#REF!"}},{"$f":"Таблица5[[#This Row],[план9]]-Таблица5[[#This Row],[факт9]]","v":{"$error":"#REF!"}},null,null,null,null,{"$f":"SUMPRODUCT(--(#REF!=$BC$5),--(#REF!=BC76),#REF!)","v":{"$error":"#REF!"}},{"$f":"Таблица5[[#This Row],[план10]]-Таблица5[[#This Row],[факт10]]","v":{"$error":"#REF!"}}]
[null,null,null,null,{"$f":"SUMPRODUCT(--(#REF!=$A$5),--(#REF!=A77),#REF!)","v":{"$error":"#REF!"}},{"$f":"Таблица5[[#This Row],[план]]-Таблица5[[#This Row],[факт]]","v":{"$error":"#REF!"}},null,null,null,null,{"$f":"SUMPRODUCT(--(#REF!=$G$5),--(#REF!=G77),#REF!)","v":{"$error":"#REF!"}},{"$f":"Таблица5[[#This Row],[план2]]-Таблица5[[#This Row],[факт2]]","v":{"$error":"#REF!"}},null,null,null,null,{"$f":"SUMPRODUCT(--(#REF!=$M$5),--(#REF!=M77),#REF!)","v":{"$error":"#REF!"}},{"$f":"Таблица5[[#This Row],[план3]]-Таблица5[[#This Row],[факт3]]","v":{"$error":"#REF!"}},null,null,null,null,{"$f":"SUMPRODUCT(--(#REF!=$S$5),--(#REF!=S77),#REF!)","v":{"$error":"#REF!"}},{"$f":"Таблица5[[#This Row],[план4]]-Таблица5[[#This Row],[факт4]]","v":{"$error":"#REF!"}},null,null,null,null,{"$f":"SUMPRODUCT(--(#REF!=$Y$5),--(#REF!=Y77),#REF!)","v":{"$error":"#REF!"}},{"$f":"Таблица5[[#This Row],[план5]]-Таблица5[[#This Row],[факт5]]","v":{"$error":"#REF!"}},null,null,null,null,{"$f":"SUMPRODUCT(--(#REF!=$AE$5),--(#REF!=AE77),#REF!)","v":{"$error":"#REF!"}},{"$f":"Таблица5[[#This Row],[план6]]-Таблица5[[#This Row],[факт6]]","v":{"$error":"#REF!"}},null,null,null,null,{"$f":"SUMPRODUCT(--(#REF!=$AK$5),--(#REF!=AK77),#REF!)","v":{"$error":"#REF!"}},{"$f":"Таблица5[[#This Row],[план7]]-Таблица5[[#This Row],[факт7]]","v":{"$error":"#REF!"}},null,null,null,null,{"$f":"SUMPRODUCT(--(#REF!=$AQ$5),--(#REF!=AQ77),#REF!)","v":{"$error":"#REF!"}},{"$f":"Таблица5[[#This Row],[план8]]-Таблица5[[#This Row],[факт8]]","v":{"$error":"#REF!"}},null,null,null,null,{"$f":"SUMPRODUCT(--(#REF!=$AW$5),--(#REF!=AW77),#REF!)","v":{"$error":"#REF!"}},{"$f":"Таблица5[[#This Row],[план9]]-Таблица5[[#This Row],[факт9]]","v":{"$error":"#REF!"}},null,null,null,null,{"$f":"SUMPRODUCT(--(#REF!=$BC$5),--(#REF!=BC77),#REF!)","v":{"$error":"#REF!"}},{"$f":"Таблица5[[#This Row],[план10]]-Таблица5[[#This Row],[факт10]]","v":{"$error":"#REF!"}}]
[null,null,null,null,{"$f":"SUMPRODUCT(--(#REF!=$A$5),--(#REF!=A78),#REF!)","v":{"$error":"#REF!"}},{"$f":"Таблица5[[#This Row],[план]]-Таблица5[[#This Row],[факт]]","v":{"$error":"#REF!"}},null,null,null,null,{"$f":"SUMPRODUCT(--(#REF!=$G$5),--(#REF!=G78),#REF!)","v":{"$error":"#REF!"}},{"$f":"Таблица5[[#This Row],[план2]]-Таблица5[[#This Row],[факт2]]","v":{"$error":"#REF!"}},null,null,null,null,{"$f":"SUMPRODUCT(--(#REF!=$M$5),--(#REF!=M78),#REF!)","v":{"$error":"#REF!"}},{"$f":"Таблица5[[#This Row],[план3]]-Таблица5[[#This Row],[факт3]]","v":{"$error":"#REF!"}},null,null,null,null,{"$f":"SUMPRODUCT(--(#REF!=$S$5),--(#REF!=S78),#REF!)","v":{"$error":"#REF!"}},{"$f":"Таблица5[[#This Row],[план4]]-Таблица5[[#This Row],[факт4]]","v":{"$error":"#REF!"}},null,null,null,null,{"$f":"SUMPRODUCT(--(#REF!=$Y$5),--(#REF!=Y78),#REF!)","v":{"$error":"#REF!"}},{"$f":"Таблица5[[#This Row],[план5]]-Таблица5[[#This Row],[факт5]]","v":{"$error":"#REF!"}},null,null,null,null,{"$f":"SUMPRODUCT(--(#REF!=$AE$5),--(#REF!=AE78),#REF!)","v":{"$error":"#REF!"}},{"$f":"Таблица5[[#This Row],[план6]]-Таблица5[[#This Row],[факт6]]","v":{"$error":"#REF!"}},null,null,null,null,{"$f":"SUMPRODUCT(--(#REF!=$AK$5),--(#REF!=AK78),#REF!)","v":{"$error":"#REF!"}},{"$f":"Таблица5[[#This Row],[план7]]-Таблица5[[#This Row],[факт7]]","v":{"$error":"#REF!"}},null,null,null,null,{"$f":"SUMPRODUCT(--(#REF!=$AQ$5),--(#REF!=AQ78),#REF!)","v":{"$error":"#REF!"}},{"$f":"Таблица5[[#This Row],[план8]]-Таблица5[[#This Row],[факт8]]","v":{"$error":"#REF!"}},null,null,null,null,{"$f":"SUMPRODUCT(--(#REF!=$AW$5),--(#REF!=AW78),#REF!)","v":{"$error":"#REF!"}},{"$f":"Таблица5[[#This Row],[план9]]-Таблица5[[#This Row],[факт9]]","v":{"$error":"#REF!"}},null,null,null,null,{"$f":"SUMPRODUCT(--(#REF!=$BC$5),--(#REF!=BC78),#REF!)","v":{"$error":"#REF!"}},{"$f":"Таблица5[[#This Row],[план10]]-Таблица5[[#This Row],[факт10]]","v":{"$error":"#REF!"}}]
[null,null,null,null,{"$f":"SUMPRODUCT(--(#REF!=$A$5),--(#REF!=A79),#REF!)","v":{"$error":"#REF!"}},{"$f":"Таблица5[[#This Row],[план]]-Таблица5[[#This Row],[факт]]","v":{"$error":"#REF!"}},null,null,null,null,{"$f":"SUMPRODUCT(--(#REF!=$G$5),--(#REF!=G79),#REF!)","v":{"$error":"#REF!"}},{"$f":"Таблица5[[#This Row],[план2]]-Таблица5[[#This Row],[факт2]]","v":{"$error":"#REF!"}},null,null,null,null,{"$f":"SUMPRODUCT(--(#REF!=$M$5),--(#REF!=M79),#REF!)","v":{"$error":"#REF!"}},{"$f":"Таблица5[[#This Row],[план3]]-Таблица5[[#This Row],[факт3]]","v":{"$error":"#REF!"}},null,null,null,null,{"$f":"SUMPRODUCT(--(#REF!=$S$5),--(#REF!=S79),#REF!)","v":{"$error":"#REF!"}},{"$f":"Таблица5[[#This Row],[план4]]-Таблица5[[#This Row],[факт4]]","v":{"$error":"#REF!"}},null,null,null,null,{"$f":"SUMPRODUCT(--(#REF!=$Y$5),--(#REF!=Y79),#REF!)","v":{"$error":"#REF!"}},{"$f":"Таблица5[[#This Row],[план5]]-Таблица5[[#This Row],[факт5]]","v":{"$error":"#REF!"}},null,null,null,null,{"$f":"SUMPRODUCT(--(#REF!=$AE$5),--(#REF!=AE79),#REF!)","v":{"$error":"#REF!"}},{"$f":"Таблица5[[#This Row],[план6]]-Таблица5[[#This Row],[факт6]]","v":{"$error":"#REF!"}},null,null,null,null,{"$f":"SUMPRODUCT(--(#REF!=$AK$5),--(#REF!=AK79),#REF!)","v":{"$error":"#REF!"}},{"$f":"Таблица5[[#This Row],[план7]]-Таблица5[[#This Row],[факт7]]","v":{"$error":"#REF!"}},null,null,null,null,{"$f":"SUMPRODUCT(--(#REF!=$AQ$5),--(#REF!=AQ79),#REF!)","v":{"$error":"#REF!"}},{"$f":"Таблица5[[#This Row],[план8]]-Таблица5[[#This Row],[факт8]]","v":{"$error":"#REF!"}},null,null,null,null,{"$f":"SUMPRODUCT(--(#REF!=$AW$5),--(#REF!=AW79),#REF!)","v":{"$error":"#REF!"}},{"$f":"Таблица5[[#This Row],[план9]]-Таблица5[[#This Row],[факт9]]","v":{"$error":"#REF!"}},null,null,null,null,{"$f":"SUMPRODUCT(--(#REF!=$BC$5),--(#REF!=BC79),#REF!)","v":{"$error":"#REF!"}},{"$f":"Таблица5[[#This Row],[план10]]-Таблица5[[#This Row],[факт10]]","v":{"$error":"#REF!"}}]
[null,null,null,null,{"$f":"SUMPRODUCT(--(#REF!=$A$5),--(#REF!=A80),#REF!)","v":{"$error":"#REF!"}},{"$f":"Таблица5[[#This Row],[план]]-Таблица5[[#This Row],[факт]]","v":{"$error":"#REF!"}},null,null,null,null,{"$f":"SUMPRODUCT(--(#REF!=$G$5),--(#REF!=G80),#REF!)","v":{"$error":"#REF!"}},{"$f":"Таблица5[[#This Row],[план2]]-Таблица5[[#This Row],[факт2]]","v":{"$error":"#REF!"}},null,null,null,null,{"$f":"SUMPRODUCT(--(#REF!=$M$5),--(#REF!=M80),#REF!)","v":{"$error":"#REF!"}},{"$f":"Таблица5[[#This Row],[план3]]-Таблица5[[#This Row],[факт3]]","v":{"$error":"#REF!"}},null,null,null,null,{"$f":"SUMPRODUCT(--(#REF!=$S$5),--(#REF!=S80),#REF!)","v":{"$error":"#REF!"}},{"$f":"Таблица5[[#This Row],[план4]]-Таблица5[[#This Row],[факт4]]","v":{"$error":"#REF!"}},null,null,null,null,{"$f":"SUMPRODUCT(--(#REF!=$Y$5),--(#REF!=Y80),#REF!)","v":{"$error":"#REF!"}},{"$f":"Таблица5[[#This Row],[план5]]-Таблица5[[#This Row],[факт5]]","v":{"$error":"#REF!"}},null,null,null,null,{"$f":"SUMPRODUCT(--(#REF!=$AE$5),--(#REF!=AE80),#REF!)","v":{"$error":"#REF!"}},{"$f":"Таблица5[[#This Row],[план6]]-Таблица5[[#This Row],[факт6]]","v":{"$error":"#REF!"}},null,null,null,null,{"$f":"SUMPRODUCT(--(#REF!=$AK$5),--(#REF!=AK80),#REF!)","v":{"$error":"#REF!"}},{"$f":"Таблица5[[#This Row],[план7]]-Таблица5[[#This Row],[факт7]]","v":{"$error":"#REF!"}},null,null,null,null,{"$f":"SUMPRODUCT(--(#REF!=$AQ$5),--(#REF!=AQ80),#REF!)","v":{"$error":"#REF!"}},{"$f":"Таблица5[[#This Row],[план8]]-Таблица5[[#This Row],[факт8]]","v":{"$error":"#REF!"}},null,null,null,null,{"$f":"SUMPRODUCT(--(#REF!=$AW$5),--(#REF!=AW80),#REF!)","v":{"$error":"#REF!"}},{"$f":"Таблица5[[#This Row],[план9]]-Таблица5[[#This Row],[факт9]]","v":{"$error":"#REF!"}},null,null,null,null,{"$f":"SUMPRODUCT(--(#REF!=$BC$5),--(#REF!=BC80),#REF!)","v":{"$error":"#REF!"}},{"$f":"Таблица5[[#This Row],[план10]]-Таблица5[[#This Row],[факт10]]","v":{"$error":"#REF!"}}]
[null,null,null,null,{"$f":"SUMPRODUCT(--(#REF!=$A$5),--(#REF!=A81),#REF!)","v":{"$error":"#REF!"}},{"$f":"Таблица5[[#This Row],[план]]-Таблица5[[#This Row],[факт]]","v":{"$error":"#REF!"}},null,null,null,null,{"$f":"SUMPRODUCT(--(#REF!=$G$5),--(#REF!=G81),#REF!)","v":{"$error":"#REF!"}},{"$f":"Таблица5[[#This Row],[план2]]-Таблица5[[#This Row],[факт2]]","v":{"$error":"#REF!"}},null,null,null,null,{"$f":"SUMPRODUCT(--(#REF!=$M$5),--(#REF!=M81),#REF!)","v":{"$error":"#REF!"}},{"$f":"Таблица5[[#This Row],[план3]]-Таблица5[[#This Row],[факт3]]","v":{"$error":"#REF!"}},null,null,null,null,{"$f":"SUMPRODUCT(--(#REF!=$S$5),--(#REF!=S81),#REF!)","v":{"$error":"#REF!"}},{"$f":"Таблица5[[#This Row],[план4]]-Таблица5[[#This Row],[факт4]]","v":{"$error":"#REF!"}},null,null,null,null,{"$f":"SUMPRODUCT(--(#REF!=$Y$5),--(#REF!=Y81),#REF!)","v":{"$error":"#REF!"}},{"$f":"Таблица5[[#This Row],[план5]]-Таблица5[[#This Row],[факт5]]","v":{"$error":"#REF!"}},null,null,null,null,{"$f":"SUMPRODUCT(--(#REF!=$AE$5),--(#REF!=AE81),#REF!)","v":{"$error":"#REF!"}},{"$f":"Таблица5[[#This Row],[план6]]-Таблица5[[#This Row],[факт6]]","v":{"$error":"#REF!"}},null,null,null,null,{"$f":"SUMPRODUCT(--(#REF!=$AK$5),--(#REF!=AK81),#REF!)","v":{"$error":"#REF!"}},{"$f":"Таблица5[[#This Row],[план7]]-Таблица5[[#This Row],[факт7]]","v":{"$error":"#REF!"}},null,null,null,null,{"$f":"SUMPRODUCT(--(#REF!=$AQ$5),--(#REF!=AQ81),#REF!)","v":{"$error":"#REF!"}},{"$f":"Таблица5[[#This Row],[план8]]-Таблица5[[#This Row],[факт8]]","v":{"$error":"#REF!"}},null,null,null,null,{"$f":"SUMPRODUCT(--(#REF!=$AW$5),--(#REF!=AW81),#REF!)","v":{"$error":"#REF!"}},{"$f":"Таблица5[[#This Row],[план9]]-Таблица5[[#This Row],[факт9]]","v":{"$error":"#REF!"}},null,null,null,null,{"$f":"SUMPRODUCT(--(#REF!=$BC$5),--(#REF!=BC81),#REF!)","v":{"$error":"#REF!"}},{"$f":"Таблица5[[#This Row],[план10]]-Таблица5[[#This Row],[факт10]]","v":{"$error":"#REF!"}}]
[null,null,null,null,{"$f":"SUMPRODUCT(--(#REF!=$A$5),--(#REF!=A82),#REF!)","v":{"$error":"#REF!"}},{"$f":"Таблица5[[#This Row],[план]]-Таблица5[[#This Row],[факт]]","v":{"$error":"#REF!"}},null,null,null,null,{"$f":"SUMPRODUCT(--(#REF!=$G$5),--(#REF!=G82),#REF!)","v":{"$error":"#REF!"}},{"$f":"Таблица5[[#This Row],[план2]]-Таблица5[[#This Row],[факт2]]","v":{"$error":"#REF!"}},null,null,null,null,{"$f":"SUMPRODUCT(--(#REF!=$M$5),--(#REF!=M82),#REF!)","v":{"$error":"#REF!"}},{"$f":"Таблица5[[#This Row],[план3]]-Таблица5[[#This Row],[факт3]]","v":{"$error":"#REF!"}},null,null,null,null,{"$f":"SUMPRODUCT(--(#REF!=$S$5),--(#REF!=S82),#REF!)","v":{"$error":"#REF!"}},{"$f":"Таблица5[[#This Row],[план4]]-Таблица5[[#This Row],[факт4]]","v":{"$error":"#REF!"}},null,null,null,null,{"$f":"SUMPRODUCT(--(#REF!=$Y$5),--(#REF!=Y82),#REF!)","v":{"$error":"#REF!"}},{"$f":"Таблица5[[#This Row],[план5]]-Таблица5[[#This Row],[факт5]]","v":{"$error":"#REF!"}},null,null,null,null,{"$f":"SUMPRODUCT(--(#REF!=$AE$5),--(#REF!=AE82),#REF!)","v":{"$error":"#REF!"}},{"$f":"Таблица5[[#This Row],[план6]]-Таблица5[[#This Row],[факт6]]","v":{"$error":"#REF!"}},null,null,null,null,{"$f":"SUMPRODUCT(--(#REF!=$AK$5),--(#REF!=AK82),#REF!)","v":{"$error":"#REF!"}},{"$f":"Таблица5[[#This Row],[план7]]-Таблица5[[#This Row],[факт7]]","v":{"$error":"#REF!"}},null,null,null,null,{"$f":"SUMPRODUCT(--(#REF!=$AQ$5),--(#REF!=AQ82),#REF!)","v":{"$error":"#REF!"}},{"$f":"Таблица5[[#This Row],[план8]]-Таблица5[[#This Row],[факт8]]","v":{"$error":"#REF!"}},null,null,null,null,{"$f":"SUMPRODUCT(--(#REF!=$AW$5),--(#REF!=AW82),#REF!)","v":{"$error":"#REF!"}},{"$f":"Таблица5[[#This Row],[план9]]-Таблица5[[#This Row],[факт9]]","v":{"$error":"#REF!"}},null,null,null,null,{"$f":"SUMPRODUCT(--(#REF!=$BC$5),--(#REF!=BC82),#REF!)","v":{"$error":"#REF!"}},{"$f":"Таблица5[[#This Row],[план10]]-Таблица5[[#This Row],[факт10]]","v":{"$error":"#REF!"}}]
[null,null,null,null,{"$f":"SUMPRODUCT(--(#REF!=$A$5),--(#REF!=A83),#REF!)","v":{"$error":"#REF!"}},{"$f":"Таблица5[[#This Row],[план]]-Таблица5[[#This Row],[факт]]","v":{"$error":"#REF!"}},null,null,null,null,{"$f":"SUMPRODUCT(--(#REF!=$G$5),--(#REF!=G83),#REF!)","v":{"$error":"#REF!"}},{"$f":"Таблица5[[#This Row],[план2]]-Таблица5[[#This Row],[факт2]]","v":{"$error":"#REF!"}},null,null,null,null,{"$f":"SUMPRODUCT(--(#REF!=$M$5),--(#REF!=M83),#REF!)","v":{"$error":"#REF!"}},{"$f":"Таблица5[[#This Row],[план3]]-Таблица5[[#This Row],[факт3]]","v":{"$error":"#REF!"}},null,null,null,null,{"$f":"SUMPRODUCT(--(#REF!=$S$5),--(#REF!=S83),#REF!)","v":{"$error":"#REF!"}},{"$f":"Таблица5[[#This Row],[план4]]-Таблица5[[#This Row],[факт4]]","v":{"$error":"#REF!"}},null,null,null,null,{"$f":"SUMPRODUCT(--(#REF!=$Y$5),--(#REF!=Y83),#REF!)","v":{"$error":"#REF!"}},{"$f":"Таблица5[[#This Row],[план5]]-Таблица5[[#This Row],[факт5]]","v":{"$error":"#REF!"}},null,null,null,null,{"$f":"SUMPRODUCT(--(#REF!=$AE$5),--(#REF!=AE83),#REF!)","v":{"$error":"#REF!"}},{"$f":"Таблица5[[#This Row],[план6]]-Таблица5[[#This Row],[факт6]]","v":{"$error":"#REF!"}},null,null,null,null,{"$f":"SUMPRODUCT(--(#REF!=$AK$5),--(#REF!=AK83),#REF!)","v":{"$error":"#REF!"}},{"$f":"Таблица5[[#This Row],[план7]]-Таблица5[[#This Row],[факт7]]","v":{"$error":"#REF!"}},null,null,null,null,{"$f":"SUMPRODUCT(--(#REF!=$AQ$5),--(#REF!=AQ83),#REF!)","v":{"$error":"#REF!"}},{"$f":"Таблица5[[#This Row],[план8]]-Таблица5[[#This Row],[факт8]]","v":{"$error":"#REF!"}},null,null,null,null,{"$f":"SUMPRODUCT(--(#REF!=$AW$5),--(#REF!=AW83),#REF!)","v":{"$error":"#REF!"}},{"$f":"Таблица5[[#This Row],[план9]]-Таблица5[[#This Row],[факт9]]","v":{"$error":"#REF!"}},null,null,null,null,{"$f":"SUMPRODUCT(--(#REF!=$BC$5),--(#REF!=BC83),#REF!)","v":{"$error":"#REF!"}},{"$f":"Таблица5[[#This Row],[план10]]-Таблица5[[#This Row],[факт10]]","v":{"$error":"#REF!"}}]
[null,null,null,null,{"$f":"SUMPRODUCT(--(#REF!=$A$5),--(#REF!=A84),#REF!)","v":{"$error":"#REF!"}},{"$f":"Таблица5[[#This Row],[план]]-Таблица5[[#This Row],[факт]]","v":{"$error":"#REF!"}},null,null,null,null,{"$f":"SUMPRODUCT(--(#REF!=$G$5),--(#REF!=G84),#REF!)","v":{"$error":"#REF!"}},{"$f":"Таблица5[[#This Row],[план2]]-Таблица5[[#This Row],[факт2]]","v":{"$error":"#REF!"}},null,null,null,null,{"$f":"SUMPRODUCT(--(#REF!=$M$5),--(#REF!=M84),#REF!)","v":{"$error":"#REF!"}},{"$f":"Таблица5[[#This Row],[план3]]-Таблица5[[#This Row],[факт3]]","v":{"$error":"#REF!"}},null,null,null,null,{"$f":"SUMPRODUCT(--(#REF!=$S$5),--(#REF!=S84),#REF!)","v":{"$error":"#REF!"}},{"$f":"Таблица5[[#This Row],[план4]]-Таблица5[[#This Row],[факт4]]","v":{"$error":"#REF!"}},null,null,null,null,{"$f":"SUMPRODUCT(--(#REF!=$Y$5),--(#REF!=Y84),#REF!)","v":{"$error":"#REF!"}},{"$f":"Таблица5[[#This Row],[план5]]-Таблица5[[#This Row],[факт5]]","v":{"$error":"#REF!"}},null,null,null,null,{"$f":"SUMPRODUCT(--(#REF!=$AE$5),--(#REF!=AE84),#REF!)","v":{"$error":"#REF!"}},{"$f":"Таблица5[[#This Row],[план6]]-Таблица5[[#This Row],[факт6]]","v":{"$error":"#REF!"}},null,null,null,null,{"$f":"SUMPRODUCT(--(#REF!=$AK$5),--(#REF!=AK84),#REF!)","v":{"$error":"#REF!"}},{"$f":"Таблица5[[#This Row],[план7]]-Таблица5[[#This Row],[факт7]]","v":{"$error":"#REF!"}},null,null,null,null,{"$f":"SUMPRODUCT(--(#REF!=$AQ$5),--(#REF!=AQ84),#REF!)","v":{"$error":"#REF!"}},{"$f":"Таблица5[[#This Row],[план8]]-Таблица5[[#This Row],[факт8]]","v":{"$error":"#REF!"}},null,null,null,null,{"$f":"SUMPRODUCT(--(#REF!=$AW$5),--(#REF!=AW84),#REF!)","v":{"$error":"#REF!"}},{"$f":"Таблица5[[#This Row],[план9]]-Таблица5[[#This Row],[факт9]]","v":{"$error":"#REF!"}},null,null,null,null,{"$f":"SUMPRODUCT(--(#REF!=$BC$5),--(#REF!=BC84),#REF!)","v":{"$error":"#REF!"}},{"$f":"Таблица5[[#This Row],[план10]]-Таблица5[[#This Row],[факт10]]","v":{"$error":"#REF!"}}]
[null,null,null,null,{"$f":"SUMPRODUCT(--(#REF!=$A$5),--(#REF!=A85),#REF!)","v":{"$error":"#REF!"}},{"$f":"Таблица5[[#This Row],[план]]-Таблица5[[#This Row],[факт]]","v":{"$error":"#REF!"}},null,null,null,null,{"$f":"SUMPRODUCT(--(#REF!=$G$5),--(#REF!=G85),#REF!)","v":{"$error":"#REF!"}},{"$f":"Таблица5[[#This Row],[план2]]-Таблица5[[#This Row],[факт2]]","v":{"$error":"#REF!"}},null,null,null,null,{"$f":"SUMPRODUCT(--(#REF!=$M$5),--(#REF!=M85),#REF!)","v":{"$error":"#REF!"}},{"$f":"Таблица5[[#This Row],[план3]]-Таблица5[[#This Row],[факт3]]","v":{"$error":"#REF!"}},null,null,null,null,{"$f":"SUMPRODUCT(--(#REF!=$S$5),--(#REF!=S85),#REF!)","v":{"$error":"#REF!"}},{"$f":"Таблица5[[#This Row],[план4]]-Таблица5[[#This Row],[факт4]]","v":{"$error":"#REF!"}},null,null,null,null,{"$f":"SUMPRODUCT(--(#REF!=$Y$5),--(#REF!=Y85),#REF!)","v":{"$error":"#REF!"}},{"$f":"Таблица5[[#This Row],[план5]]-Таблица5[[#This Row],[факт5]]","v":{"$error":"#REF!"}},null,null,null,null,{"$f":"SUMPRODUCT(--(#REF!=$AE$5),--(#REF!=AE85),#REF!)","v":{"$error":"#REF!"}},{"$f":"Таблица5[[#This Row],[план6]]-Таблица5[[#This Row],[факт6]]","v":{"$error":"#REF!"}},null,null,null,null,{"$f":"SUMPRODUCT(--(#REF!=$AK$5),--(#REF!=AK85),#REF!)","v":{"$error":"#REF!"}},{"$f":"Таблица5[[#This Row],[план7]]-Таблица5[[#This Row],[факт7]]","v":{"$error":"#REF!"}},null,null,null,null,{"$f":"SUMPRODUCT(--(#REF!=$AQ$5),--(#REF!=AQ85),#REF!)","v":{"$error":"#REF!"}},{"$f":"Таблица5[[#This Row],[план8]]-Таблица5[[#This Row],[факт8]]","v":{"$error":"#REF!"}},null,null,null,null,{"$f":"SUMPRODUCT(--(#REF!=$AW$5),--(#REF!=AW85),#REF!)","v":{"$error":"#REF!"}},{"$f":"Таблица5[[#This Row],[план9]]-Таблица5[[#This Row],[факт9]]","v":{"$error":"#REF!"}},null,null,null,null,{"$f":"SUMPRODUCT(--(#REF!=$BC$5),--(#REF!=BC85),#REF!)","v":{"$error":"#REF!"}},{"$f":"Таблица5[[#This Row],[план10]]-Таблица5[[#This Row],[факт10]]","v":{"$error":"#REF!"}}]
[null,null,null,null,{"$f":"SUMPRODUCT(--(#REF!=$A$5),--(#REF!=A86),#REF!)","v":{"$error":"#REF!"}},{"$f":"Таблица5[[#This Row],[план]]-Таблица5[[#This Row],[факт]]","v":{"$error":"#REF!"}},null,null,null,null,{"$f":"SUMPRODUCT(--(#REF!=$G$5),--(#REF!=G86),#REF!)","v":{"$error":"#REF!"}},{"$f":"Таблица5[[#This Row],[план2]]-Таблица5[[#This Row],[факт2]]","v":{"$error":"#REF!"}},null,null,null,null,{"$f":"SUMPRODUCT(--(#REF!=$M$5),--(#REF!=M86),#REF!)","v":{"$error":"#REF!"}},{"$f":"Таблица5[[#This Row],[план3]]-Таблица5[[#This Row],[факт3]]","v":{"$error":"#REF!"}},null,null,null,null,{"$f":"SUMPRODUCT(--(#REF!=$S$5),--(#REF!=S86),#REF!)","v":{"$error":"#REF!"}},{"$f":"Таблица5[[#This Row],[план4]]-Таблица5[[#This Row],[факт4]]","v":{"$error":"#REF!"}},null,null,null,null,{"$f":"SUMPRODUCT(--(#REF!=$Y$5),--(#REF!=Y86),#REF!)","v":{"$error":"#REF!"}},{"$f":"Таблица5[[#This Row],[план5]]-Таблица5[[#This Row],[факт5]]","v":{"$error":"#REF!"}},null,null,null,null,{"$f":"SUMPRODUCT(--(#REF!=$AE$5),--(#REF!=AE86),#REF!)","v":{"$error":"#REF!"}},{"$f":"Таблица5[[#This Row],[план6]]-Таблица5[[#This Row],[факт6]]","v":{"$error":"#REF!"}},null,null,null,null,{"$f":"SUMPRODUCT(--(#REF!=$AK$5),--(#REF!=AK86),#REF!)","v":{"$error":"#REF!"}},{"$f":"Таблица5[[#This Row],[план7]]-Таблица5[[#This Row],[факт7]]","v":{"$error":"#REF!"}},null,null,null,null,{"$f":"SUMPRODUCT(--(#REF!=$AQ$5),--(#REF!=AQ86),#REF!)","v":{"$error":"#REF!"}},{"$f":"Таблица5[[#This Row],[план8]]-Таблица5[[#This Row],[факт8]]","v":{"$error":"#REF!"}},null,null,null,null,{"$f":"SUMPRODUCT(--(#REF!=$AW$5),--(#REF!=AW86),#REF!)","v":{"$error":"#REF!"}},{"$f":"Таблица5[[#This Row],[план9]]-Таблица5[[#This Row],[факт9]]","v":{"$error":"#REF!"}},null,null,null,null,{"$f":"SUMPRODUCT(--(#REF!=$BC$5),--(#REF!=BC86),#REF!)","v":{"$error":"#REF!"}},{"$f":"Таблица5[[#This Row],[план10]]-Таблица5[[#This Row],[факт10]]","v":{"$error":"#REF!"}}]
[null,null,null,null,{"$f":"SUMPRODUCT(--(#REF!=$A$5),--(#REF!=A87),#REF!)","v":{"$error":"#REF!"}},{"$f":"Таблица5[[#This Row],[план]]-Таблица5[[#This Row],[факт]]","v":{"$error":"#REF!"}},null,null,null,null,{"$f":"SUMPRODUCT(--(#REF!=$G$5),--(#REF!=G87),#REF!)","v":{"$error":"#REF!"}},{"$f":"Таблица5[[#This Row],[план2]]-Таблица5[[#This Row],[факт2]]","v":{"$error":"#REF!"}},null,null,null,null,{"$f":"SUMPRODUCT(--(#REF!=$M$5),--(#REF!=M87),#REF!)","v":{"$error":"#REF!"}},{"$f":"Таблица5[[#This Row],[план3]]-Таблица5[[#This Row],[факт3]]","v":{"$error":"#REF!"}},null,null,null,null,{"$f":"SUMPRODUCT(--(#REF!=$S$5),--(#REF!=S87),#REF!)","v":{"$error":"#REF!"}},{"$f":"Таблица5[[#This Row],[план4]]-Таблица5[[#This Row],[факт4]]","v":{"$error":"#REF!"}},null,null,null,null,{"$f":"SUMPRODUCT(--(#REF!=$Y$5),--(#REF!=Y87),#REF!)","v":{"$error":"#REF!"}},{"$f":"Таблица5[[#This Row],[план5]]-Таблица5[[#This Row],[факт5]]","v":{"$error":"#REF!"}},null,null,null,null,{"$f":"SUMPRODUCT(--(#REF!=$AE$5),--(#REF!=AE87),#REF!)","v":{"$error":"#REF!"}},{"$f":"Таблица5[[#This Row],[план6]]-Таблица5[[#This Row],[факт6]]","v":{"$error":"#REF!"}},null,null,null,null,{"$f":"SUMPRODUCT(--(#REF!=$AK$5),--(#REF!=AK87),#REF!)","v":{"$error":"#REF!"}},{"$f":"Таблица5[[#This Row],[план7]]-Таблица5[[#This Row],[факт7]]","v":{"$error":"#REF!"}},null,null,null,null,{"$f":"SUMPRODUCT(--(#REF!=$AQ$5),--(#REF!=AQ87),#REF!)","v":{"$error":"#REF!"}},{"$f":"Таблица5[[#This Row],[план8]]-Таблица5[[#This Row],[факт8]]","v":{"$error":"#REF!"}},null,null,null,null,{"$f":"SUMPRODUCT(--(#REF!=$AW$5),--(#REF!=AW87),#REF!)","v":{"$error":"#REF!"}},{"$f":"Таблица5[[#This Row],[план9]]-Таблица5[[#This Row],[факт9]]","v":{"$error":"#REF!"}},null,null,null,null,{"$f":"SUMPRODUCT(--(#REF!=$BC$5),--(#REF!=BC87),#REF!)","v":{"$error":"#REF!"}},{"$f":"Таблица5[[#This Row],[план10]]-Таблица5[[#This Row],[факт10]]","v":{"$error":"#REF!"}}]
[null,null,null,null,{"$f":"SUMPRODUCT(--(#REF!=$A$5),--(#REF!=A88),#REF!)","v":{"$error":"#REF!"}},{"$f":"Таблица5[[#This Row],[план]]-Таблица5[[#This Row],[факт]]","v":{"$error":"#REF!"}},null,null,null,null,{"$f":"SUMPRODUCT(--(#REF!=$G$5),--(#REF!=G88),#REF!)","v":{"$error":"#REF!"}},{"$f":"Таблица5[[#This Row],[план2]]-Таблица5[[#This Row],[факт2]]","v":{"$error":"#REF!"}},null,null,null,null,{"$f":"SUMPRODUCT(--(#REF!=$M$5),--(#REF!=M88),#REF!)","v":{"$error":"#REF!"}},{"$f":"Таблица5[[#This Row],[план3]]-Таблица5[[#This Row],[факт3]]","v":{"$error":"#REF!"}},null,null,null,null,{"$f":"SUMPRODUCT(--(#REF!=$S$5),--(#REF!=S88),#REF!)","v":{"$error":"#REF!"}},{"$f":"Таблица5[[#This Row],[план4]]-Таблица5[[#This Row],[факт4]]","v":{"$error":"#REF!"}},null,null,null,null,{"$f":"SUMPRODUCT(--(#REF!=$Y$5),--(#REF!=Y88),#REF!)","v":{"$error":"#REF!"}},{"$f":"Таблица5[[#This Row],[план5]]-Таблица5[[#This Row],[факт5]]","v":{"$error":"#REF!"}},null,null,null,null,{"$f":"SUMPRODUCT(--(#REF!=$AE$5),--(#REF!=AE88),#REF!)","v":{"$error":"#REF!"}},{"$f":"Таблица5[[#This Row],[план6]]-Таблица5[[#This Row],[факт6]]","v":{"$error":"#REF!"}},null,null,null,null,{"$f":"SUMPRODUCT(--(#REF!=$AK$5),--(#REF!=AK88),#REF!)","v":{"$error":"#REF!"}},{"$f":"Таблица5[[#This Row],[план7]]-Таблица5[[#This Row],[факт7]]","v":{"$error":"#REF!"}},null,null,null,null,{"$f":"SUMPRODUCT(--(#REF!=$AQ$5),--(#REF!=AQ88),#REF!)","v":{"$error":"#REF!"}},{"$f":"Таблица5[[#This Row],[план8]]-Таблица5[[#This Row],[факт8]]","v":{"$error":"#REF!"}},null,null,null,null,{"$f":"SUMPRODUCT(--(#REF!=$AW$5),--(#REF!=AW88),#REF!)","v":{"$error":"#REF!"}},{"$f":"Таблица5[[#This Row],[план9]]-Таблица5[[#This Row],[факт9]]","v":{"$error":"#REF!"}},null,null,null,null,{"$f":"SUMPRODUCT(--(#REF!=$BC$5),--(#REF!=BC88),#REF!)","v":{"$error":"#REF!"}},{"$f":"Таблица5[[#This Row],[план10]]-Таблица5[[#This Row],[факт10]]","v":{"$error":"#REF!"}}]
[null,null,null,null,{"$f":"SUMPRODUCT(--(#REF!=$A$5),--(#REF!=A89),#REF!)","v":{"$error":"#REF!"}},{"$f":"Таблица5[[#This Row],[план]]-Таблица5[[#This Row],[факт]]","v":{"$error":"#REF!"}},null,null,null,null,{"$f":"SUMPRODUCT(--(#REF!=$G$5),--(#REF!=G89),#REF!)","v":{"$error":"#REF!"}},{"$f":"Таблица5[[#This Row],[план2]]-Таблица5[[#This Row],[факт2]]","v":{"$error":"#REF!"}},null,null,null,null,{"$f":"SUMPRODUCT(--(#REF!=$M$5),--(#REF!=M89),#REF!)","v":{"$error":"#REF!"}},{"$f":"Таблица5[[#This Row],[план3]]-Таблица5[[#This Row],[факт3]]","v":{"$error":"#REF!"}},null,null,null,null,{"$f":"SUMPRODUCT(--(#REF!=$S$5),--(#REF!=S89),#REF!)","v":{"$error":"#REF!"}},{"$f":"Таблица5[[#This Row],[план4]]-Таблица5[[#This Row],[факт4]]","v":{"$error":"#REF!"}},null,null,null,null,{"$f":"SUMPRODUCT(--(#REF!=$Y$5),--(#REF!=Y89),#REF!)","v":{"$error":"#REF!"}},{"$f":"Таблица5[[#This Row],[план5]]-Таблица5[[#This Row],[факт5]]","v":{"$error":"#REF!"}},null,null,null,null,{"$f":"SUMPRODUCT(--(#REF!=$AE$5),--(#REF!=AE89),#REF!)","v":{"$error":"#REF!"}},{"$f":"Таблица5[[#This Row],[план6]]-Таблица5[[#This Row],[факт6]]","v":{"$error":"#REF!"}},null,null,null,null,{"$f":"SUMPRODUCT(--(#REF!=$AK$5),--(#REF!=AK89),#REF!)","v":{"$error":"#REF!"}},{"$f":"Таблица5[[#This Row],[план7]]-Таблица5[[#This Row],[факт7]]","v":{"$error":"#REF!"}},null,null,null,null,{"$f":"SUMPRODUCT(--(#REF!=$AQ$5),--(#REF!=AQ89),#REF!)","v":{"$error":"#REF!"}},{"$f":"Таблица5[[#This Row],[план8]]-Таблица5[[#This Row],[факт8]]","v":{"$error":"#REF!"}},null,null,null,null,{"$f":"SUMPRODUCT(--(#REF!=$AW$5),--(#REF!=AW89),#REF!)","v":{"$error":"#REF!"}},{"$f":"Таблица5[[#This Row],[план9]]-Таблица5[[#This Row],[факт9]]","v":{"$error":"#REF!"}},null,null,null,null,{"$f":"SUMPRODUCT(--(#REF!=$BC$5),--(#REF!=BC89),#REF!)","v":{"$error":"#REF!"}},{"$f":"Таблица5[[#This Row],[план10]]-Таблица5[[#This Row],[факт10]]","v":{"$error":"#REF!"}}]
[null,null,null,null,{"$f":"SUMPRODUCT(--(#REF!=$A$5),--(#REF!=A90),#REF!)","v":{"$error":"#REF!"}},{"$f":"Таблица5[[#This Row],[план]]-Таблица5[[#This Row],[факт]]","v":{"$error":"#REF!"}},null,null,null,null,{"$f":"SUMPRODUCT(--(#REF!=$G$5),--(#REF!=G90),#REF!)","v":{"$error":"#REF!"}},{"$f":"Таблица5[[#This Row],[план2]]-Таблица5[[#This Row],[факт2]]","v":{"$error":"#REF!"}},null,null,null,null,{"$f":"SUMPRODUCT(--(#REF!=$M$5),--(#REF!=M90),#REF!)","v":{"$error":"#REF!"}},{"$f":"Таблица5[[#This Row],[план3]]-Таблица5[[#This Row],[факт3]]","v":{"$error":"#REF!"}},null,null,null,null,{"$f":"SUMPRODUCT(--(#REF!=$S$5),--(#REF!=S90),#REF!)","v":{"$error":"#REF!"}},{"$f":"Таблица5[[#This Row],[план4]]-Таблица5[[#This Row],[факт4]]","v":{"$error":"#REF!"}},null,null,null,null,{"$f":"SUMPRODUCT(--(#REF!=$Y$5),--(#REF!=Y90),#REF!)","v":{"$error":"#REF!"}},{"$f":"Таблица5[[#This Row],[план5]]-Таблица5[[#This Row],[факт5]]","v":{"$error":"#REF!"}},null,null,null,null,{"$f":"SUMPRODUCT(--(#REF!=$AE$5),--(#REF!=AE90),#REF!)","v":{"$error":"#REF!"}},{"$f":"Таблица5[[#This Row],[план6]]-Таблица5[[#This Row],[факт6]]","v":{"$error":"#REF!"}},null,null,null,null,{"$f":"SUMPRODUCT(--(#REF!=$AK$5),--(#REF!=AK90),#REF!)","v":{"$error":"#REF!"}},{"$f":"Таблица5[[#This Row],[план7]]-Таблица5[[#This Row],[факт7]]","v":{"$error":"#REF!"}},null,null,null,null,{"$f":"SUMPRODUCT(--(#REF!=$AQ$5),--(#REF!=AQ90),#REF!)","v":{"$error":"#REF!"}},{"$f":"Таблица5[[#This Row],[план8]]-Таблица5[[#This Row],[факт8]]","v":{"$error":"#REF!"}},null,null,null,null,{"$f":"SUMPRODUCT(--(#REF!=$AW$5),--(#REF!=AW90),#REF!)","v":{"$error":"#REF!"}},{"$f":"Таблица5[[#This Row],[план9]]-Таблица5[[#This Row],[факт9]]","v":{"$error":"#REF!"}},null,null,null,null,{"$f":"SUMPRODUCT(--(#REF!=$BC$5),--(#REF!=BC90),#REF!)","v":{"$error":"#REF!"}},{"$f":"Таблица5[[#This Row],[план10]]-Таблица5[[#This Row],[факт10]]","v":{"$error":"#REF!"}}]
[null,null,null,null,{"$f":"SUMPRODUCT(--(#REF!=$A$5),--(#REF!=A91),#REF!)","v":{"$error":"#REF!"}},{"$f":"Таблица5[[#This Row],[план]]-Таблица5[[#This Row],[факт]]","v":{"$error":"#REF!"}},null,null,null,null,{"$f":"SUMPRODUCT(--(#REF!=$G$5),--(#REF!=G91),#REF!)","v":{"$error":"#REF!"}},{"$f":"Таблица5[[#This Row],[план2]]-Таблица5[[#This Row],[факт2]]","v":{"$error":"#REF!"}},null,null,null,null,{"$f":"SUMPRODUCT(--(#REF!=$M$5),--(#REF!=M91),#REF!)","v":{"$error":"#REF!"}},{"$f":"Таблица5[[#This Row],[план3]]-Таблица5[[#This Row],[факт3]]","v":{"$error":"#REF!"}},null,null,null,null,{"$f":"SUMPRODUCT(--(#REF!=$S$5),--(#REF!=S91),#REF!)","v":{"$error":"#REF!"}},{"$f":"Таблица5[[#This Row],[план4]]-Таблица5[[#This Row],[факт4]]","v":{"$error":"#REF!"}},null,null,null,null,{"$f":"SUMPRODUCT(--(#REF!=$Y$5),--(#REF!=Y91),#REF!)","v":{"$error":"#REF!"}},{"$f":"Таблица5[[#This Row],[план5]]-Таблица5[[#This Row],[факт5]]","v":{"$error":"#REF!"}},null,null,null,null,{"$f":"SUMPRODUCT(--(#REF!=$AE$5),--(#REF!=AE91),#REF!)","v":{"$error":"#REF!"}},{"$f":"Таблица5[[#This Row],[план6]]-Таблица5[[#This Row],[факт6]]","v":{"$error":"#REF!"}},null,null,null,null,{"$f":"SUMPRODUCT(--(#REF!=$AK$5),--(#REF!=AK91),#REF!)","v":{"$error":"#REF!"}},{"$f":"Таблица5[[#This Row],[план7]]-Таблица5[[#This Row],[факт7]]","v":{"$error":"#REF!"}},null,null,null,null,{"$f":"SUMPRODUCT(--(#REF!=$AQ$5),--(#REF!=AQ91),#REF!)","v":{"$error":"#REF!"}},{"$f":"Таблица5[[#This Row],[план8]]-Таблица5[[#This Row],[факт8]]","v":{"$error":"#REF!"}},null,null,null,null,{"$f":"SUMPRODUCT(--(#REF!=$AW$5),--(#REF!=AW91),#REF!)","v":{"$error":"#REF!"}},{"$f":"Таблица5[[#This Row],[план9]]-Таблица5[[#This Row],[факт9]]","v":{"$error":"#REF!"}},null,null,null,null,{"$f":"SUMPRODUCT(--(#REF!=$BC$5),--(#REF!=BC91),#REF!)","v":{"$error":"#REF!"}},{"$f":"Таблица5[[#This Row],[план10]]-Таблица5[[#This Row],[факт10]]","v":{"$error":"#REF!"}}]
[null,null,null,null,{"$f":"SUMPRODUCT(--(#REF!=$A$5),--(#REF!=A92),#REF!)","v":{"$error":"#REF!"}},{"$f":"Таблица5[[#This Row],[план]]-Таблица5[[#This Row],[факт]]","v":{"$error":"#REF!"}},null,null,null,null,{"$f":"SUMPRODUCT(--(#REF!=$G$5),--(#REF!=G92),#REF!)","v":{"$error":"#REF!"}},{"$f":"Таблица5[[#This Row],[план2]]-Таблица5[[#This Row],[факт2]]","v":{"$error":"#REF!"}},null,null,null,null,{"$f":"SUMPRODUCT(--(#REF!=$M$5),--(#REF!=M92),#REF!)","v":{"$error":"#REF!"}},{"$f":"Таблица5[[#This Row],[план3]]-Таблица5[[#This Row],[факт3]]","v":{"$error":"#REF!"}},null,null,null,null,{"$f":"SUMPRODUCT(--(#REF!=$S$5),--(#REF!=S92),#REF!)","v":{"$error":"#REF!"}},{"$f":"Таблица5[[#This Row],[план4]]-Таблица5[[#This Row],[факт4]]","v":{"$error":"#REF!"}},null,null,null,null,{"$f":"SUMPRODUCT(--(#REF!=$Y$5),--(#REF!=Y92),#REF!)","v":{"$error":"#REF!"}},{"$f":"Таблица5[[#This Row],[план5]]-Таблица5[[#This Row],[факт5]]","v":{"$error":"#REF!"}},null,null,null,null,{"$f":"SUMPRODUCT(--(#REF!=$AE$5),--(#REF!=AE92),#REF!)","v":{"$error":"#REF!"}},{"$f":"Таблица5[[#This Row],[план6]]-Таблица5[[#This Row],[факт6]]","v":{"$error":"#REF!"}},null,null,null,null,{"$f":"SUMPRODUCT(--(#REF!=$AK$5),--(#REF!=AK92),#REF!)","v":{"$error":"#REF!"}},{"$f":"Таблица5[[#This Row],[план7]]-Таблица5[[#This Row],[факт7]]","v":{"$error":"#REF!"}},null,null,null,null,{"$f":"SUMPRODUCT(--(#REF!=$AQ$5),--(#REF!=AQ92),#REF!)","v":{"$error":"#REF!"}},{"$f":"Таблица5[[#This Row],[план8]]-Таблица5[[#This Row],[факт8]]","v":{"$error":"#REF!"}},null,null,null,null,{"$f":"SUMPRODUCT(--(#REF!=$AW$5),--(#REF!=AW92),#REF!)","v":{"$error":"#REF!"}},{"$f":"Таблица5[[#This Row],[план9]]-Таблица5[[#This Row],[факт9]]","v":{"$error":"#REF!"}},null,null,null,null,{"$f":"SUMPRODUCT(--(#REF!=$BC$5),--(#REF!=BC92),#REF!)","v":{"$error":"#REF!"}},{"$f":"Таблица5[[#This Row],[план10]]-Таблица5[[#This Row],[факт10]]","v":{"$error":"#REF!"}}]
[null,null,null,null,{"$f":"SUMPRODUCT(--(#REF!=$A$5),--(#REF!=A93),#REF!)","v":{"$error":"#REF!"}},{"$f":"Таблица5[[#This Row],[план]]-Таблица5[[#This Row],[факт]]","v":{"$error":"#REF!"}},null,null,null,null,{"$f":"SUMPRODUCT(--(#REF!=$G$5),--(#REF!=G93),#REF!)","v":{"$error":"#REF!"}},{"$f":"Таблица5[[#This Row],[план2]]-Таблица5[[#This Row],[факт2]]","v":{"$error":"#REF!"}},null,null,null,null,{"$f":"SUMPRODUCT(--(#REF!=$M$5),--(#REF!=M93),#REF!)","v":{"$error":"#REF!"}},{"$f":"Таблица5[[#This Row],[план3]]-Таблица5[[#This Row],[факт3]]","v":{"$error":"#REF!"}},null,null,null,null,{"$f":"SUMPRODUCT(--(#REF!=$S$5),--(#REF!=S93),#REF!)","v":{"$error":"#REF!"}},{"$f":"Таблица5[[#This Row],[план4]]-Таблица5[[#This Row],[факт4]]","v":{"$error":"#REF!"}},null,null,null,null,{"$f":"SUMPRODUCT(--(#REF!=$Y$5),--(#REF!=Y93),#REF!)","v":{"$error":"#REF!"}},{"$f":"Таблица5[[#This Row],[план5]]-Таблица5[[#This Row],[факт5]]","v":{"$error":"#REF!"}},null,null,null,null,{"$f":"SUMPRODUCT(--(#REF!=$AE$5),--(#REF!=AE93),#REF!)","v":{"$error":"#REF!"}},{"$f":"Таблица5[[#This Row],[план6]]-Таблица5[[#This Row],[факт6]]","v":{"$error":"#REF!"}},null,null,null,null,{"$f":"SUMPRODUCT(--(#REF!=$AK$5),--(#REF!=AK93),#REF!)","v":{"$error":"#REF!"}},{"$f":"Таблица5[[#This Row],[план7]]-Таблица5[[#This Row],[факт7]]","v":{"$error":"#REF!"}},null,null,null,null,{"$f":"SUMPRODUCT(--(#REF!=$AQ$5),--(#REF!=AQ93),#REF!)","v":{"$error":"#REF!"}},{"$f":"Таблица5[[#This Row],[план8]]-Таблица5[[#This Row],[факт8]]","v":{"$error":"#REF!"}},null,null,null,null,{"$f":"SUMPRODUCT(--(#REF!=$AW$5),--(#REF!=AW93),#REF!)","v":{"$error":"#REF!"}},{"$f":"Таблица5[[#This Row],[план9]]-Таблица5[[#This Row],[факт9]]","v":{"$error":"#REF!"}},null,null,null,null,{"$f":"SUMPRODUCT(--(#REF!=$BC$5),--(#REF!=BC93),#REF!)","v":{"$error":"#REF!"}},{"$f":"Таблица5[[#This Row],[план10]]-Таблица5[[#This Row],[факт10]]","v":{"$error":"#REF!"}}]
[null,null,null,null,{"$f":"SUMPRODUCT(--(#REF!=$A$5),--(#REF!=A94),#REF!)","v":{"$error":"#REF!"}},{"$f":"Таблица5[[#This Row],[план]]-Таблица5[[#This Row],[факт]]","v":{"$error":"#REF!"}},null,null,null,null,{"$f":"SUMPRODUCT(--(#REF!=$G$5),--(#REF!=G94),#REF!)","v":{"$error":"#REF!"}},{"$f":"Таблица5[[#This Row],[план2]]-Таблица5[[#This Row],[факт2]]","v":{"$error":"#REF!"}},null,null,null,null,{"$f":"SUMPRODUCT(--(#REF!=$M$5),--(#REF!=M94),#REF!)","v":{"$error":"#REF!"}},{"$f":"Таблица5[[#This Row],[план3]]-Таблица5[[#This Row],[факт3]]","v":{"$error":"#REF!"}},null,null,null,null,{"$f":"SUMPRODUCT(--(#REF!=$S$5),--(#REF!=S94),#REF!)","v":{"$error":"#REF!"}},{"$f":"Таблица5[[#This Row],[план4]]-Таблица5[[#This Row],[факт4]]","v":{"$error":"#REF!"}},null,null,null,null,{"$f":"SUMPRODUCT(--(#REF!=$Y$5),--(#REF!=Y94),#REF!)","v":{"$error":"#REF!"}},{"$f":"Таблица5[[#This Row],[план5]]-Таблица5[[#This Row],[факт5]]","v":{"$error":"#REF!"}},null,null,null,null,{"$f":"SUMPRODUCT(--(#REF!=$AE$5),--(#REF!=AE94),#REF!)","v":{"$error":"#REF!"}},{"$f":"Таблица5[[#This Row],[план6]]-Таблица5[[#This Row],[факт6]]","v":{"$error":"#REF!"}},null,null,null,null,{"$f":"SUMPRODUCT(--(#REF!=$AK$5),--(#REF!=AK94),#REF!)","v":{"$error":"#REF!"}},{"$f":"Таблица5[[#This Row],[план7]]-Таблица5[[#This Row],[факт7]]","v":{"$error":"#REF!"}},null,null,null,null,{"$f":"SUMPRODUCT(--(#REF!=$AQ$5),--(#REF!=AQ94),#REF!)","v":{"$error":"#REF!"}},{"$f":"Таблица5[[#This Row],[план8]]-Таблица5[[#This Row],[факт8]]","v":{"$error":"#REF!"}},null,null,null,null,{"$f":"SUMPRODUCT(--(#REF!=$AW$5),--(#REF!=AW94),#REF!)","v":{"$error":"#REF!"}},{"$f":"Таблица5[[#This Row],[план9]]-Таблица5[[#This Row],[факт9]]","v":{"$error":"#REF!"}},null,null,null,null,{"$f":"SUMPRODUCT(--(#REF!=$BC$5),--(#REF!=BC94),#REF!)","v":{"$error":"#REF!"}},{"$f":"Таблица5[[#This Row],[план10]]-Таблица5[[#This Row],[факт10]]","v":{"$error":"#REF!"}}]
[null,null,null,null,{"$f":"SUMPRODUCT(--(#REF!=$A$5),--(#REF!=A95),#REF!)","v":{"$error":"#REF!"}},{"$f":"Таблица5[[#This Row],[план]]-Таблица5[[#This Row],[факт]]","v":{"$error":"#REF!"}},null,null,null,null,{"$f":"SUMPRODUCT(--(#REF!=$G$5),--(#REF!=G95),#REF!)","v":{"$error":"#REF!"}},{"$f":"Таблица5[[#This Row],[план2]]-Таблица5[[#This Row],[факт2]]","v":{"$error":"#REF!"}},null,null,null,null,{"$f":"SUMPRODUCT(--(#REF!=$M$5),--(#REF!=M95),#REF!)","v":{"$error":"#REF!"}},{"$f":"Таблица5[[#This Row],[план3]]-Таблица5[[#This Row],[факт3]]","v":{"$error":"#REF!"}},null,null,null,null,{"$f":"SUMPRODUCT(--(#REF!=$S$5),--(#REF!=S95),#REF!)","v":{"$error":"#REF!"}},{"$f":"Таблица5[[#This Row],[план4]]-Таблица5[[#This Row],[факт4]]","v":{"$error":"#REF!"}},null,null,null,null,{"$f":"SUMPRODUCT(--(#REF!=$Y$5),--(#REF!=Y95),#REF!)","v":{"$error":"#REF!"}},{"$f":"Таблица5[[#This Row],[план5]]-Таблица5[[#This Row],[факт5]]","v":{"$error":"#REF!"}},null,null,null,null,{"$f":"SUMPRODUCT(--(#REF!=$AE$5),--(#REF!=AE95),#REF!)","v":{"$error":"#REF!"}},{"$f":"Таблица5[[#This Row],[план6]]-Таблица5[[#This Row],[факт6]]","v":{"$error":"#REF!"}},null,null,null,null,{"$f":"SUMPRODUCT(--(#REF!=$AK$5),--(#REF!=AK95),#REF!)","v":{"$error":"#REF!"}},{"$f":"Таблица5[[#This Row],[план7]]-Таблица5[[#This Row],[факт7]]","v":{"$error":"#REF!"}},null,null,null,null,{"$f":"SUMPRODUCT(--(#REF!=$AQ$5),--(#REF!=AQ95),#REF!)","v":{"$error":"#REF!"}},{"$f":"Таблица5[[#This Row],[план8]]-Таблица5[[#This Row],[факт8]]","v":{"$error":"#REF!"}},null,null,null,null,{"$f":"SUMPRODUCT(--(#REF!=$AW$5),--(#REF!=AW95),#REF!)","v":{"$error":"#REF!"}},{"$f":"Таблица5[[#This Row],[план9]]-Таблица5[[#This Row],[факт9]]","v":{"$error":"#REF!"}},null,null,null,null,{"$f":"SUMPRODUCT(--(#REF!=$BC$5),--(#REF!=BC95),#REF!)","v":{"$error":"#REF!"}},{"$f":"Таблица5[[#This Row],[план10]]-Таблица5[[#This Row],[факт10]]","v":{"$error":"#REF!"}}]
[null,null,null,null,{"$f":"SUMPRODUCT(--(#REF!=$A$5),--(#REF!=A96),#REF!)","v":{"$error":"#REF!"}},{"$f":"Таблица5[[#This Row],[план]]-Таблица5[[#This Row],[факт]]","v":{"$error":"#REF!"}},null,null,null,null,{"$f":"SUMPRODUCT(--(#REF!=$G$5),--(#REF!=G96),#REF!)","v":{"$error":"#REF!"}},{"$f":"Таблица5[[#This Row],[план2]]-Таблица5[[#This Row],[факт2]]","v":{"$error":"#REF!"}},null,null,null,null,{"$f":"SUMPRODUCT(--(#REF!=$M$5),--(#REF!=M96),#REF!)","v":{"$error":"#REF!"}},{"$f":"Таблица5[[#This Row],[план3]]-Таблица5[[#This Row],[факт3]]","v":{"$error":"#REF!"}},null,null,null,null,{"$f":"SUMPRODUCT(--(#REF!=$S$5),--(#REF!=S96),#REF!)","v":{"$error":"#REF!"}},{"$f":"Таблица5[[#This Row],[план4]]-Таблица5[[#This Row],[факт4]]","v":{"$error":"#REF!"}},null,null,null,null,{"$f":"SUMPRODUCT(--(#REF!=$Y$5),--(#REF!=Y96),#REF!)","v":{"$error":"#REF!"}},{"$f":"Таблица5[[#This Row],[план5]]-Таблица5[[#This Row],[факт5]]","v":{"$error":"#REF!"}},null,null,null,null,{"$f":"SUMPRODUCT(--(#REF!=$AE$5),--(#REF!=AE96),#REF!)","v":{"$error":"#REF!"}},{"$f":"Таблица5[[#This Row],[план6]]-Таблица5[[#This Row],[факт6]]","v":{"$error":"#REF!"}},null,null,null,null,{"$f":"SUMPRODUCT(--(#REF!=$AK$5),--(#REF!=AK96),#REF!)","v":{"$error":"#REF!"}},{"$f":"Таблица5[[#This Row],[план7]]-Таблица5[[#This Row],[факт7]]","v":{"$error":"#REF!"}},null,null,null,null,{"$f":"SUMPRODUCT(--(#REF!=$AQ$5),--(#REF!=AQ96),#REF!)","v":{"$error":"#REF!"}},{"$f":"Таблица5[[#This Row],[план8]]-Таблица5[[#This Row],[факт8]]","v":{"$error":"#REF!"}},null,null,null,null,{"$f":"SUMPRODUCT(--(#REF!=$AW$5),--(#REF!=AW96),#REF!)","v":{"$error":"#REF!"}},{"$f":"Таблица5[[#This Row],[план9]]-Таблица5[[#This Row],[факт9]]","v":{"$error":"#REF!"}},null,null,null,null,{"$f":"SUMPRODUCT(--(#REF!=$BC$5),--(#REF!=BC96),#REF!)","v":{"$error":"#REF!"}},{"$f":"Таблица5[[#This Row],[план10]]-Таблица5[[#This Row],[факт10]]","v":{"$error":"#REF!"}}]
[null,null,null,null,{"$f":"SUMPRODUCT(--(#REF!=$A$5),--(#REF!=A97),#REF!)","v":{"$error":"#REF!"}},{"$f":"Таблица5[[#This Row],[план]]-Таблица5[[#This Row],[факт]]","v":{"$error":"#REF!"}},null,null,null,null,{"$f":"SUMPRODUCT(--(#REF!=$G$5),--(#REF!=G97),#REF!)","v":{"$error":"#REF!"}},{"$f":"Таблица5[[#This Row],[план2]]-Таблица5[[#This Row],[факт2]]","v":{"$error":"#REF!"}},null,null,null,null,{"$f":"SUMPRODUCT(--(#REF!=$M$5),--(#REF!=M97),#REF!)","v":{"$error":"#REF!"}},{"$f":"Таблица5[[#This Row],[план3]]-Таблица5[[#This Row],[факт3]]","v":{"$error":"#REF!"}},null,null,null,null,{"$f":"SUMPRODUCT(--(#REF!=$S$5),--(#REF!=S97),#REF!)","v":{"$error":"#REF!"}},{"$f":"Таблица5[[#This Row],[план4]]-Таблица5[[#This Row],[факт4]]","v":{"$error":"#REF!"}},null,null,null,null,{"$f":"SUMPRODUCT(--(#REF!=$Y$5),--(#REF!=Y97),#REF!)","v":{"$error":"#REF!"}},{"$f":"Таблица5[[#This Row],[план5]]-Таблица5[[#This Row],[факт5]]","v":{"$error":"#REF!"}},null,null,null,null,{"$f":"SUMPRODUCT(--(#REF!=$AE$5),--(#REF!=AE97),#REF!)","v":{"$error":"#REF!"}},{"$f":"Таблица5[[#This Row],[план6]]-Таблица5[[#This Row],[факт6]]","v":{"$error":"#REF!"}},null,null,null,null,{"$f":"SUMPRODUCT(--(#REF!=$AK$5),--(#REF!=AK97),#REF!)","v":{"$error":"#REF!"}},{"$f":"Таблица5[[#This Row],[план7]]-Таблица5[[#This Row],[факт7]]","v":{"$error":"#REF!"}},null,null,null,null,{"$f":"SUMPRODUCT(--(#REF!=$AQ$5),--(#REF!=AQ97),#REF!)","v":{"$error":"#REF!"}},{"$f":"Таблица5[[#This Row],[план8]]-Таблица5[[#This Row],[факт8]]","v":{"$error":"#REF!"}},null,null,null,null,{"$f":"SUMPRODUCT(--(#REF!=$AW$5),--(#REF!=AW97),#REF!)","v":{"$error":"#REF!"}},{"$f":"Таблица5[[#This Row],[план9]]-Таблица5[[#This Row],[факт9]]","v":{"$error":"#REF!"}},null,null,null,null,{"$f":"SUMPRODUCT(--(#REF!=$BC$5),--(#REF!=BC97),#REF!)","v":{"$error":"#REF!"}},{"$f":"Таблица5[[#This Row],[план10]]-Таблица5[[#This Row],[факт10]]","v":{"$error":"#REF!"}}]
[null,null,null,null,{"$f":"SUMPRODUCT(--(#REF!=$A$5),--(#REF!=A98),#REF!)","v":{"$error":"#REF!"}},{"$f":"Таблица5[[#This Row],[план]]-Таблица5[[#This Row],[факт]]","v":{"$error":"#REF!"}},null,null,null,null,{"$f":"SUMPRODUCT(--(#REF!=$G$5),--(#REF!=G98),#REF!)","v":{"$error":"#REF!"}},{"$f":"Таблица5[[#This Row],[план2]]-Таблица5[[#This Row],[факт2]]","v":{"$error":"#REF!"}},null,null,null,null,{"$f":"SUMPRODUCT(--(#REF!=$M$5),--(#REF!=M98),#REF!)","v":{"$error":"#REF!"}},{"$f":"Таблица5[[#This Row],[план3]]-Таблица5[[#This Row],[факт3]]","v":{"$error":"#REF!"}},null,null,null,null,{"$f":"SUMPRODUCT(--(#REF!=$S$5),--(#REF!=S98),#REF!)","v":{"$error":"#REF!"}},{"$f":"Таблица5[[#This Row],[план4]]-Таблица5[[#This Row],[факт4]]","v":{"$error":"#REF!"}},null,null,null,null,{"$f":"SUMPRODUCT(--(#REF!=$Y$5),--(#REF!=Y98),#REF!)","v":{"$error":"#REF!"}},{"$f":"Таблица5[[#This Row],[план5]]-Таблица5[[#This Row],[факт5]]","v":{"$error":"#REF!"}},null,null,null,null,{"$f":"SUMPRODUCT(--(#REF!=$AE$5),--(#REF!=AE98),#REF!)","v":{"$error":"#REF!"}},{"$f":"Таблица5[[#This Row],[план6]]-Таблица5[[#This Row],[факт6]]","v":{"$error":"#REF!"}},null,null,null,null,{"$f":"SUMPRODUCT(--(#REF!=$AK$5),--(#REF!=AK98),#REF!)","v":{"$error":"#REF!"}},{"$f":"Таблица5[[#This Row],[план7]]-Таблица5[[#This Row],[факт7]]","v":{"$error":"#REF!"}},null,null,null,null,{"$f":"SUMPRODUCT(--(#REF!=$AQ$5),--(#REF!=AQ98),#REF!)","v":{"$error":"#REF!"}},{"$f":"Таблица5[[#This Row],[план8]]-Таблица5[[#This Row],[факт8]]","v":{"$error":"#REF!"}},null,null,null,null,{"$f":"SUMPRODUCT(--(#REF!=$AW$5),--(#REF!=AW98),#REF!)","v":{"$error":"#REF!"}},{"$f":"Таблица5[[#This Row],[план9]]-Таблица5[[#This Row],[факт9]]","v":{"$error":"#REF!"}},null,null,null,null,{"$f":"SUMPRODUCT(--(#REF!=$BC$5),--(#REF!=BC98),#REF!)","v":{"$error":"#REF!"}},{"$f":"Таблица5[[#This Row],[план10]]-Таблица5[[#This Row],[факт10]]","v":{"$error":"#REF!"}}]
[null,null,null,null,{"$f":"SUMPRODUCT(--(#REF!=$A$5),--(#REF!=A99),#REF!)","v":{"$error":"#REF!"}},{"$f":"Таблица5[[#This Row],[план]]-Таблица5[[#This Row],[факт]]","v":{"$error":"#REF!"}},null,null,null,null,{"$f":"SUMPRODUCT(--(#REF!=$G$5),--(#REF!=G99),#REF!)","v":{"$error":"#REF!"}},{"$f":"Таблица5[[#This Row],[план2]]-Таблица5[[#This Row],[факт2]]","v":{"$error":"#REF!"}},null,null,null,null,{"$f":"SUMPRODUCT(--(#REF!=$M$5),--(#REF!=M99),#REF!)","v":{"$error":"#REF!"}},{"$f":"Таблица5[[#This Row],[план3]]-Таблица5[[#This Row],[факт3]]","v":{"$error":"#REF!"}},null,null,null,null,{"$f":"SUMPRODUCT(--(#REF!=$S$5),--(#REF!=S99),#REF!)","v":{"$error":"#REF!"}},{"$f":"Таблица5[[#This Row],[план4]]-Таблица5[[#This Row],[факт4]]","v":{"$error":"#REF!"}},null,null,null,null,{"$f":"SUMPRODUCT(--(#REF!=$Y$5),--(#REF!=Y99),#REF!)","v":{"$error":"#REF!"}},{"$f":"Таблица5[[#This Row],[план5]]-Таблица5[[#This Row],[факт5]]","v":{"$error":"#REF!"}},null,null,null,null,{"$f":"SUMPRODUCT(--(#REF!=$AE$5),--(#REF!=AE99),#REF!)","v":{"$error":"#REF!"}},{"$f":"Таблица5[[#This Row],[план6]]-Таблица5[[#This Row],[факт6]]","v":{"$error":"#REF!"}},null,null,null,null,{"$f":"SUMPRODUCT(--(#REF!=$AK$5),--(#REF!=AK99),#REF!)","v":{"$error":"#REF!"}},{"$f":"Таблица5[[#This Row],[план7]]-Таблица5[[#This Row],[факт7]]","v":{"$error":"#REF!"}},null,null,null,null,{"$f":"SUMPRODUCT(--(#REF!=$AQ$5),--(#REF!=AQ99),#REF!)","v":{"$error":"#REF!"}},{"$f":"Таблица5[[#This Row],[план8]]-Таблица5[[#This Row],[факт8]]","v":{"$error":"#REF!"}},null,null,null,null,{"$f":"SUMPRODUCT(--(#REF!=$AW$5),--(#REF!=AW99),#REF!)","v":{"$error":"#REF!"}},{"$f":"Таблица5[[#This Row],[план9]]-Таблица5[[#This Row],[факт9]]","v":{"$error":"#REF!"}},null,null,null,null,{"$f":"SUMPRODUCT(--(#REF!=$BC$5),--(#REF!=BC99),#REF!)","v":{"$error":"#REF!"}},{"$f":"Таблица5[[#This Row],[план10]]-Таблица5[[#This Row],[факт10]]","v":{"$error":"#REF!"}}]
[null,null,null,null,{"$f":"SUMPRODUCT(--(#REF!=$A$5),--(#REF!=A100),#REF!)","v":{"$error":"#REF!"}},{"$f":"Таблица5[[#This Row],[план]]-Таблица5[[#This Row],[факт]]","v":{"$error":"#REF!"}},null,null,null,null,{"$f":"SUMPRODUCT(--(#REF!=$G$5),--(#REF!=G100),#REF!)","v":{"$error":"#REF!"}},{"$f":"Таблица5[[#This Row],[план2]]-Таблица5[[#This Row],[факт2]]","v":{"$error":"#REF!"}},null,null,null,null,{"$f":"SUMPRODUCT(--(#REF!=$M$5),--(#REF!=M100),#REF!)","v":{"$error":"#REF!"}},{"$f":"Таблица5[[#This Row],[план3]]-Таблица5[[#This Row],[факт3]]","v":{"$error":"#REF!"}},null,null,null,null,{"$f":"SUMPRODUCT(--(#REF!=$S$5),--(#REF!=S100),#REF!)","v":{"$error":"#REF!"}},{"$f":"Таблица5[[#This Row],[план4]]-Таблица5[[#This Row],[факт4]]","v":{"$error":"#REF!"}},null,null,null,null,{"$f":"SUMPRODUCT(--(#REF!=$Y$5),--(#REF!=Y100),#REF!)","v":{"$error":"#REF!"}},{"$f":"Таблица5[[#This Row],[план5]]-Таблица5[[#This Row],[факт5]]","v":{"$error":"#REF!"}},null,null,null,null,{"$f":"SUMPRODUCT(--(#REF!=$AE$5),--(#REF!=AE100),#REF!)","v":{"$error":"#REF!"}},{"$f":"Таблица5[[#This Row],[план6]]-Таблица5[[#This Row],[факт6]]","v":{"$error":"#REF!"}},null,null,null,null,{"$f":"SUMPRODUCT(--(#REF!=$AK$5),--(#REF!=AK100),#REF!)","v":{"$error":"#REF!"}},{"$f":"Таблица5[[#This Row],[план7]]-Таблица5[[#This Row],[факт7]]","v":{"$error":"#REF!"}},null,null,null,null,{"$f":"SUMPRODUCT(--(#REF!=$AQ$5),--(#REF!=AQ100),#REF!)","v":{"$error":"#REF!"}},{"$f":"Таблица5[[#This Row],[план8]]-Таблица5[[#This Row],[факт8]]","v":{"$error":"#REF!"}},null,null,null,null,{"$f":"SUMPRODUCT(--(#REF!=$AW$5),--(#REF!=AW100),#REF!)","v":{"$error":"#REF!"}},{"$f":"Таблица5[[#This Row],[план9]]-Таблица5[[#This Row],[факт9]]","v":{"$error":"#REF!"}},null,null,null,null,{"$f":"SUMPRODUCT(--(#REF!=$BC$5),--(#REF!=BC100),#REF!)","v":{"$error":"#REF!"}},{"$f":"Таблица5[[#This Row],[план10]]-Таблица5[[#This Row],[факт10]]","v":{"$error":"#REF!"}}]
[null,null,null,null,{"$f":"SUMPRODUCT(--(#REF!=$A$5),--(#REF!=A101),#REF!)","v":{"$error":"#REF!"}},{"$f":"Таблица5[[#This Row],[план]]-Таблица5[[#This Row],[факт]]","v":{"$error":"#REF!"}},null,null,null,null,{"$f":"SUMPRODUCT(--(#REF!=$G$5),--(#REF!=G101),#REF!)","v":{"$error":"#REF!"}},{"$f":"Таблица5[[#This Row],[план2]]-Таблица5[[#This Row],[факт2]]","v":{"$error":"#REF!"}},null,null,null,null,{"$f":"SUMPRODUCT(--(#REF!=$M$5),--(#REF!=M101),#REF!)","v":{"$error":"#REF!"}},{"$f":"Таблица5[[#This Row],[план3]]-Таблица5[[#This Row],[факт3]]","v":{"$error":"#REF!"}},null,null,null,null,{"$f":"SUMPRODUCT(--(#REF!=$S$5),--(#REF!=S101),#REF!)","v":{"$error":"#REF!"}},{"$f":"Таблица5[[#This Row],[план4]]-Таблица5[[#This Row],[факт4]]","v":{"$error":"#REF!"}},null,null,null,null,{"$f":"SUMPRODUCT(--(#REF!=$Y$5),--(#REF!=Y101),#REF!)","v":{"$error":"#REF!"}},{"$f":"Таблица5[[#This Row],[план5]]-Таблица5[[#This Row],[факт5]]","v":{"$error":"#REF!"}},null,null,null,null,{"$f":"SUMPRODUCT(--(#REF!=$AE$5),--(#REF!=AE101),#REF!)","v":{"$error":"#REF!"}},{"$f":"Таблица5[[#This Row],[план6]]-Таблица5[[#This Row],[факт6]]","v":{"$error":"#REF!"}},null,null,null,null,{"$f":"SUMPRODUCT(--(#REF!=$AK$5),--(#REF!=AK101),#REF!)","v":{"$error":"#REF!"}},{"$f":"Таблица5[[#This Row],[план7]]-Таблица5[[#This Row],[факт7]]","v":{"$error":"#REF!"}},null,null,null,null,{"$f":"SUMPRODUCT(--(#REF!=$AQ$5),--(#REF!=AQ101),#REF!)","v":{"$error":"#REF!"}},{"$f":"Таблица5[[#This Row],[план8]]-Таблица5[[#This Row],[факт8]]","v":{"$error":"#REF!"}},null,null,null,null,{"$f":"SUMPRODUCT(--(#REF!=$AW$5),--(#REF!=AW101),#REF!)","v":{"$error":"#REF!"}},{"$f":"Таблица5[[#This Row],[план9]]-Таблица5[[#This Row],[факт9]]","v":{"$error":"#REF!"}},null,null,null,null,{"$f":"SUMPRODUCT(--(#REF!=$BC$5),--(#REF!=BC101),#REF!)","v":{"$error":"#REF!"}},{"$f":"Таблица5[[#This Row],[план10]]-Таблица5[[#This Row],[факт10]]","v":{"$error":"#REF!"}}]
[null,null,null,null,{"$f":"SUMPRODUCT(--(#REF!=$A$5),--(#REF!=A102),#REF!)","v":{"$error":"#REF!"}},{"$f":"Таблица5[[#This Row],[план]]-Таблица5[[#This Row],[факт]]","v":{"$error":"#REF!"}},null,null,null,null,{"$f":"SUMPRODUCT(--(#REF!=$G$5),--(#REF!=G102),#REF!)","v":{"$error":"#REF!"}},{"$f":"Таблица5[[#This Row],[план2]]-Таблица5[[#This Row],[факт2]]","v":{"$error":"#REF!"}},null,null,null,null,{"$f":"SUMPRODUCT(--(#REF!=$M$5),--(#REF!=M102),#REF!)","v":{"$error":"#REF!"}},{"$f":"Таблица5[[#This Row],[план3]]-Таблица5[[#This Row],[факт3]]","v":{"$error":"#REF!"}},null,null,null,null,{"$f":"SUMPRODUCT(--(#REF!=$S$5),--(#REF!=S102),#REF!)","v":{"$error":"#REF!"}},{"$f":"Таблица5[[#This Row],[план4]]-Таблица5[[#This Row],[факт4]]","v":{"$error":"#REF!"}},null,null,null,null,{"$f":"SUMPRODUCT(--(#REF!=$Y$5),--(#REF!=Y102),#REF!)","v":{"$error":"#REF!"}},{"$f":"Таблица5[[#This Row],[план5]]-Таблица5[[#This Row],[факт5]]","v":{"$error":"#REF!"}},null,null,null,null,{"$f":"SUMPRODUCT(--(#REF!=$AE$5),--(#REF!=AE102),#REF!)","v":{"$error":"#REF!"}},{"$f":"Таблица5[[#This Row],[план6]]-Таблица5[[#This Row],[факт6]]","v":{"$error":"#REF!"}},null,null,null,null,{"$f":"SUMPRODUCT(--(#REF!=$AK$5),--(#REF!=AK102),#REF!)","v":{"$error":"#REF!"}},{"$f":"Таблица5[[#This Row],[план7]]-Таблица5[[#This Row],[факт7]]","v":{"$error":"#REF!"}},null,null,null,null,{"$f":"SUMPRODUCT(--(#REF!=$AQ$5),--(#REF!=AQ102),#REF!)","v":{"$error":"#REF!"}},{"$f":"Таблица5[[#This Row],[план8]]-Таблица5[[#This Row],[факт8]]","v":{"$error":"#REF!"}},null,null,null,null,{"$f":"SUMPRODUCT(--(#REF!=$AW$5),--(#REF!=AW102),#REF!)","v":{"$error":"#REF!"}},{"$f":"Таблица5[[#This Row],[план9]]-Таблица5[[#This Row],[факт9]]","v":{"$error":"#REF!"}},null,null,null,null,{"$f":"SUMPRODUCT(--(#REF!=$BC$5),--(#REF!=BC102),#REF!)","v":{"$error":"#REF!"}},{"$f":"Таблица5[[#This Row],[план10]]-Таблица5[[#This Row],[факт10]]","v":{"$error":"#REF!"}}]
[null,null,null,null,{"$f":"SUMPRODUCT(--(#REF!=$A$5),--(#REF!=A103),#REF!)","v":{"$error":"#REF!"}},{"$f":"Таблица5[[#This Row],[план]]-Таблица5[[#This Row],[факт]]","v":{"$error":"#REF!"}},null,null,null,null,{"$f":"SUMPRODUCT(--(#REF!=$G$5),--(#REF!=G103),#REF!)","v":{"$error":"#REF!"}},{"$f":"Таблица5[[#This Row],[план2]]-Таблица5[[#This Row],[факт2]]","v":{"$error":"#REF!"}},null,null,null,null,{"$f":"SUMPRODUCT(--(#REF!=$M$5),--(#REF!=M103),#REF!)","v":{"$error":"#REF!"}},{"$f":"Таблица5[[#This Row],[план3]]-Таблица5[[#This Row],[факт3]]","v":{"$error":"#REF!"}},null,null,null,null,{"$f":"SUMPRODUCT(--(#REF!=$S$5),--(#REF!=S103),#REF!)","v":{"$error":"#REF!"}},{"$f":"Таблица5[[#This Row],[план4]]-Таблица5[[#This Row],[факт4]]","v":{"$error":"#REF!"}},null,null,null,null,{"$f":"SUMPRODUCT(--(#REF!=$Y$5),--(#REF!=Y103),#REF!)","v":{"$error":"#REF!"}},{"$f":"Таблица5[[#This Row],[план5]]-Таблица5[[#This Row],[факт5]]","v":{"$error":"#REF!"}},null,null,null,null,{"$f":"SUMPRODUCT(--(#REF!=$AE$5),--(#REF!=AE103),#REF!)","v":{"$error":"#REF!"}},{"$f":"Таблица5[[#This Row],[план6]]-Таблица5[[#This Row],[факт6]]","v":{"$error":"#REF!"}},null,null,null,null,{"$f":"SUMPRODUCT(--(#REF!=$AK$5),--(#REF!=AK103),#REF!)","v":{"$error":"#REF!"}},{"$f":"Таблица5[[#This Row],[план7]]-Таблица5[[#This Row],[факт7]]","v":{"$error":"#REF!"}},null,null,null,null,{"$f":"SUMPRODUCT(--(#REF!=$AQ$5),--(#REF!=AQ103),#REF!)","v":{"$error":"#REF!"}},{"$f":"Таблица5[[#This Row],[план8]]-Таблица5[[#This Row],[факт8]]","v":{"$error":"#REF!"}},null,null,null,null,{"$f":"SUMPRODUCT(--(#REF!=$AW$5),--(#REF!=AW103),#REF!)","v":{"$error":"#REF!"}},{"$f":"Таблица5[[#This Row],[план9]]-Таблица5[[#This Row],[факт9]]","v":{"$error":"#REF!"}},null,null,null,null,{"$f":"SUMPRODUCT(--(#REF!=$BC$5),--(#REF!=BC103),#REF!)","v":{"$error":"#REF!"}},{"$f":"Таблица5[[#This Row],[план10]]-Таблица5[[#This Row],[факт10]]","v":{"$error":"#REF!"}}]
[null,null,null,null,{"$f":"SUMPRODUCT(--(#REF!=$A$5),--(#REF!=A104),#REF!)","v":{"$error":"#REF!"}},{"$f":"Таблица5[[#This Row],[план]]-Таблица5[[#This Row],[факт]]","v":{"$error":"#REF!"}},null,null,null,null,{"$f":"SUMPRODUCT(--(#REF!=$G$5),--(#REF!=G104),#REF!)","v":{"$error":"#REF!"}},{"$f":"Таблица5[[#This Row],[план2]]-Таблица5[[#This Row],[факт2]]","v":{"$error":"#REF!"}},null,null,null,null,{"$f":"SUMPRODUCT(--(#REF!=$M$5),--(#REF!=M104),#REF!)","v":{"$error":"#REF!"}},{"$f":"Таблица5[[#This Row],[план3]]-Таблица5[[#This Row],[факт3]]","v":{"$error":"#REF!"}},null,null,null,null,{"$f":"SUMPRODUCT(--(#REF!=$S$5),--(#REF!=S104),#REF!)","v":{"$error":"#REF!"}},{"$f":"Таблица5[[#This Row],[план4]]-Таблица5[[#This Row],[факт4]]","v":{"$error":"#REF!"}},null,null,null,null,{"$f":"SUMPRODUCT(--(#REF!=$Y$5),--(#REF!=Y104),#REF!)","v":{"$error":"#REF!"}},{"$f":"Таблица5[[#This Row],[план5]]-Таблица5[[#This Row],[факт5]]","v":{"$error":"#REF!"}},null,null,null,null,{"$f":"SUMPRODUCT(--(#REF!=$AE$5),--(#REF!=AE104),#REF!)","v":{"$error":"#REF!"}},{"$f":"Таблица5[[#This Row],[план6]]-Таблица5[[#This Row],[факт6]]","v":{"$error":"#REF!"}},null,null,null,null,{"$f":"SUMPRODUCT(--(#REF!=$AK$5),--(#REF!=AK104),#REF!)","v":{"$error":"#REF!"}},{"$f":"Таблица5[[#This Row],[план7]]-Таблица5[[#This Row],[факт7]]","v":{"$error":"#REF!"}},null,null,null,null,{"$f":"SUMPRODUCT(--(#REF!=$AQ$5),--(#REF!=AQ104),#REF!)","v":{"$error":"#REF!"}},{"$f":"Таблица5[[#This Row],[план8]]-Таблица5[[#This Row],[факт8]]","v":{"$error":"#REF!"}},null,null,null,null,{"$f":"SUMPRODUCT(--(#REF!=$AW$5),--(#REF!=AW104),#REF!)","v":{"$error":"#REF!"}},{"$f":"Таблица5[[#This Row],[план9]]-Таблица5[[#This Row],[факт9]]","v":{"$error":"#REF!"}},null,null,null,null,{"$f":"SUMPRODUCT(--(#REF!=$BC$5),--(#REF!=BC104),#REF!)","v":{"$error":"#REF!"}},{"$f":"Таблица5[[#This Row],[план10]]-Таблица5[[#This Row],[факт10]]","v":{"$error":"#REF!"}}]
[null,null,null,null,{"$f":"SUMPRODUCT(--(#REF!=$A$5),--(#REF!=A105),#REF!)","v":{"$error":"#REF!"}},{"$f":"Таблица5[[#This Row],[план]]-Таблица5[[#This Row],[факт]]","v":{"$error":"#REF!"}},null,null,null,null,{"$f":"SUMPRODUCT(--(#REF!=$G$5),--(#REF!=G105),#REF!)","v":{"$error":"#REF!"}},{"$f":"Таблица5[[#This Row],[план2]]-Таблица5[[#This Row],[факт2]]","v":{"$error":"#REF!"}},null,null,null,null,{"$f":"SUMPRODUCT(--(#REF!=$M$5),--(#REF!=M105),#REF!)","v":{"$error":"#REF!"}},{"$f":"Таблица5[[#This Row],[план3]]-Таблица5[[#This Row],[факт3]]","v":{"$error":"#REF!"}},null,null,null,null,{"$f":"SUMPRODUCT(--(#REF!=$S$5),--(#REF!=S105),#REF!)","v":{"$error":"#REF!"}},{"$f":"Таблица5[[#This Row],[план4]]-Таблица5[[#This Row],[факт4]]","v":{"$error":"#REF!"}},null,null,null,null,{"$f":"SUMPRODUCT(--(#REF!=$Y$5),--(#REF!=Y105),#REF!)","v":{"$error":"#REF!"}},{"$f":"Таблица5[[#This Row],[план5]]-Таблица5[[#This Row],[факт5]]","v":{"$error":"#REF!"}},null,null,null,null,{"$f":"SUMPRODUCT(--(#REF!=$AE$5),--(#REF!=AE105),#REF!)","v":{"$error":"#REF!"}},{"$f":"Таблица5[[#This Row],[план6]]-Таблица5[[#This Row],[факт6]]","v":{"$error":"#REF!"}},null,null,null,null,{"$f":"SUMPRODUCT(--(#REF!=$AK$5),--(#REF!=AK105),#REF!)","v":{"$error":"#REF!"}},{"$f":"Таблица5[[#This Row],[план7]]-Таблица5[[#This Row],[факт7]]","v":{"$error":"#REF!"}},null,null,null,null,{"$f":"SUMPRODUCT(--(#REF!=$AQ$5),--(#REF!=AQ105),#REF!)","v":{"$error":"#REF!"}},{"$f":"Таблица5[[#This Row],[план8]]-Таблица5[[#This Row],[факт8]]","v":{"$error":"#REF!"}},null,null,null,null,{"$f":"SUMPRODUCT(--(#REF!=$AW$5),--(#REF!=AW105),#REF!)","v":{"$error":"#REF!"}},{"$f":"Таблица5[[#This Row],[план9]]-Таблица5[[#This Row],[факт9]]","v":{"$error":"#REF!"}},null,null,null,null,{"$f":"SUMPRODUCT(--(#REF!=$BC$5),--(#REF!=BC105),#REF!)","v":{"$error":"#REF!"}},{"$f":"Таблица5[[#This Row],[план10]]-Таблица5[[#This Row],[факт10]]","v":{"$error":"#REF!"}}]
[null,null,null,null,{"$f":"SUMPRODUCT(--(#REF!=$A$5),--(#REF!=A106),#REF!)","v":{"$error":"#REF!"}},{"$f":"Таблица5[[#This Row],[план]]-Таблица5[[#This Row],[факт]]","v":{"$error":"#REF!"}},null,null,null,null,{"$f":"SUMPRODUCT(--(#REF!=$G$5),--(#REF!=G106),#REF!)","v":{"$error":"#REF!"}},{"$f":"Таблица5[[#This Row],[план2]]-Таблица5[[#This Row],[факт2]]","v":{"$error":"#REF!"}},null,null,null,null,{"$f":"SUMPRODUCT(--(#REF!=$M$5),--(#REF!=M106),#REF!)","v":{"$error":"#REF!"}},{"$f":"Таблица5[[#This Row],[план3]]-Таблица5[[#This Row],[факт3]]","v":{"$error":"#REF!"}},null,null,null,null,{"$f":"SUMPRODUCT(--(#REF!=$S$5),--(#REF!=S106),#REF!)","v":{"$error":"#REF!"}},{"$f":"Таблица5[[#This Row],[план4]]-Таблица5[[#This Row],[факт4]]","v":{"$error":"#REF!"}},null,null,null,null,{"$f":"SUMPRODUCT(--(#REF!=$Y$5),--(#REF!=Y106),#REF!)","v":{"$error":"#REF!"}},{"$f":"Таблица5[[#This Row],[план5]]-Таблица5[[#This Row],[факт5]]","v":{"$error":"#REF!"}},null,null,null,null,{"$f":"SUMPRODUCT(--(#REF!=$AE$5),--(#REF!=AE106),#REF!)","v":{"$error":"#REF!"}},{"$f":"Таблица5[[#This Row],[план6]]-Таблица5[[#This Row],[факт6]]","v":{"$error":"#REF!"}},null,null,null,null,{"$f":"SUMPRODUCT(--(#REF!=$AK$5),--(#REF!=AK106),#REF!)","v":{"$error":"#REF!"}},{"$f":"Таблица5[[#This Row],[план7]]-Таблица5[[#This Row],[факт7]]","v":{"$error":"#REF!"}},null,null,null,null,{"$f":"SUMPRODUCT(--(#REF!=$AQ$5),--(#REF!=AQ106),#REF!)","v":{"$error":"#REF!"}},{"$f":"Таблица5[[#This Row],[план8]]-Таблица5[[#This Row],[факт8]]","v":{"$error":"#REF!"}},null,null,null,null,{"$f":"SUMPRODUCT(--(#REF!=$AW$5),--(#REF!=AW106),#REF!)","v":{"$error":"#REF!"}},{"$f":"Таблица5[[#This Row],[план9]]-Таблица5[[#This Row],[факт9]]","v":{"$error":"#REF!"}},null,null,null,null,{"$f":"SUMPRODUCT(--(#REF!=$BC$5),--(#REF!=BC106),#REF!)","v":{"$error":"#REF!"}},{"$f":"Таблица5[[#This Row],[план10]]-Таблица5[[#This Row],[факт10]]","v":{"$error":"#REF!"}}]